Workbook

Sheet VBA
A1: Sheet Names | D1: Date to Update to: | E1: 2/4/16 | F1: (Text format MM/DD/YY)
A2: VBA | D2: 2nd Date to Update to: | E2: 3/4/16
A3: GL | D3: Save file as: | E3: \\livpvnasgrp01\grpshare\RATING\ISO Filings\ISO Status Reports\Feb 2016\LCM Status Update (02-04-16).xlsm
A4: AUTO
A5: FIRE
A6: CRIME
A7: INLAND
A8: BOILER
A9: FIDELITY
A10: SURETY
A11: FARM
A12: PMF
A13: NonFiled Inland
A14: NonFiled Dev
A15: BOP

Sheet GL
B1: COMMERCIAL GENERAL LIABILITY LOSS COST FILING STATUS | I1: POOLED COMPANIES | Q1: As of: | R1: 02/04/16
B4: CURRENT: | K4: PENDING:
G5: Total
E6: Loss | G6: Basic | H6: LOSS COST | K6: Actuarial | L6: Pending/ | M6: Proposed/ | O6: Loss | Q6: Total | R6: LOSS COST
C7: Effective | D7: Circular #'s | E7: Cost | F7: Expense | G7: Limits | H7: MULTIPLIER | K7: Support | L7: Approved/ | M7: Effective | N7: Circular #'s | O7: Cost | P7: Expense | Q7: B/L | R7: MULTIPLIER
B8: State | C8: Date | D8: (Edition Date) | E8: Change | F8: Change | G8: Change | H8: PREM | I8: PROD | K8: Prepared | L8: Automatic | M8: Date | N8: (Edition Date) | O8: Change | P8: Change | Q8: Change | R8: PREM | S8: PROD
B9: AL | C9: 10/1/15 | D9: 2015-069 (10/15) | E9: -0.1 | F9: 0 | G9: -0.1 | H9: 1.56 | I9: 1.56 | J9: 1.674
B10: AK | C10: 4/1/15 | D10: 2014-170 (4/15) | E10: -0.095 | F10: 0 | G10: =E10 -> -0.095 | H10: 1.504 | I10: 1.504 | J10: 1.558 | L10: Automatic | M10: 4/1/16 | N10: 2015-147 (4/16) | O10: -0.112 | P10: 0 | Q10: -0.112 | R10: 1.56 | S10: 1.56
B11: AZ | C11: 10/1/15 | D11: 2015-087 (10/15) | E11: -0.05 | F11: 0 | G11: -0.05 | H11: 1.689 | I11: 1.689 | J11: 1.55
B12: AR | C12: 9/1/15 | D12: 2015-064 (9/15) | E12: -0.048 | F12: 0 | G12: -0.048 | H12: 1.515 | I12: 1.515 | J12: 1.719
B13: CA * | C13: 8/25/14 | D13: 2012-310 (7/12) | E13: -0.098 | F13: 0.204 | G13: 0.082 | H13: 2.237 | I13: 1.864 | J13: 1.7
B14: CO | C14: 8/1/15 | D14: 2015-038 (8/15) | E14: -0.059 | F14: 0 | G14: -0.059 | H14: 1.502 | I14: 1.502 | J14: 1.813
B15: CT | C15: 12/1/15 | D15: 2015-062 (12/15) | E15: -0.061 | F15: 0 | G15: -0.061 | H15: 1.479 | I15: 1.479 | J15: 1.732
B16: DE * | C16: 8/25/14 | D16: 2014-038 (7/14) | E16: -0.034 | F16: 0 | G16: -0.034 | H16: 1.742 | I16: 1.742 | J16: 2.026 | L16: Not Yet Filed | N16: 2015-041 (7/15) | O16: -7.8%
B17: DC | C17: 10/1/15 | D17: 2015-105 (10/15) | E17: -0.121 | F17: 0 | G17: -0.121 | H17: 1.497 | I17: 1.497 | J17: 1.587
B18: FL * | C18: 10/1/15 | D18: 2014-063 (2/15) | E18: -0.058 | F18: 0.044 | G18: -0.016 | H18: 1.894 | I18: 1.457 | J18: 1.622 | L18: Not Yet Filed | N18: 2015-110 (2/16) | O18: 0.0%
B19: GA | C19: 2/1/16 | D19: 2015-094 (2/16) | E19: -0.067 | F19: 0 | G19: -0.067 | H19: 1.553 | I19: 1.553 | J19: 1.858
B20: HI * | C20: 12/7/15 | D20: HIB-GL-2014-02 | E20: -0.086 | F20: 0.064 | G20: -0.027 | H20: 1.759 | I20: 1.759 | J20: 1.565
B21: ID | C21: 9/1/15 | D21: 2015-067 (9/15) | E21: -0.118 | F21: 0 | G21: -0.118 | H21: 1.548 | I21: 1.548 | J21: 1.624
B22: IL * | C22: 10/1/15 | D22: 2014-115 (4/15) | E22: -0.236 | F22: 0.329 | G22: 0.015 | H22: 1.966 | I22: 2.222 | J22: 1.514 | L22: Approved | M22: 5/1/16 | N22: 2015-134 (4/16) | O22: -0.014 | P22: -0.018 | Q22: -0.033 | R22: 1.93 | S22: 2.181
B23: IN | C23: 3/1/16 | D23: 2015-135 (3/16) | E23: -0.064 | F23: 0 | G23: -0.064 | H23: 1.529 | I23: 1.529 | J23: 1.838
B24: IA | C24: 12/1/15 | D24: 2015-101 (12/15) | E24: -0.078 | F24: 0 | G24: -0.078 | H24: 1.504 | I24: 1.504 | J24: 1.63
B25: KS | C25: 12/1/15 | D25: 2015-120 (12/15) | E25: -0.094 | F25: 0 | G25: -0.094 | H25: 1.504 | I25: 1.504 | J25: 1.591
B26: KY | C26: 2/1/16 | D26: 2015-128(2/16) | E26: -0.011 | F26: 0 | G26: -0.011 | H26: 1.555 | I26: 1.555 | J26: 1.838
B27: LA * | C27: 11/1/15 | D27: 2014-077 (2/13) | E27: -0.102 | F27: -0.007 | G27: -0.108 | H27: 2.821 | I27: 1.709 | J27: 1.855 | L27: Not Yet Filed | N27: 2015-119 (2/16) | O27: -0.039
B28: ME | C28: 9/1/15 | D28: 2015-073 (9/15) | E28: -0.097 | F28: 0 | G28: -0.097 | H28: 1.504 | I28: 1.504 | J28: 1.591
B29: MD | C29: 9/1/15 | D29: 2015-033 (9/15) | E29: -0.072 | F29: 0 | G29: 0.072 | H29: 1.504 | I29: 1.504 | J29: 1.852
B30: MA * | C30: 7/1/15 | D30: 2014-112 (12/14) | E30: -0.019 | F30: 0.01 | G30: -0.01 | H30: 1.718 | I30: 1.718 | L30: Approved | M30: 4/1/16 | N30: 2015-091 (10/15) | O30: -0.039 | P30: 0.007 | Q30: -0.033 | R30: 1.73 | S30: 1.73
B31: MI | C31: 12/1/15 | D31: 2015-096 (12/15) | E31: -0.086 | F31: 0 | G31: -0.086 | H31: 1.488 | I31: 1.488 | J31: 1.565
B32: MN | C32: 4/1/15 | D32: 2014-124 (4/15) | E32: -0.111 | F32: 0 | G32: -0.111 | H32: 1.632 | I32: 1.632 | J32: 1.664 | L32: Automatic | M32: 4/1/16 | N32: 2015-037 (4/16) | O32: -0.057 | P32: 0 | Q32: -0.057 | R32: 1.632 | S32: 1.632
B33: MS | C33: 12/1/15 | D33: 2015-133 (12/15) | E33: -0.073 | F33: 0 | G33: -0.073 | H33: 1.527 | I33: 1.527 | J33: 1.692
B34: MO | C34: 8/1/15 | D34: 2015-030 (8/15) | E34: -0.056 | F34: 0 | G34: -0.056 | H34: 1.529 | I34: 1.529 | J34: 1.59
B35: MT | C35: 8/1/15 | D35: 2015-035 (8/15) | E35: -0.094 | F35: 0 | G35: -0.094 | H35: 1.522 | I35: 1.522 | J35: 1.6
B36: NE | C36: 12/1/15 | D36: 2015-127 (12/15) | E36: -0.085 | F36: 0 | G36: -0.085 | H36: 1.557 | I36: 1.557 | J36: 1.757
B37: NV | C37: 9/1/15 | D37: 2015-068 (9/15) | E37: -0.064 | F37: 0 | G37: -0.064 | H37: 1.536 | I37: 1.536 | J37: 1.824
B38: NH | C38: 10/1/15 | D38: 2015-072 (10/15) | E38: -0.066 | F38: 0 | G38: -0.066 | H38: 1.504 | I38: 1.504 | J38: 1.541
B39: NJ | C39: 7/1/15 | D39: 2015-040 (7/15) | E39: -0.046 | F39: 0 | G39: -0.046 | H39: 1.508 | I39: 1.508 | J39: 1.664
B40: NM | C40: 7/1/15 | D40: 2015-031 (7/15) | E40: -0.077 | F40: 0 | G40: -0.077 | H40: 1.495 | I40: 1.495 | J40: 1.555
B41: NY * | C41: 2/1/14 | D41: 2011-126 (7/12) | E41: -0.162 | F41: 0.248 | G41: 0.046 | H41: 2.023 | I41: 1.686 | J41: 1.608 | L41: Not Yet Filed Not Yet Filed | N41: 2015-154 (10/16) 2014-153 (10/15) | O41: -0.2% 4.1%
B42: NC | C42: 12/7/15 | D42: 2015-088 (12/15) | E42: -0.119 | F42: 0.136 | G42: 0.001 | H42: 1.912 | I42: 1.946 | J42: 1.56
B43: ND | C43: 7/1/15 | D43: 2015-034 (7/15) | E43: -0.145 | F43: 0 | G43: -0.145 | H43: 1.497 | I43: 1.497 | J43: 1.536
B44: OH | C44: 3/1/16 | D44: 2015-139 (3/16) | E44: -0.054 | F44: 0 | G44: -0.054 | H44: 1.515 | I44: 1.515 | J44: 1.799
B45: OK | C45: 3/1/16 | D45: 2015-149 (3/16) | E45: -0.052 | F45: 0 | G45: -0.052 | H45: 1.511 | I45: 1.511 | J45: 1.504
B46: OR | C46: 12/1/15 | D46: 2015-112 (12/15) | E46: -0.081 | F46: 0 | G46: -0.081 | H46: 1.511 | I46: 1.511 | J46: 1.49
B47: PA | C47: 3/1/16 | D47: 2015-142 (3/16) | E47: -0.011 | F47: 0 | G47: -0.011 | H47: 1.644 | I47: 1.644 | J47: 1.601
B48: RI | C48: 10/1/15 | D48: 2015-111 (10/15) | E48: -0.017 | F48: 0 | G48: -0.017 | H48: 1.504 | I48: 1.504 | J48: 1.541
B49: SC | C49: 10/1/15 | D49: 2015-106 (10/15) | E49: -0.08 | F49: 0 | G49: -0.08 | H49: 1.52 | I49: 1.52 | J49: 1.652
B50: SD | C50: 7/1/15 | D50: 2015-032 (7/15) | E50: -0.086 | F50: 0 | G50: -0.086 | H50: 1.513 | I50: 1.513 | J50: 1.649
A51: UTAH | B51: TN | C51: 12/1/14 | D51: 2014-057 (12/14) | E51: -0.077 | F51: 0 | G51: -0.077 | H51: 1.515 | I51: 1.515 | J51: 1.677 | L51: Automatic | M51: 4/1/16 | N51: 2015-117 (4/16) | O51: -0.073 | P51: 0 | Q51: -0.073 | R51: 1.515 | S51: 1.515
B52: TX * | C52: 2/1/16 | D52: 2015-123 (4/16) | E52: -0.261 | F52: 0.394 | G52: 0.015 | H52: 2.138 | I52: 2.778 | J52: 1.803
A53: VIRGINIA | B53: UT | C53: 3/1/16 | D53: 2015-141 (3/16) | E53: -0.085 | F53: 0 | G53: -0.085 | H53: 1.536 | I53: 1.536 | J53: 1.548
B54: VT | C54: 10/1/15 | D54: 2015-092 (10/15) | E54: -0.113 | F54: 0 | G54: -0.113 | H54: 1.504 | I54: 1.504 | J54: 1.534
A55: WEST VIRGINIA | B55: VA | C55: 10/1/15 | D55: 2015-095 (10/15) | E55: -0.049 | F55: 0 | G55: -0.049 | H55: 1.511 | I55: 1.511 | J55: 1.724
B56: WA + | C56: 10/1/15 | D56: 2015-099 (10/15) | E56: -0.067 | F56: 0 | G56: -0.067 | H56: 1.425 | I56: 1.425 | J56: 1.567
B57: WV | C57: 12/1/15 | D57: 2015-118 (12/15) | E57: -0.075 | F57: 0 | G57: -0.075 | H57: 1.55 | I57: 1.55
B58: WI | C58: 4/1/15 | D58: 2014-121 (4/15) | E58: -0.077 | F58: 0 | G58: -0.077 | H58: 1.504 | I58: 1.504 | J58: 1.634 | L58: Automatic | M58: 4/1/16 | N58: 2015-145 (4/16) | O58: 0.014 | P58: 0 | Q58: 0.014 | R58: 1.504 | S58: 1.504
B59: WY | C59: 1/1/16 | D59: 2015-103 (1/16) | E59: -0.128 | F59: 0 | G59: -0.128 | H59: 1.477 | I59: 1.477 | J59: 1.506
B62: * LCM cannot be placed on file for future revisions. | E62: + NHG - Current LCM = 1.330 | N62: + AIP, AIU LC filings not maintained after 4/2009
B63: Note: the PREM LCM also applies to LIQUOR LIABILITY COVERAGE (Subline Code 332) and
B64: OWNERS AND CONTRACTORS PROTECTIVE LIABILITY INSURANCE AND PRINCIPALS PROTECTIVE LIABILITY INSURANCE (Subline Code 335)

Sheet GL-DEVS
J1: =AUTO!S1 -> as of 02/04/16
A2: * * * * * * * * * * * COMMERCIAL General Liability LOSS COST MODIFICATIONS * * * * * * * * * * *
B4: Loss Cost | D4: NEW HAMPSHIRE COMPANIES | I4: NEW YORK COMPANIES +
A5: State | B5: Deviation * | D5: Sub-Standard | E5: Standard | F5: Preferred | G5: Super-Preferred | I5: Standard | J5: Preferred
A7: ALABAMA | E7: GSIC / INIC | F7: NHIC -10% | I7: AIG PCC / AHAC / C&I / NUFIC / ISOP
A8: ALASKA | D8: INIC +15% | E8: GSIC | F8: NHIC -10% | G8: AIG AC -15% | I8: AIG PCC / AHAC / C&I / NUFIC / ISOP
A9: ARIZONA | D9: INIC +15% | E9: GSIC | F9: NHIC -15% | G9: AIG AC -25% | I9: AIG PCC / AHAC / C&I / NUFIC / ISOP
A10: ARKANSAS | E10: GSIC | F10: NHIC -15% | G10: AIG AC -25% | I10: AIG PCC / AHAC / C&I / NUFIC / ISOP
A11: CALIFORNIA | B11: Prem= 53%, Prod= 20% | E11: NHIC / GSIC | I11: AIG PCC / AHAC / C&I / NUFIC / ISOP
A12: COLORADO | E12: GSIC / INIC | F12: NHIC -15% | G12: AIG AC -25% | I12: AIG PCC / AHAC / C&I / NUFIC / ISOP
A13: CONNECTICUT | E13: GSIC / INIC | F13: NHIC -15% | G13: AIG AC -25% | I13: AIG PCC / AHAC / C&I / NUFIC / ISOP
A14: DELAWARE | D14: INIC +15% | E14: GSIC | F14: NHIC -10% | G14: AIG AC -15% | I14: AIG PCC / AHAC / C&I / NUFIC / ISOP
A15: DIST. OF COLUMBIA | E15: GSIC / INIC / AIG AC | F15: NHIC -15% | I15: AIG PCC / AHAC / C&I / NUFIC / ISOP
A16: FLORIDA | B16: Prem=+30%, Prod=0% | D16: INIC +15% | E16: NHIC / GSIC / AIG AC | I16: AIG PCC / AHAC / C&I / NUFIC / ISOP
A17: GEORGIA | D17: INIC +15% | E17: GSIC | F17: NHIC -15% | G17: AIG AC -25% | I17: AIG PCC / AHAC / C&I / NUFIC / ISOP
A18: HAWAII | E18: GSIC | F18: NHIC -10% | G18: AIG AC -15% | I18: AIG PCC / AHAC / C&I / NUFIC / ISOP
A19: IDAHO | E19: GSIC / INIC | F19: NHIC -15% | G19: AIG AC -25% | I19: AIG PCC / AHAC / C&I / NUFIC / ISOP
A20: ILLINOIS | B20: Prem = 15% Prod = 30% | E20: GSIC / INIC | F20: NHIC -15% | G20: AIG AC -25% | I20: AIG PCC / AHAC / C&I / NUFIC / ISOP
A21: INDIANA | D21: INIC +15% | E21: GSIC | F21: NHIC -15% | G21: AIG AC -25% | I21: AIG PCC / AHAC / C&I / NUFIC / ISOP
A22: IOWA | E22: GSIC / INIC | F22: NHIC -15% | G22: AIG AC -25% | I22: AIG PCC / AHAC / C&I / NUFIC / ISOP
A23: KANSAS | E23: GSIC / INIC | F23: NHIC -15% | G23: AIG AC -25% | I23: AIG PCC / AHAC / C&I / NUFIC / ISOP
A24: KENTUCKY | D24: INIC +15% | E24: GSIC | F24: NHIC -15% | G24: AIG AC -25% | I24: AIG PCC / AHAC / C&I / NUFIC / ISOP
A25: LOUISIANA | B25: Prem=+65% Prod=0 | E25: NHIC / GSIC / INIC / AIG AC | I25: AIG PCC / AHAC / C&I / NUFIC / ISOP
A26: MAINE | E26: GSIC | F26: NHIC -15% | I26: AIG PCC / AHAC / C&I / NUFIC / ISOP
A27: MARYLAND | D27: INIC +15% | E27: GSIC | F27: NHIC -15% | G27: AIG AC -25% | I27: AIG PCC / AHAC / C&I / NUFIC / ISOP
A28: MASSACHUSETTS | E28: NHIC / GSIC | I28: AIG PCC / AHAC / C&I / NUFIC / ISOP
A29: MICHIGAN | E29: GSIC / INIC | F29: NHIC -15% | G29: AIG AC -25% | I29: AIG PCC / AHAC / C&I / NUFIC / ISOP
A30: MINNESOTA | B30: 0.121 | D30: INIC +15% | E30: GSIC | F30: NHIC -15% | I30: AIG PCC / AHAC / C&I / NUFIC / ISOP
A31: MISSISSIPPI | E31: GSIC | F31: NHIC -15% | G31: AIG AC -25% | I31: AIG PCC / AHAC / C&I / NUFIC / ISOP
A32: MISSOURI | D32: INIC +15% | E32: GSIC | F32: NHIC -15% | G32: AIG AC -25% | I32: AIG PCC / AHAC / C&I / NUFIC / ISOP
A33: MONTANA | E33: GSIC / INIC | F33: NHIC -15% | G33: AIG AC -25% | I33: AIG PCC / AHAC / C&I / NUFIC / ISOP
A34: NEBRASKA | E34: NHIC / GSIC / INIC / AIG AC | I34: AIG PCC / AHAC / C&I / NUFIC / ISOP
A35: NEVADA | E35: GSIC / INIC | F35: NHIC -15% | G35: AIG AC -25% | I35: AIG PCC / AHAC / C&I / NUFIC / ISOP
A36: NEW HAMPSHIRE | D36: INIC +15% | E36: GSIC | F36: NHIC -10% | G36: AIG AC -15% | I36: AIG PCC / AHAC / C&I / NUFIC / ISOP
A37: NEW JERSEY | E37: GSIC / INIC | F37: NHIC -10% | I37: AIG PCC / AHAC / C&I / NUFIC / ISOP
A38: NEW MEXICO | E38: GSIC / INIC | F38: NHIC -15% | G38: AIG AC -25% | I38: AIG PCC / AHAC / C&I / NUFIC / ISOP
A39: NEW YORK | B39: Prem= 20% Prod=0 | E39: NHIC / GSIC | F39: INIC Premises =-16.7%., Products = 0% | I39: AIG PCC / AHAC / C&I / NUFIC / ISOP | M39: NY corrected 4/4/14
A40: NORTH CAROLINA | B40: Prem= 13% Prod= 15% | E40: GSIC | F40: NHIC -15% | G40: AIG AC -25% | I40: AIG PCC / AHAC / C&I / NUFIC / ISOP
A41: NORTH DAKOTA | D41: INIC +15% | E41: GSIC | F41: NHIC -15% | G41: AIG AC -25% | I41: AIG PCC / AHAC / C&I / NUFIC / ISOP
A42: OHIO | D42: INIC +15% | E42: GSIC | F42: NHIC -15% | G42: AIG AC -25% | I42: AIG PCC / AHAC / C&I / NUFIC / ISOP
A43: OKLAHOMA | E43: NHIC / GSIC / INIC / AIG AC | I43: AIG PCC / AHAC / C&I / NUFIC / ISOP
A44: OREGON | D44: INIC +15% | E44: GSIC | F44: NHIC -15% | G44: AIG AC -25% | I44: AIG PCC / AHAC / C&I / NUFIC / ISOP
A45: PENNSYLVANIA | B45: 0.1 | D45: INIC +15% | E45: GSIC | F45: NHIC -10% | G45: AIG AC -15% | I45: AIG PCC / AHAC / C&I / NUFIC / ISOP
A46: RHODE ISLAND | E46: GSIC / INIC | F46: NHIC -15% | G46: AIG AC -25% | I46: AIG PCC / AHAC / C&I / NUFIC / ISOP
A47: SOUTH CAROLINA | E47: GSIC / INIC | F47: NHIC -15% | G47: AIG AC -25% | I47: AIG PCC / AHAC / C&I / NUFIC / ISOP
A48: SOUTH DAKOTA | D48: INIC +15% | E48: GSIC | F48: NHIC -15% | G48: AIG AC -25% | I48: AIG PCC / AHAC / C&I / NUFIC / ISOP
A49: TENNESSEE | D49: INIC +15% | E49: GSIC | F49: NHIC -15% | G49: AIG AC -25% | I49: AIG PCC / AHAC / C&I / NUFIC / ISOP
A50: TEXAS | D50: INIC +15% | E50: GSIC | F50: NHIC -15% | G50: AIG AC -25% | I50: AIG PCC / AHAC / C&I / NUFIC / ISOP
A51: UTAH | D51: INIC +15% | E51: GSIC | F51: NHIC -15% | G51: AIG AC -25% | I51: AIG PCC / AHAC / C&I / NUFIC / ISOP
A52: VERMONT | E52: GSIC / INIC | F52: NHIC -15% | I52: AIG PCC / AHAC / C&I / NUFIC / ISOP
A53: VIRGINIA | E53: GSIC | F53: NHIC -15% | G53: AIG AC -25% | I53: AIG PCC / AHAC / C&I / NUFIC / ISOP
A54: WASHINGTON | E54: GSIC / AIG AC / INIC | F54: NHIC -15% | I54: AIG PCC / AHAC / C&I / NUFIC / ISOP
A55: WEST VIRGINIA | D55: INIC +15% | E55: GSIC | F55: NHIC -15% | G55: AIG AC -25% | I55: AIG PCC / AHAC / C&I / NUFIC / ISOP
A56: WISCONSIN | D56: INIC +15% | E56: GSIC | F56: NHIC -15% | G56: AIG AC -25% | I56: AIG PCC / AHAC / C&I / NUFIC / ISOP
A57: WYOMING | E57: NHIC / GSIC / AIG AC / INIC | I57: AIG PCC / AHAC / C&I / NUFIC / ISOP
A59: * applies to all companies. | I59: + AIP, AIU LC filings not maintained after 4/2009

Sheet AUTO
A1: =2.7 % -> 0.027 | B1: COMMERCIAL AUTO LOSS COST FILING STATUS | J1: POOLED COMPANIES | S1: ="as of "&GL!R1 -> as of 02/04/16
A2: =2.3 % -> 0.023
A3: =2.7 % -> 0.027
B4: CURRENT: | L4: PENDING:
G5: Total
E6: Loss | G6: Basic | H6: LOSS COST | L6: Actuarial | M6: Pending/ | N6: Proposed/ | P6: Loss | R6: Total | S6: LOSS COST
C7: Effective | D7: Circular #'s | E7: Cost | F7: Expense | G7: Limits | H7: MULTIPLIER | L7: Support | M7: Approved/ | N7: Effective | O7: Circular #'s | P7: Cost | Q7: Expense | R7: B/L | S7: MULTIPLIER
B8: State | C8: Date | D8: (Edition Date) | E8: Change | F8: Change | G8: Change | H8: LIAB | I8: Garage | J8: PHYS D | L8: Prepared | M8: Automatic | N8: Date | O8: (Edition Date) | P8: Change | Q8: Change | R8: Change | S8: LIAB | T8: Garage | U8: PHYS D
A9: 9 | B9: AL | C9: 2/1/16 | D9: 2015-119 (2/16) | E9: 0.049 | F9: 0 | G9: 0.049 | H9: 2.269 | I9: 1.585 | J9: 1.674
B10: AK | C10: 9/1/14 | D10: 2014-130 (9/14) | E10: 0.025 | F10: 0 | G10: 0.025 | H10: 1.553 | J10: 1.558
B11: AZ | C11: 10/1/15 | D11: 2015-054 (10/15) | E11: 0.079 | F11: 0 | G11: 0.079 | H11: 1.508 | J11: 1.55
B12: AR | C12: 7/1/15 | D12: 2015-035 (7/15) | E12: 0.042 | F12: 0 | G12: 0.042 | H12: 1.696 | I12: 1.87 | J12: 1.719
B13: CA * | C13: 4/1/15 | D13: 2013-032 (7/13) | E13: -0.086 | F13: 0.075 | G13: -0.017 | H13: 2.155 | I13: 2.155 | J13: 2.007
B14: CO | C14: 1/1/16 | D14: 2015-115 (1/16) | E14: 0.069 | F14: 0 | G14: 0.069 | H14: 1.791 | I14: 1.563 | J14: 1.813
B15: CT | C15: 2/1/15 | D15: 2014-181 (2/15) | E15: 0.073 | F15: 0 | G15: 0.073 | H15: 1.711 | I15: 1.714 | J15: 1.732
B16: DE * | C16: 3/1/15 | D16: 2014-002 (6/14) | E16: 0.028 | F16: 0.042 | G16: 0.042 | H16: 2.2 | J16: 2.041 | M16: Not Yet Filed | O16: 2014-281 (6/15) | P16: 0.082
B17: DC | C17: 10/1/15 | D17: 2015-074 (10/15) | E17: -0.014 | F17: 0 | G17: -0.014 | H17: 1.512 | J17: 1.587
B18: FL * | C18: 8/1/15 | D18: 2014-274 (5/15) | E18: 0.026 | F18: 0.063 | G18: 0.091 | H18: 1.594 | I18: 1.822 | J18: 1.49 | M18: Not Yet Filed | O18: 2016-023 (8/16) | P18: 0.034
B19: GA | C19: 5/1/15 | D19: 2014-267 (5/15) | E19: 0.104 | F19: 0 | G19: 0.104 | H19: 1.843 | I19: 1.536 | J19: 1.858 | M19: Automatic | N19: 5/1/16 | O19: 2015-184 (5/16) | P19: 0.079 | Q19: 0 | R19: 0.079 | S19: 1.843 | T19: 1.536 | U19: 1.858
B20: HI * | C20: 6/1/10 | D20: 2010-01 | E20: -0.059 | F20: 0.003 | G20: -0.056 | H20: 1.546 | J20: 1.565
B21: ID | C21: 7/1/15 | D21: 2015-022 (7/15) | E21: 0.064 | F21: 0 | G21: 0.064 | H21: 1.614 | J21: 1.624
B22: IL * | C22: 1/1/15 | D22: 2014-111 (10/14) | E22: 0.082 | F22: 0.039 | G22: 0.124 | H22: 1.687 | I22: 1.691 | J22: 1.527 | M22: Not Yet Filed | O22: 2015-065 (10/15) | P22: 0.059
B23: IN | C23: 4/1/15 | D23: 2014-252 (4/15) | E23: 0.05 | F23: 0 | G23: 0.05 | H23: 1.833 | I23: 1.656 | J23: 1.838 | M23: Automatic | N23: 4/1/16 | O23: 2015-177 (4/16) | P23: 0.021 | Q23: 0 | R23: 0.021 | S23: 1.833 | T23: 1.656 | U23: 1.838
B24: IA | C24: 8/1/15 | D24: 2015-037 (8/15) | E24: 0.032 | F24: 0 | G24: 0.032 | H24: 1.62 | J24: 1.63
B25: KS | C25: 4/1/15 | D25: 2014-275 (4/15) | E25: 0.074 | F25: 0 | G25: 0.074 | H25: 1.567 | I25: 1.751 | J25: 1.591 | M25: Automatic | N25: 6/1/16 | O25: 2016-017 (6/16) | P25: 0.078 | Q25: 0 | R25: 0.078 | S25: 1.567 | T25: 1.751 | U25: 1.591
B26: KY | C26: 9/1/15 | D26: 2015-044 (9/15) | E26: 0.041 | F26: 0 | G26: 0.041 | H26: 1.826 | I26: 1.595 | J26: 1.838
B27: LA * | C27: 3/1/15 | D27: 2014-141 (11/14) | E27: 0.073 | F27: 0.007 | G27: 0.081 | H27: 1.682 | I27: 1.769 | J27: 1.855
B28: ME | C28: 2/1/16 | D28: 2015-117 (07/15) | E28: 0.052 | F28: 0 | G28: 0.052 | H28: 1.572 | I28: 1.497 | J28: 1.591
B29: MD | C29: 2/1/15 | D29: 2014-184 (2/15) | E29: 0.024 | F29: 0 | G29: 0.024 | H29: 1.846 | I29: 1.545 | J29: 1.852
B30: MA * #
B31: MI | C31: 7/1/15 | D31: 2015-040 (7/15) | E31: 0.083 | F31: 0 | G31: 0.083 | H31: 1.547 | I31: 1.695 | J31: 1.565
B32: MN | C32: 10/1/15 | D32: 2015-067 (10/15) | E32: 0.088 | F32: 0 | G32: 0.088 | H32: 1.654 | I32: 1.599 | J32: 1.664
B33: MS | C33: 8/1/15 | D33: 2015-063 (8/15) | E33: 0.024 | F33: 0 | G33: 0.024 | H33: 2.149 | I33: 1.786 | J33: 1.692
B34: MO | C34: 10/1/15 | D34: 2015-068 (10/15) | E34: 0.057 | F34: 0 | G34: 0.057 | H34: 1.581 | I34: 1.639 | J34: 1.59
B35: MT | C35: 7/1/14 | D35: 2014-008 (7/14) | E35: 0.077 | F35: 0 | G35: 0.077 | H35: 1.572 | J35: 1.6
B36: NE | C36: 3/1/15 | D36: 2014-243 (3/15) | E36: 0.009 | F36: 0 | G36: 0.009 | H36: 1.872 | I36: 1.474 | J36: 1.757
B37: NV | C37: 10/1/15 | D37: 2015-053 (10/15) | E37: 0.053 | F37: 0 | G37: 0.053 | H37: 1.813 | I37: 1.899 | J37: 1.824
B38: NH | C38: 10/1/15 | D38: 2015-052 (10/15) | E38: 0.069 | F38: 0 | G38: 0.069 | H38: 1.491 | J38: 1.541
B39: NJ | C39: 1/1/16 | D39: 2015-124 (1/16) | E39: 0.043 | F39: 0 | G39: 0.043 | H39: 1.777 | I39: 1.9 | J39: 1.664
B40: NM | C40: 10/1/14 | D40: 2014-098 (10/14) | E40: 0.031 | F40: 0 | G40: 0.031 | H40: 1.536 | J40: 1.555
B41: NY * | C41: 8/1/15 | D41: 2013-009 (5/14) | E41: -0.202 | F41: 0.378 | G41: 0.1 | H41: 2.29 | I41: 1.586 | J41: 1.789 | M41: Not Yet Filed Not Yet Filed | O41: 2015-173 (7/16) 2014-286 (7/15) | P41: 5.6% 8.0%
B42: NC | C42: 12/1/15 | D42: 2015-091 (12/15) | E42: 0.037 | F42: 0 | G42: 0.037 | H42: 1.511 | J42: 1.56
B43: ND | C43: 7/1/15 | D43: 2015-034 (7/15) | E43: 0.122 | F43: 0 | G43: 0.122 | H43: 1.538 | J43: 1.536
B44: OH | C44: 3/1/15 | D44: 2014-254 (3/15) | E44: 0.066 | F44: 0 | G44: 0.066 | H44: 1.775 | I44: 1.738 | J44: 1.799
B45: OK | C45: 8/1/15 | D45: 2015-050 (8/15) | E45: 0.073 | F45: 0 | G45: 0.073 | H45: 1.522 | I45: 1.63 | J45: 1.504
B46: OR | C46: 1/1/16 | D46: 2015-146 (1/16) | E46: 0.103 | F46: 0 | G46: 0.103 | H46: 1.63 | I46: 1.628 | J46: 1.49
B47: PA | C47: 7/1/15 | D47: 2014-269 (7/15) | E47: 0.024 | F47: 0 | G47: 0.024 | H47: 1.582 | I47: 2.423 | J47: 1.601 | M47: Automatic | N47: 7/1/16 | O47: 2015-191 (7/16) | P47: 0.022 | Q47: 0 | R47: 0.022 | S47: 1.582 | T47: 2.423 | U47: 1.601
B48: RI | C48: 3/1/16 | D48: 2015-151 (3/16) | E48: 0.073 | F48: 0 | G48: 0.073 | H48: 1.495 | J48: 1.541
B49: SC | C49: 7/1/15 | D49: 2015-032 (7/15) | E49: 0.092 | F49: 0 | G49: 0.092 | H49: 1.634 | J49: 1.652 | V49: 1.652
B50: SD | C50: 7/1/15 | D50: 2015-031 (7/15) | E50: 0.027 | F50: 0 | G50: 0.027 | H50: 1.637 | I50: 1.558 | J50: 1.649
A51: UTAH | B51: TN | C51: 2/1/16 | D51: 2015-132 (2/16) | E51: 0.045 | F51: 0 | G51: 0.045 | H51: 1.654 | I51: 1.575 | J51: 1.677
B52: TX * | C52: 3/1/15 | D52: 2014-030 (5/14) | E52: 0.096 | F52: -0.044 | G52: 0.048 | H52: 1.756 | I52: 2.091 | J52: 1.769 | M52: Approved | N52: 3/1/16 | O52: 2015-028 (6/15) | P52: 0.161 | Q52: 0 | R52: 0.161 | S52: 1.756 | T52: 2.091 | U52: 1.769
A53: VIRGINIA | B53: UT | C53: 1/1/16 | D53: 2015-106 (1/16) | E53: -0.023 | F53: 0 | G53: -0.023 | H53: 1.55 | J53: 1.548
B54: VT | C54: 1/1/16 | D54: 2015-110 (1/16) | E54: 0.059 | F54: 0 | G54: 0.059 | H54: 1.52 | J54: 1.534
A55: WEST VIRGINIA | B55: VA | C55: 3/1/15 | D55: 2014-259 (3/15) | E55: 0.139 | F55: 0 | G55: 0.139 | H55: 1.706 | I55: 1.863 | J55: 1.724
B56: WA + | C56: 10/1/15 | D56: 2015-072 (10/15) | E56: 0.101 | F56: 0 | G56: 0.101 | H56: 1.437 | J56: 1.567
B57: WV | C57: 1/1/15 | D57: 2014-224 (1/15) | E57: 0.012 | F57: 0 | G57: 0.012 | H57: 1.563 | J57: 1.59
B58: WI | C58: 10/1/15 | D58: 2015-056 (10/15) | E58: 0.042 | F58: 0 | G58: 0.042 | H58: 1.625 | J58: 1.634
B59: WY | C59: 7/1/15 | D59: 2015-010 (7/15) | E59: 0.041 | F59: 0 | G59: 0.041 | H59: 1.493 | J59: 1.506
B62: * LCM cannot be placed on file for future revisions. | F62: + NHG - Current LCM = | H62: 1.443 | J62: 1.572 | M62: # NHG at Mass. AIB Rates. Garage LCM displayed if not equal to LIABILITY.

Sheet AUTO-DEVS
L1: ="as of "&GL!R1 -> as of 02/04/16
A2: * * * * * * * * * * * COMMERCIAL AUTO LOSS COST MODIFICATIONS * * * * * * * * * * *
B4: Loss Cost Deviation* | F4: NEW HAMPSHIRE COMPANIES | K4: NEW YORK COMPANIES +
A5: State | B5: Liab. | C5: Garage | D5: Phys D. | F5: Sub-Standard | G5: Standard | H5: Preferred | I5: Super-Preferred | K5: Standard | L5: Preferred
A7: ALABAMA | B7: 0.5 | C7: 0 | D7: 0.1 | F7: INIC (a) | G7: GSIC | H7: NHIC -15% | K7: AIG PCC / AHAC / C&I / NUFIC / ISOP (aa)
A8: ALASKA | F8: INIC +15% | G8: GSIC | H8: NHIC -15% | I8: AIG AC -25% | K8: AIG PCC / AHAC / C&I / NUFIC / ISOP
A9: ARIZONA | F9: INIC +15% | G9: GSIC | H9: NHIC -15% | I9: AIG AC -25% | K9: AIG PCC / AHAC / C&I / NUFIC / ISOP
A10: ARKANSAS | B10: 0.14 | C10: 0.2 | D10: =B10 -> 0.14 | G10: GSIC | H10: NHIC -15% | I10: AIG AC -25% | K10: AIG PCC / AHAC / C&I / NUFIC / ISOP
A11: CALIFORNIA | B11: 0.35 | C11: 0.3 | D11: 0.1 | G11: NHIC | H11: GSIC -20% | K11: AIG PCC / AHAC / C&I / NUFIC / ISOP
A12: COLORADO | B12: 0.2 | C12: 0 | D12: =B12 -> 0.2 | G12: GSIC / INIC | H12: NHIC -15% (varies by class) | I12: AIG AC -25% (varies by class ) | K12: AIG PCC / AHAC / C&I / NUFIC / ISOP
A13: CONNECTICUT | B13: 0.15 | C13: 0.1 | D13: 0.15 | G13: GSIC / INIC | H13: NHIC -15% | I13: AIG AC -25% | K13: AIG PCC / AHAC / C&I / NUFIC / ISOP
A14: DELAWARE | B14: 0.288 | C14: 0.288 | D14: 0.254 | F14: INIC +15% | G14: GSIC | H14: NHIC -10% | I14: AIG AC -15% | K14: AIG PCC / AHAC / C&I / NUFIC / ISOP
A15: DIST. OF COLUMBIA | G15: GSIC / INIC / AIG AC | H15: NHIC -15% | K15: AIG PCC / AHAC / C&I / NUFIC / ISOP
A16: FLORIDA | B16: 0.155 | C16: 0.32 | D16: -0.01 | F16: INIC +15% | G16: GSIC | H16: NHIC -10% | I16: AIG AC -15% | K16: AIG PCC / AHAC / C&I / NUFIC / ISOP
A17: GEORGIA | B17: 0.2 | C17: 0 | D17: 0.2 | F17: INIC +15% | G17: GSIC | H17: NHIC -15% | I17: AIG AC -25% | K17: AIG PCC / AHAC / C&I / NUFIC / ISOP
A18: HAWAII | G18: NHIC | K18: AHAC / NUFIC / ISOP
A19: IDAHO | B19: 0.08 | C19: 0.08 | D19: 0.08 | G19: GSIC / INIC | H19: NHIC -15% | I19: AIG AC -25% | K19: AIG PCC / AHAC / C&I / NUFIC / ISOP
A20: ILLINOIS | B20: 0.04 | C20: 0.12 | D20: 0.04 | G20: GSIC / INIC | H20: NHIC -15% | I20: AIG AC -25% | K20: AIG PCC / AHAC / C&I / NUFIC / ISOP
A21: INDIANA | B21: 0.25 | C21: 0.08 | D21: 0.25 | F21: INIC +15% | G21: GSIC | H21: NHIC -15% | I21: AIG AC -25% | K21: AIG PCC / AHAC / C&I / NUFIC / ISOP
A22: IOWA | B22: 0.1 | C22: 0.1 | D22: 0.1 | G22: GSIC / INIC | H22: NHIC -15% | I22: AIG AC -25% | K22: AIG PCC / AHAC / C&I / NUFIC / ISOP
A23: KANSAS | B23: 0.05 | C23: 0.12 | D23: 0.05 | G23: GSIC / INIC | H23: NHIC -15% | I23: AIG AC -25% | K23: AIG PCC / AHAC / C&I / NUFIC / ISOP
A24: KENTUCKY | B24: 0.2 | C24: 0 | D24: 0.2 | F24: INIC +15% | G24: GSIC | H24: NHIC -15% | I24: AIG AC -25% | K24: AIG PCC / AHAC / C&I / NUFIC / ISOP
A25: LOUISIANA | C25: 0.5 | G25: NHIC / GSIC | K25: AIG PCC / AHAC / C&I / NUFIC / ISOP
A26: MAINE | B26: 0.05 | C26: 0 | D26: 0.05 | G26: GSIC | H26: NHIC -15% | K26: AIG PCC / AHAC / C&I / NUFIC / ISOP
A27: MARYLAND | B27: 0.25 | C27: 0 | D27: 0.25 | F27: INIC +15% | G27: GSIC | H27: NHIC -15% | I27: AIG AC -25% | K27: AIG PCC / AHAC / C&I / NUFIC / ISOP
A28: MASSACHUSETTS | G28: NHIC / GSIC | K28: AIG PCC / AHAC / C&I / NUFIC / ISOP
A29: MICHIGAN | B29: 0.05 | C29: 0.095 | D29: 0.05 | G29: GSIC / INIC | H29: NHIC -15% | I29: AIG AC -25% | K29: AIG PCC / AHAC / C&I / NUFIC / ISOP
A30: MINNESOTA | B30: 0.12 | C30: 0.035 | D30: 0.12 | F30: INIC +15% | G30: GSIC | H30: NHIC -15% | K30: AIG PCC / AHAC / C&I / NUFIC / ISOP
A31: MISSISSIPPI | B31: 0.3 | C31: 0 | D31: 0 | G31: GSIC | H31: NHIC & Aud Ind. -15% | I31: AIG AC -25% | K31: AIG PCC / AHAC / C&I / NUFIC / ISOP
A32: MISSOURI | B32: 0.07 | C32: 0.06 | D32: =B32 -> 0.07 | F32: INIC +15% | G32: GSIC | H32: NHIC -15% | I32: AIG AC -25% | K32: AIG PCC / AHAC / C&I / NUFIC / ISOP
A33: MONTANA | G33: GSIC / INIC | H33: NHIC -15% | I33: AIG AC -25% | K33: AIG PCC / AHAC / C&I / NUFIC / ISOP
A34: NEBRASKA | B34: 0.27 | C34: 0 | D34: =B34 -> 0.27 | G34: NHIC / GSIC / AIG AC / INIC | K34: AIG PCC / AHAC / C&I / NUFIC / ISOP
A35: NEVADA | B35: 0.2 | C35: 0.2 | D35: =B35 -> 0.2 | G35: GSIC / INIC | H35: NHIC -15% | I35: AIG AC -25% | K35: AIG PCC / AHAC / C&I / NUFIC / ISOP
A36: NEW HAMPSHIRE | F36: INIC +15% | G36: GSIC | H36: NHIC -15% | I36: AIG AC -25% | K36: AIG PCC / AHAC / C&I / NUFIC / ISOP
A37: NEW JERSEY | B37: 0.1 | C37: 0.1 | D37: =B37 -> 0.1 | G37: NHIC / GSIC / INIC | K37: AIG PCC / AHAC / C&I / NUFIC / ISOP
A38: NEW MEXICO | G38: GSIC / INIC | H38: NHIC -15% (varies by class) | I38: AIG AC -25% (varies by class ) | K38: AIG PCC / AHAC / C&I / NUFIC / ISOP
A39: NEW YORK | B39: 0.444 | C39: 0 | D39: 0.122 | G39: NHIC | H39: GSIC -15% | I39: INIC -20% | K39: AIG PCC / AHAC / C&I / NUFIC / ISOP | O39: Pending | P39: 4/1/14 | Q39: GSIC: Liab=-12.7% Phys = -15% | R39: INIC: Liab=-17.9% Phys =-20%
A40: NORTH CAROLINA | G40: GSIC / AIG AC | H40: NHIC -15% | K40: AIG PCC / AHAC / C&I / NUFIC / ISOP
A41: NORTH DAKOTA | F41: INIC +15% | G41: GSIC | H41: NHIC -15% | I41: AIG AC -25% | K41: AIG PCC / AHAC / C&I / NUFIC / ISOP
A42: OHIO | B42: 0.2 | C42: 0.1 | D42: =B42 -> 0.2 | G42: GSIC / INIC | H42: NHIC -15% | I42: AIG AC -25% | K42: AIG PCC / AHAC / C&I / NUFIC / ISOP | P42: Commerce and Industry Insurance Company 2.290 1.789 | T42: Will need to refile the NY state EXCEPTION page
A43: OKLAHACOMA | C43: 0.05 | G43: NHIC / GSIC / INIC / AIG AC | K43: AIG PCC / AHAC / C&I / NUFIC / ISOP | P43: Granite State Insurance Company 1.945 1.521
A44: OREGON | B44: 0.1 | C44: 0.05 | D44: 0 | F44: INIC +15% | G44: GSIC | H44: NHIC -15% | I44: AIG AC -25% | K44: AIG PCC / AHAC / C&I / NUFIC / ISOP | P44: Illinois National Insurance Company 1.831 1.432
A45: PENNSYLVANIA | B45: 0.06 | C45: 0.55 | D45: =B45 -> 0.06 | F45: INIC +15% | G45: GSIC | H45: NHIC -10% | I45: AIG AC -15% | K45: AIG PCC / AHAC / C&I / NUFIC / ISOP
A46: RHODE ISLAND | G46: NHIC / GSIC / AIG AC / INIC | K46: AIG PCC / AHAC / C&I / NUFIC / ISOP | Q46: 2.229 | R46: 1.789
A47: SOUTH CAROLINA | B47: 0.1 | C47: 0.1 | D47: =B47 -> 0.1 | G47: GSIC / INIC | H47: NHIC -15% | I47: AIG AC -25% | K47: AIG PCC / AHAC / C&I / NUFIC / ISOP | Q47: =ROUND(Q46*0.873,3) -> 1.946 | R47: =ROUND(R46*0.85,3) -> 1.521
A48: SOUTH DAKOTA | B48: 0.1 | C48: 0 | D48: =B48 -> 0.1 | F48: INIC +15% | G48: GSIC | H48: NHIC -15% | I48: AIG AC -25% | K48: AIG PCC / AHAC / C&I / NUFIC / ISOP | Q48: =Q47/Q46-1 -> -0.1269627636 | R48: =R47/R46-1 -> -0.14980436
A49: TENNESSEE | B49: 0.1 | C49: 0 | D49: =B49 -> 0.1 | F49: INIC +15% | G49: GSIC | H49: NHIC -15% | I49: AIG AC -25% | K49: AIG PCC / AHAC / C&I / NUFIC / ISOP
A50: TEXAS | B50: 0.15 | C50: 0.265 | D50: 0.125 | F50: INIC +13% ** | G50: GSIC | H50: NHIC -13.1% | I50: AIG AC -21.8% | K50: AIG PCC / AHAC / C&I / NUFIC / ISOP | Q50: 2.229 | R50: 1.789
A51: UTAH | F51: INIC +15% | G51: GSIC | H51: NHIC -15% | I51: AIG AC -25% | K51: AIG PCC / AHAC / C&I / NUFIC / ISOP | Q51: =ROUND(Q50*0.821,3) -> 1.83 | R51: =ROUND(R50*0.8,3) -> 1.431
A52: VERMONT | G52: GSIC / INIC | H52: NHIC -15% | K52: AIG PCC / AHAC / C&I / NUFIC / ISOP | Q52: =Q51/Q50-1 -> -0.1790040377 | R52: =R51/R50-1 -> -0.2001117943
A53: VIRGINIA | B53: 0.15 | C53: 0.2 | D53: =B53 -> 0.15 | G53: GSIC | H53: NHIC -15% | I53: AIG AC -25% | K53: AIG PCC / AHAC / C&I / NUFIC / ISOP
A54: WASHINGTON | G54: GSIC / AIG AC / INIC | H54: NHIC -15% | K54: AIG PCC / AHAC / C&I / NUFIC / ISOP
A55: WEST VIRGINIA | F55: INIC +15% | G55: GSIC | H55: NHIC -10% | I55: AIG AC -25% | K55: AIG PCC / AHAC / C&I / NUFIC / ISOP
A56: WISCONSIN | B56: 0.1 | C56: 0.1 | D56: =B56 -> 0.1 | F56: INIC +15% | G56: GSIC | H56: NHIC -15% | I56: AIG AC -25% | K56: AIG PCC / AHAC / C&I / NUFIC / ISOP
A57: WYOMING | G57: NHIC / GSIC / AIG AC / INIC | K57: AIG PCC / AHAC / C&I / NUFIC / ISOP
A59: * LC Deviation applies to all companies. | K59: + AIP, AIU, AUD, LC filings not maintained after 4/2009
A60: ** INIC, combined Tier & LC Deviation amount is limited to +30% by regulation.
A61: (a) INIC in AL: Liab=1.615, Phys=1.650.
A62: (aa) ISOP in AL: Liab=1.664, Phys=1.674.

Sheet FIRE
B1: COMMERCIAL FIRE LOSS COST FILING STATUS | H1: POOLED COMPANIES | P1: =GL!R1 -> 02/04/16
B4: CURRENT: | J4: PENDING:
E6: Loss | J6: Actuarial | K6: Pending/ | L6: Proposed/ | N6: Loss
C7: Effective | D7: Circular #'s | E7: Cost | F7: Expense | G7: Overall | H7: Loss Cost | J7: Support | K7: Approved/ | L7: Effective | M7: Circular #'s | N7: Cost | O7: Expense | P7: Overall | Q7: Loss Cost
B8: State | C8: Date | D8: (Edition Date) | E8: Change | F8: Change | G8: Change | H8: Multiplier | J8: Prepared | K8: Automatic | L8: Date | M8: (Edition Date) | N8: Change | O8: Change | P8: Change | Q8: Multiplier
B9: AL | C9: 10/1/15 | D9: 2015-058 (10/15) | E9: 0.036 | F9: 0 | G9: 0.036 | H9: 1.555
B10: AK | C10: 4/1/15 | D10: 2014-136 (4/15) | E10: -0.04 | F10: 0 | G10: -0.04 | H10: 1.531
B11: AZ | C11: 12/1/15 | D11: 2015-061 (12/15) | E11: 0.015 | F11: 0 | G11: 0.015 | H11: 1.488
B12: AR | C12: 10/1/15 | D12: 2015-052 (10/15) | E12: -0.017 | F12: 0 | G12: -0.017 | H12: 1.513
B13: CA * | C13: 2/1/15 | D13: 2014-024 (7/14) | E13: -0.086 | F13: 0.1236323851 | G13: 0.027 | H13: 2.632
B14: CO | C14: 7/1/15 | D14: 2015-017 (7/15) | E14: 0.03 | F14: 0 | G14: 0.03 | H14: 1.515
B15: CT | C15: 2/1/16 | D15: 2015-093 (2/16) | E15: 0.05 | F15: 0 | G15: 0.05 | H15: 1.476
B16: DE * | C16: 9/1/15 | D16: 2015-050 (9/15) | E16: -0.04 | F16: 0 | G16: -0.04 | H16: 1.694
B17: DC | C17: 10/1/14 | D17: 2014-070 (10/14) | E17: -0.047 | F17: 0 | G17: -0.047 | H17: 1.508
B18: FL * | C18: 6/1/04 | D18: 2003-151/200 (4/04) | E18: -0.152 | F18: 0.253 | G18: 0.063 | H18: 1.82 | K18: Not Yet Filed | M18: 2015-060 (9/15) | N18: 0.106
B19: GA | C19: 9/1/15 | D19: 2015-029 (9/15) | E19: -0.013 | F19: 0 | G19: -0.013 | H19: 1.563
B20: HI * | C20: 9/1/14 | D20: 2013-12 HIB Pub 130022 | E20: -0.081 | F20: 0.092 | G20: 0.004 | H20: 1.747
B21: ID | C21: 9/1/15 | D21: 2015-DP-03 (9/15) | E21: 0.037 | F21: 0 | G21: 0.037 | H21: 1.504
B22: IL * | C22: 4/1/12 | D22: 2011-127 (4/12) | E22: -0.027 | F22: 0 | G22: -0.027 | H22: 1.504 | K22: Not Yet Filed | L22: 5/1/15 | M22: 2014-130 (5/15) | N22: -0.023 | Q22: 1.504
B23: IN | C23: 4/1/15 | D23: 2014-138 (4/15) | E23: 0.023 | F23: 0 | G23: 0.023 | H23: 1.515
B24: IA | C24: 1/1/16 | D24: 2015-078 (1/16) | E24: 0.042 | F24: 0 | G24: 0.042 | H24: 1.49
B25: KS | C25: 1/1/16 | D25: 2015-091 (1/16) | E25: 0.06 | F25: 0 | G25: 0.06 | H25: 1.565
B26: KY | C26: 2/1/16 | D26: 2015-082 (2/16) | E26: 0.043 | F26: 0 | G26: 0.043 | H26: 1.534
B27: LA * | D27: LIRC
B28: ME | C28: 12/1/15 | D28: 2015-068 (12/15) | E28: -0.012 | F28: 0 | G28: -0.012 | H28: 1.548
B29: MD | C29: 9/1/13 | D29: 2013-035 (9/13) | E29: -0.021 | F29: 0 | G29: -0.021 | H29: 1.483
B30: MA * | C30: 10/1/14 | D30: 2012-219 (1/13) | E30: 0.089 | F30: -0.037 | G30: 0.049 | H30: 1.466 | K30: Not Yet Filed Not Yet Filed | M30: 2015-064 (10/15) 2014-129 (1/15) | N30: -6.1% -2.8%
B31: MI | C31: 1/1/16 | D31: 2015-074 (1/16) | E31: 0.061 | F31: 0 | G31: 0.061 | H31: 1.499
B32: MN * | C32: 5/1/15 | D32: 2014-152 (5/15) | E32: 0.031 | F32: 0 | G32: 0.031 | H32: 1.527 | K32: Not Yet Filed | M32: 2016-001 (7/16) | N32: 0.05
B33: MS | C33: 3/1/01 | D33: MSRB Bulletin 2000-01 (3/01) | E33: -0.116 | F33: 0.026 | G33: -0.093 | H33: 1.52
B34: MO | C34: 7/1/14 | D34: 2014-012 (7/14) | E34: 0.052 | F34: 0 | G34: 0.052 | H34: 1.515
B35: MT | C35: 4/1/14 | D35: 2013-180 (4/14) | E35: 0.043 | F35: 0 | G35: 0.043 | H35: 1.536
B36: NE | C36: 1/1/16 | D36: 2015-083 (1/16) | E36: 0.045 | F36: 0 | G36: 0.045 | H36: 1.511
B37: NV | C37: 12/1/14 | D37: 2014-103 (12/14) | E37: -0.035 | F37: 0 | G37: -0.035 | H37: 1.55
B38: NH | C38: 11/1/14 | D38: 2014-075 (11/14) | E38: -0.014 | F38: 0 | G38: -0.014 | H38: 1.483
B39: NJ | C39: 9/1/15 | D39: 2015-013 (9/15) | E39: -0.035 | F39: 0 | G39: -0.035 | H39: 1.52
B40: NM | C40: 4/1/15 | D40: 2014-135 (4/15) | E40: 0.036 | F40: 0 | G40: 0.036 | H40: 1.477
B41: NY * | C41: 4/1/14 | D41: 2013-060 & 068 (9/13) | E41: -0.223 | F41: 0.217 | G41: -0.054 | H41: 1.761 | K41: Not Yet Filed | M41: 2015-099 (5/16) | N41: -0.067
B42: NC | C42: 10/1/15 | D42: 2015-049 (10/15) | E42: -0.016 | F42: 0 | G42: -0.016 | H42: 1.58
B43: ND | C43: 7/1/13 | D43: 2013-032 (7/13) | E43: 0.047 | F43: 0 | G43: 0.047 | H43: 1.511
B44: OH | C44: 4/1/14 | D44: 2013-219 (4/14) | E44: 0.086 | F44: 0 | G44: 0.086 | H44: 1.52
B45: OK | C45: 4/1/15 | D45: 2014-148 (4/15) | E45: 0.028 | F45: 0 | G45: 0.028 | H45: 1.529
B46: OR | C46: 1/1/16 | D46: 2015-084 (1/16) | E46: 0.016 | F46: 0 | G46: 0.016 | H46: 1.512
B47: PA | C47: 10/1/14 | D47: 2014-081 (10/14) | E47: -0.071 | F47: 0 | G47: -0.071 | H47: 1.483
B48: RI | C48: 9/1/14 | D48: 2014-084 (9/14) | E48: -0.116 | F48: 0 | G48: -0.116 | H48: 1.46
B49: SC | C49: 10/1/14 | D49: 2014-090(10/14) | E49: -0.08 | F49: 0 | G49: -0.08 | H49: 1.542
B50: SD | C50: 1/1/15 | D50: 2014-104 (1/15) | E50: 0.01 | F50: 0 | G50: 0.01 | H50: 1.527
A51: UTAH | B51: TN | C51: 1/1/16 | D51: 2015-077 (1/16) | E51: 0.073 | F51: 0 | G51: 0.073 | H51: 1.527
B52: TX * | C52: 2/6/12 | D52: 2011-108 (12/11) | E52: -0.097 | F52: 0.025 | G52: -0.074 | H52: 1.616 | K52: Not Yet Filed | M52: 2014-131 (2/15) | N52: 0.087 | T52: JF: miscellaneous loss costs approved with effective date of 2/1/2015. No LCM changes. No rate impact.
A53: VIRGINIA | B53: UT | C53: 4/1/15 | D53: 2014-147 (4/15) | E53: 0.049 | F53: 0 | G53: 0.049 | H53: 1.522
B54: VT | C54: 10/1/14 | D54: 2014-062 (10/14) | E54: -0.035 | F54: 0 | G54: -0.035 | H54: 1.515
A55: WEST VIRGINIA | B55: VA | C55: 12/1/15 | D55: 2015-076 (12/15) | E55: -0.013 | F55: 0 | G55: -0.013 | H55: 1.522
B56: WA + | C56: 3/1/09 | D56: 2008-22 (3/09) | E56: -0.196 | F56: 0 | G56: -0.196 | H56: 1.709
B57: WV | C57: 1/1/16 | D57: 2015-094 (1/16) | E57: 0.012 | F57: 0 | G57: 0.012 | H57: 1.53
B58: WI | C58: 4/1/15 | D58: 2014-139 (4/15) | E58: -0.016 | F58: 0 | G58: -0.016 | H58: 1.483
B59: WY | C59: 4/1/15 | D59: 2014-146 (4/15) | E59: 0.021 | F59: 0 | G59: 0.021 | H59: 1.457
B62: * LCM cannot be placed on file for future revisions. | E62: + NHG - Current LCM = | H62: 1.718 | L62: + AIU LC filings not maintained after 4/2009

Sheet FIRE-DEVS
J1: ='AUTO-DEVS'!L1 -> as of 02/04/16
A2: * * * * * * * * * * * COMMERCIAL FIRE LOSS COST MODIFICATIONS * * * * * * * * * * *
B4: Loss Cost | D4: NEW HAMPSHIRE COMPANIES | I4: NEW YORK COMPANIES +
A5: State | B5: Deviation * | D5: Sub-Standard | E5: Standard | F5: Preferred | G5: Super-Preferred | I5: Standard | J5: Preferred
A7: ALABAMA | E7: GSIC / INIC | F7: NHIC -15% | I7: AIG PCC / AHAC / NUFIC / C&I / ISOP
A8: ALASKA | D8: INIC +15% | E8: GSIC | F8: NHIC -10% | G8: AIG AC -15% | I8: AIG PCC / AHAC / NUFIC / C&I / ISOP
A9: ARIZONA | D9: INIC +15% | E9: GSIC | F9: NHIC -15% | G9: AIG AC -25% | I9: AIG PCC / AHAC / NUFIC / C&I / ISOP
A10: ARKANSAS | E10: GSIC | F10: NHIC -15% | G10: AIG AC -25% | I10: AIG PCC / AHAC / NUFIC / C&I / ISOP
A11: CALIFORNIA | B11: 0.59 | E11: NHIC / GSIC | L11: Filed Mod of +59% in CA , approved effective 7/1/13
A12: COLORADO | E12: GSIC / INIC | F12: NHIC -15% | G12: AIG AC -25% | I12: AIG PCC / AHAC / NUFIC / C&I / ISOP
A13: CONNECTICUT | E13: GSIC / INIC | F13: NHIC -15% | G13: AIG AC -25% | I13: AIG PCC / AHAC / NUFIC / C&I / ISOP
A14: DELAWARE | D14: INIC +15% | E14: GSIC | F14: NHIC -15% | G14: AIG AC -25% | I14: AIG PCC / AHAC / NUFIC / C&I / ISOP
A15: DIST. OF COLUMBIA | E15: GSIC / INIC | F15: NHIC -15% | G15: AIG AC -25% | I15: AIG PCC / AHAC / NUFIC / C&I / ISOP
A16: FLORIDA | B16: 0.25 | D16: INIC +15% | E16: GSIC | F16: NHIC -10% | G16: AIG AC -25% | I16: AIG PCC / AHAC / NUFIC / C&I / ISOP
A17: GEORGIA | D17: INIC +15% | E17: GSIC | F17: NHIC -15% | G17: AIG AC -25% | I17: AIG PCC / AHAC / NUFIC / C&I / ISOP
A18: HAWAII | E18: GSIC | F18: NHIC -15% | G18: AIG AC -25% | I18: AIG PCC / AHAC / NUFIC / C&I / ISOP | L18: 9/1/14 | M18: HIB Pub 130022, 130054 | N18: GSIC / INIC | O18: NHIC -15% | P18: AIG AC -25% | Q18: 1.474
A19: IDAHACO | E19: GSIC / INIC | F19: NHIC -15% | G19: AIG AC -25% | I19: AIG PCC / AHAC / NUFIC / C&I / ISOP
A20: ILLINOIS | E20: GSIC / INIC | F20: NHIC -15% | G20: AIG AC -25% | I20: AIG PCC / AHAC / NUFIC / C&I / ISOP
A21: INDIANA | D21: INIC +15% | E21: GSIC | F21: NHIC -15% | G21: AIG AC -25% | I21: AIG PCC / AHAC / NUFIC / C&I / ISOP
A22: IOWA | E22: GSIC / INIC | F22: NHIC -15% | G22: AIG AC -25% | I22: AIG PCC / AHAC / NUFIC / C&I / ISOP
A23: KANSAS | E23: GSIC / INIC | F23: NHIC -15% | G23: AIG AC -25% | I23: AIG PCC / AHAC / NUFIC / C&I / ISOP
A24: KENTUCKY | D24: INIC +15% | E24: GSIC | F24: NHIC -15% | G24: AIG AC -25% | I24: AIG PCC / AHAC / NUFIC / C&I / ISOP
A25: LOUISIANA | D25: GSIC / INIC /AIG AC | E25: GSIC | F25: NHIC -15% | G25: INIC -15% | I25: AIG PCC / AHAC / NUFIC / C&I / ISOP
A26: MAINE | E26: GSIC | F26: NHIC -15% | I26: AIG PCC / AHAC / NUFIC / C&I / ISOP
A27: MARYLAND | D27: INIC +15% | E27: GSIC | F27: NHIC -15% | G27: AIG AC -25% | I27: AIG PCC / AHAC / NUFIC / C&I / ISOP
A28: MASSACHUSETTS | B28: =0.835-1 -> -0.165 | E28: GSIC | F28: NHIC -15% | I28: AIG PCC / AHAC / NUFIC / C&I / ISOP
A29: MICHIGAN | E29: GSIC / INIC | F29: NHIC -15% | G29: AIG AC -25% | I29: AIG PCC / AHAC / NUFIC / C&I / ISOP
A30: MINNESOTA | D30: INIC +15% | E30: GSIC | F30: NHIC -15% | I30: AIG PCC / AHAC / NUFIC / C&I / ISOP
A31: MISSISSIPPI | E31: GSIC | F31: NHIC -15% | G31: AIG AC -25% | I31: AIG PCC / AHAC / NUFIC / C&I / ISOP
A32: MISSOURI | D32: INIC +15% | E32: GSIC | F32: NHIC -15% | G32: AIG AC -25% | I32: AIG PCC / AHAC / NUFIC / C&I / ISOP
A33: MONTANA | E33: GSIC / INIC | F33: NHIC -15% | G33: AIG AC -25% | I33: AIG PCC / AHAC / NUFIC / C&I / ISOP
A34: NEBRASKA | E34: NHIC / GSIC / INIC / AIG AC | I34: AIG PCC / AHAC / NUFIC / C&I / ISOP
A35: NEVADA | E35: GSIC / INIC | F35: NHIC -15% | G35: AIG AC -25% | I35: AIG PCC / AHAC / NUFIC / C&I / ISOP
A36: NEW HAMPSHIRE | D36: INIC +15% | E36: GSIC | F36: NHIC -15% | G36: AIG AC -25% | I36: AIG PCC / AHAC / NUFIC / C&I / ISOP
A37: NEW JERSEY | E37: GSIC / INIC | F37: NHIC -15% | I37: AIG PCC / AHAC / NUFIC / C&I / ISOP
A38: NEW MEXICO | E38: GSIC / INIC | F38: NHIC -15% | G38: AIG AC -25% | I38: AIG PCC / AHAC / NUFIC / C&I / ISOP
A39: NEW YORK | E39: NHIC / GSIC / INIC | I39: AIG PCC / AHAC / NUFIC / C&I / ISOP
A40: NORTH CAROLINA | E40: GSIC | F40: NHIC -15% | G40: AIG AC -25% | I40: AIG PCC / AHAC / NUFIC / C&I / ISOP
A41: NORTH DAKOTA | D41: INIC +15% | E41: GSIC | F41: NHIC -15% | G41: AIG AC -25% | I41: AIG PCC / AHAC / NUFIC / C&I / ISOP
A42: OHIO | E42: GSIC / INIC | F42: NHIC -15% | G42: AIG AC -25% | I42: AIG PCC / AHAC / NUFIC / C&I / ISOP
A43: OKLAHACOMA | E43: NHIC / GSIC / INIC / AIG AC | I43: AIG PCC / AHAC / NUFIC / C&I / ISOP
A44: OREGON | D44: INIC +15% | E44: GSIC | F44: NHIC -15% | G44: AIG AC -25% | I44: AIG PCC / AHAC / NUFIC / C&I / ISOP
A45: PENNSYLVANIA | D45: INIC +15% | E45: GSIC | F45: NHIC -15% | G45: AIG AC -25% | I45: AIG PCC / AHAC / NUFIC / C&I / ISOP
A46: RHODE ISLAND | E46: GSIC / INIC | F46: NHIC -15% | G46: AIG AC -25% | I46: AIG PCC / AHAC / NUFIC / C&I / ISOP
A47: SOUTH CAROLINA | E47: GSIC / INIC | F47: NHIC -15% | G47: AIG AC -25% | I47: AIG PCC / AHAC / NUFIC / C&I / ISOP
A48: SOUTH DAKOTA | D48: INIC +15% | E48: GSIC | F48: NHIC -15% | G48: AIG AC -25% | I48: AIG PCC / AHAC / NUFIC / C&I / ISOP
A49: TENNESSEE | E49: GSIC / INIC | F49: NHIC -15% | G49: AIG AC -25% | I49: AIG PCC / AHAC / NUFIC / C&I / ISOP
A50: TEXAS | D50: INIC +15% | E50: GSIC | F50: NHIC -15% | G50: AIG AC -25% | I50: AIG PCC / AHAC / NUFIC / C&I / ISOP
A51: UTAH | D51: INIC +15% | E51: GSIC | F51: NHIC -15% | G51: AIG AC -25% | I51: AIG PCC / AHAC / NUFIC / C&I / ISOP
A52: VERMONT | E52: GSIC / INIC | F52: NHIC -15% | I52: AIG PCC / AHAC / NUFIC / C&I / ISOP
A53: VIRGINIA | E53: GSIC | F53: NHIC -15% | G53: AIG AC -25% | I53: AIG PCC / AHAC / NUFIC / C&I / ISOP
A54: WASHINGTON | E54: GSIC / INIC | F54: NHIC -15% | I54: AIG PCC / AHAC / NUFIC / C&I / ISOP
A55: WEST VIRGINIA | D55: INIC +15% | E55: GSIC | F55: NHIC -15% | G55: AIG AC -25% | I55: AIG PCC / AHAC / NUFIC / C&I / ISOP
A56: WISCONSIN | D56: INIC +15% | E56: GSIC | F56: NHIC -15% | G56: AIG AC -25% | I56: AIG PCC / AHAC / NUFIC / C&I / ISOP
A57: WYOMING | E57: NHIC / GSIC / AIG AC / INIC | I57: AIG PCC / AHAC / NUFIC / C&I / ISOP
A59: * applies to all companies. | I59: + AIP, AIU LC filings not maintained after 4/2009

Sheet CRIME
B1: COMMERCIAL CRIME (ISO Crime & Fidelity) LOSS COST FILING STATUS | H1: POOLED COMPANIES | P1: =GL!R1 -> 02/04/16
B4: CURRENT: | J4: PENDING:
E6: Loss | J6: Actuarial | K6: Pending/ | L6: Proposed/ | N6: Loss
C7: Effective | D7: Circular #'s | E7: Cost | F7: Expense | G7: Overall | H7: Loss Cost | J7: Support | K7: Approved/ | L7: Effective | M7: Circular #'s | N7: Cost | O7: Expense | P7: Overall | Q7: Loss Cost
B8: State | C8: Date | D8: (Edition Date) | E8: Change | F8: Change | G8: Change | H8: Multiplier | J8: Prepared | K8: Automatic | L8: Date | M8: (Edition Date) | N8: Change | O8: Change | P8: Change | Q8: Multiplier
B9: ALABAMA | C9: 6/1/14 | D9: 2014-003 (6/14) | E9: -0.11 | F9: 0 | G9: -0.11 | H9: 1.511 | K9: Automatic | L9: 6/1/16 | M9: 2015-037 (6/16) | N9: -0.121 | O9: 0 | P9: -0.121 | Q9: 1.511
B10: ALASKA | C10: 6/1/14 | D10: 2014-003 (6/14) | E10: -0.11 | F10: 0 | G10: -0.11 | H10: 1.502 | K10: Automatic | L10: 6/1/16 | M10: 2015-037 (6/16) | N10: -0.121 | O10: 0 | P10: -0.121 | Q10: 1.502
B11: ARIZONA + | C11: 6/1/14 | D11: 2014-003 (6/14) | E11: -0.11 | F11: 0 | G11: -0.11 | H11: 1.486 | K11: Automatic | L11: 6/1/16 | M11: 2015-037 (6/16) | N11: -0.121 | O11: 0 | P11: -0.121 | Q11: 1.486
B12: ARKANSAS | C12: 6/1/14 | D12: 2014-003 (6/14) | E12: -0.11 | F12: 0 | G12: -0.11 | H12: 1.497 | K12: Automatic | L12: 6/1/16 | M12: 2015-037 (6/16) | N12: -0.121 | O12: 0 | P12: -0.121 | Q12: 1.497
B13: CALIFORNIA * | C13: 8/25/14 | D13: 2007-122/199 (6/08) | E13: -0.108 | F13: 0.005 | G13: -0.103 | H13: 1.471 | K13: Not Yet Filed | M13: 2014-006 (6/14) | N13: -0.11
B14: COLORADO ++ | C14: 6/1/14 | D14: 2014-003 (6/14) | E14: -0.11 | F14: 0 | G14: -0.11 | H14: 1.486 | K14: Automatic | L14: 6/1/16 | M14: 2015-037 (6/16) | N14: -0.121 | O14: 0 | P14: -0.121 | Q14: 1.486
B15: CONNECTICUT | C15: 6/1/14 | D15: 2014-003 (6/14) | E15: -0.11 | F15: 0 | G15: -0.11 | H15: 1.481 | K15: Automatic | L15: 6/1/16 | M15: 2015-037 (6/16) | N15: -0.121 | O15: 0 | P15: -0.121 | Q15: 1.481
B16: DELAWARE * | C16: 1/15/13 | D16: 2011-045 (6/12) | E16: 0.122 | F16: 0 | G16: 0.122 | H16: 1.481 | K16: Not Yet Filed Not Yet Filed | M16: 2015-037 (6/16) 2014-003 (6/14) | N16: -12.1% -11.0%
B17: DIST.OF COL. | C17: 6/1/14 | D17: 2014-003 (6/14) | E17: -0.11 | F17: 0 | G17: -0.11 | H17: 1.48 | K17: Automatic | L17: 6/1/16 | M17: 2015-037 (6/16) | N17: -0.121 | O17: 0 | P17: -0.121 | Q17: 1.48
B18: FLORIDA * | C18: 3/1/15 | D18: 2014-003 (1/14) | E18: -0.431 | F18: 0.2026188835 | G18: -0.316 | H18: 1.745 | K18: Not Yet Filed Not Yet Filed | M18: 2015-037 (6/16) 2014-003 (6/14) | N18: -12.1% -11.0%
B19: GEORGIA | C19: 6/1/14 | D19: 2014-003 (6/14) | E19: -0.11 | F19: 0 | G19: -0.11 | H19: 1.502 | I19: 1.502 | K19: Automatic | L19: 6/1/16 | M19: 2015-037 (6/16) | N19: -0.121 | O19: 0 | P19: -0.121 | Q19: 1.502
B20: HAWAII * | C20: 6/1/12 | D20: HIB Pub. 120008 | E20: -0.136 | F20: 0 | G20: -0.136 | H20: 1.477 | K20: Pending | M20: Pub 140028 | N20: -0.11 | O20: 0 | P20: -0.11 | Q20: 1.477
B21: IDAHO | C21: 6/1/14 | D21: 2014-003 (6/14) | E21: -0.11 | F21: 0 | G21: -0.11 | H21: 1.504 | K21: Automatic | L21: 6/1/16 | M21: 2015-037 (6/16) | N21: -0.121 | O21: 0 | P21: -0.121 | Q21: 1.504
B22: ILLINOIS * | C22: 12/1/12 | D22: 2011-045 ( 6/12) | E22: 0.125 | F22: 0 | G22: 0.125 | H22: 1.453 | K22: Not Yet Filed Not Yet Filed | M22: 2015-037 (6/16) 2014-003 (6/14) | N22: -12.1% -11.0%
B23: INDIANA | C23: 6/1/14 | D23: 2014-003 (6/14) | E23: -0.11 | F23: 0 | G23: -0.11 | H23: 1.486 | K23: Automatic | L23: 6/1/16 | M23: 2015-037 (6/16) | N23: -0.121 | O23: 0 | P23: -0.121 | Q23: 1.486
B24: IOWA | C24: 6/1/14 | D24: 2014-003 (6/14) | E24: -0.11 | F24: 0 | G24: -0.11 | H24: 1.486 | K24: Automatic | L24: 6/1/16 | M24: 2015-037 (6/16) | N24: -0.121 | O24: 0 | P24: -0.121 | Q24: 1.486
B25: KANSAS | C25: 6/1/14 | D25: 2014-003 (6/14) | E25: -0.11 | F25: 0 | G25: -0.11 | H25: 1.486 | K25: Automatic | L25: 6/1/16 | M25: 2015-037 (6/16) | N25: -0.121 | O25: 0 | P25: -0.121 | Q25: 1.486
B26: KENTUCKY | C26: 6/1/14 | D26: 2014-003 (6/14) | E26: -0.11 | F26: 0 | G26: -0.11 | H26: 1.504 | K26: Automatic | L26: 6/1/16 | M26: 2015-037 (6/16) | N26: -0.121 | O26: 0 | P26: -0.121 | Q26: 1.504
B27: LOUISIANA * | C27: 7/1/09 | D27: 2007-164 (6/08) | E27: -0.15 | F27: =0.993 * 1.033-1 -> 0.025769 | G27: -0.128 | H27: 1.568 | K27: Not Yet Filed Approved | L27: 4/1/16 | M27: 2015-037 (6/16) 2014-003 (6/14) | N27: -12.1% -28.4% | O27: 0.3% | P27: -28.3% | Q27: 1.572
B28: MAINE | C28: 6/1/14 | D28: 2014-003 (6/14) | E28: -0.11 | F28: 0 | G28: -0.11 | H28: 1.486 | K28: Automatic | L28: 6/1/16 | M28: 2015-037 (6/16) | N28: -0.121 | O28: 0 | P28: -0.121 | Q28: 1.486
B29: MARYLAND | C29: 2/1/16 | D29: 2015-027 (2/16) | E29: -0.11 | F29: 0 | G29: -0.11 | H29: 1.486 | K29: Automatic | L29: 6/1/16 | M29: 2016-002 (6/16) | N29: -0.121 | O29: 0 | P29: -0.121 | Q29: 1.486
B30: MASSACHUSETTS * | C30: 1/1/13 | D30: 2012-014 (6/12) | E30: 0.125 | F30: 0 | G30: 0.125 | H30: 1.493 | K30: Not Yet Filed Not Yet Filed | M30: 2016-002 (6/16) 2014-010 (6/14) | N30: -12.1% -11.0%
B31: MICHIGAN | C31: 6/1/14 | D31: 2014-003 (6/14) | E31: -0.11 | F31: 0 | G31: -0.11 | H31: 1.471 | K31: Automatic | L31: 6/1/16 | M31: 2015-037 (6/16) | N31: -0.121 | O31: 0 | P31: -0.121 | Q31: 1.471
B32: MINNESOTA | C32: 6/1/14 | D32: 2014-003 (6/14) | E32: -0.11 | F32: 0 | G32: -0.11 | H32: 1.486 | K32: Automatic | L32: 6/1/16 | M32: 2015-037 (6/16) | N32: -0.121 | O32: 0 | P32: -0.121 | Q32: 1.486
B33: MISSISSIPPI | C33: 6/1/14 | D33: 2014-003 (6/14) | E33: -0.11 | F33: 0 | G33: -0.11 | H33: 1.508 | K33: Automatic | L33: 6/1/16 | M33: 2016-002 (6/16) | N33: -0.121 | O33: 0 | P33: -0.121 | Q33: 1.508
B34: MISSOURI | C34: 6/1/14 | D34: 2014-003 (6/14) | E34: -0.11 | F34: 0 | G34: -0.11 | H34: 1.486 | K34: Automatic | L34: 6/1/16 | M34: 2015-037 (6/16) | N34: -0.121 | O34: 0 | P34: -0.121 | Q34: 1.486
B35: MONTANA | C35: 6/1/14 | D35: 2014-003 (6/14) | E35: -0.11 | F35: 0 | G35: -0.11 | H35: 1.504 | K35: Automatic | L35: 6/1/16 | M35: 2015-037 (6/16) | N35: -0.121 | O35: 0 | P35: -0.121 | Q35: 1.504
B36: NEBRASKA | C36: 6/1/14 | D36: 2014-003 (6/14) | E36: -0.11 | F36: 0 | G36: -0.11 | H36: 1.464 | K36: Automatic | L36: 6/1/16 | M36: 2015-037 (6/16) | N36: -0.121 | O36: 0 | P36: -0.121 | Q36: 1.464
B37: NEVADA ** | C37: 6/1/14 | D37: 2014-003 (6/14) | E37: -0.11 | F37: 0 | G37: -0.11 | H37: 1.524 | K37: Automatic | L37: 6/1/16 | M37: 2015-037 (6/16) | N37: -0.121 | O37: 0 | P37: -0.121 | Q37: 1.524
B38: NEW HAMPSHIRE | C38: 6/1/14 | D38: 2014-003 (6/14) | E38: -0.11 | F38: 0 | G38: -0.11 | H38: 1.486 | K38: Automatic | L38: 6/1/16 | M38: 2015-037 (6/16) | N38: -0.121 | O38: 0 | P38: -0.121 | Q38: 1.486
B39: NEW JERSEY | C39: 6/1/14 | D39: 2014-003 (6/14) | E39: -0.11 | F39: 0 | G39: -0.11 | H39: 1.49 | K39: Automatic | L39: 6/1/16 | M39: 2015-037 (6/16) | N39: -0.121 | O39: 0 | P39: -0.121 | Q39: 1.49
B40: NEW MEXICO | C40: 6/1/14 | D40: 2014-003 (6/14) | E40: -0.11 | F40: 0 | G40: -0.11 | H40: 1.508 | K40: Automatic | L40: 6/1/16 | M40: 2015-037 (6/16) | N40: -0.121 | O40: 0 | P40: -0.121 | Q40: 1.508
B41: NEW YORK * | C41: 5/1/09 | D41: 2007-125/2008-019 (8/08) | E41: -0.303 | F41: -0.017 | G41: -0.315 | H41: 1.468 | K41: Not Yet Filed Not Yet Filed | M41: 2015-037 (6/16) 2014-003 (6/14) | N41: -12.1% -11.0%
B42: NORTH CAROLINA | C42: 6/1/14 | D42: 2014-003 (6/14) | E42: -0.11 | F42: 0 | G42: -0.11 | H42: 1.484 | K42: Automatic | L42: 6/1/16 | M42: 2016-002 (6/16) | N42: -0.121 | O42: 0 | P42: -0.121 | Q42: 1.484
B43: NORTH DAKOTA | C43: 6/1/14 | D43: 2014-003 (6/14) | E43: -0.11 | F43: 0 | G43: -0.11 | H43: 1.481 | K43: Automatic | L43: 6/1/16 | M43: 2015-037 (6/16) | N43: -0.121 | O43: 0 | P43: -0.121 | Q43: 1.481
B44: OHIO | C44: 6/1/14 | D44: 2014-003 (6/14) | E44: -0.11 | F44: 0 | G44: -0.11 | H44: 1.481 | K44: Automatic | L44: 6/1/16 | M44: 2015-037 (6/16) | N44: -0.121 | O44: 0 | P44: -0.121 | Q44: 1.481
B45: OKLAHOMA | C45: 6/1/14 | D45: 2014-003 (6/14) | E45: -0.11 | F45: 0 | G45: -0.11 | H45: 1.493 | K45: Automatic | L45: 6/1/16 | M45: 2015-037 (6/16) | N45: -0.121 | O45: 0 | P45: -0.121 | Q45: 1.493
B46: OREGON | C46: 6/1/14 | D46: 2014-003 (6/14) | E46: -0.11 | F46: 0 | G46: -0.11 | H46: 1.493 | K46: Automatic | L46: 6/1/16 | M46: 2015-037 (6/16) | N46: -0.121 | O46: 0 | P46: -0.121 | Q46: 1.493
B47: PENNSYLVANIA | C47: 6/1/14 | D47: 2014-003 (6/14) | E47: -0.11 | F47: 0 | G47: -0.11 | H47: 1.488 | K47: Automatic | L47: 6/1/16 | M47: 2015-037 (6/16) | N47: -0.121 | O47: 0 | P47: -0.121 | Q47: 1.488
B48: RHODE ISLAND | C48: 6/1/14 | D48: 2014-003 (6/14) | E48: -0.11 | F48: 0 | G48: -0.11 | H48: 1.486 | K48: Automatic | L48: 6/1/16 | M48: 2015-037 (6/16) | N48: -0.121 | O48: 0 | P48: -0.121 | Q48: 1.486
B49: SOUTH CAROLINA | C49: 6/1/14 | D49: 2014-003 (6/14) | E49: -0.11 | F49: 0 | G49: -0.11 | H49: 1.49 | K49: Automatic | L49: 6/1/16 | M49: 2015-037 (6/16) | N49: -0.121 | O49: 0 | P49: -0.121 | Q49: 1.49
B50: SOUTH DAKOTA | C50: 6/1/14 | D50: 2014-003 (6/14) | E50: -0.11 | F50: 0 | G50: -0.11 | H50: 1.497 | K50: Automatic | L50: 6/1/16 | M50: 2015-037 (6/16) | N50: -0.121 | O50: 0 | P50: -0.121 | Q50: 1.497
A51: UTAH | B51: TENNESSEE | C51: 6/1/14 | D51: 2014-003 (6/14) | E51: -0.11 | F51: 0 | G51: -0.11 | H51: 1.493 | K51: Automatic | L51: 6/1/16 | M51: 2015-037 (6/16) | N51: -0.121 | O51: 0 | P51: -0.121 | Q51: 1.493
B52: TEXAS * | C52: 4/1/15 | D52: 2014-003 (6/14) | E52: -0.184 | F52: 0.226 | G52: 0 | H52: 1.885
A53: VIRGINIA | B53: UTAH | C53: 6/1/14 | D53: 2014-003 (6/14) | E53: -0.11 | F53: 0 | G53: -0.11 | H53: 1.493 | K53: Automatic | L53: 6/1/16 | M53: 2015-037 (6/16) | N53: -0.121 | O53: 0 | P53: -0.121 | Q53: 1.493
B54: VERMONT | C54: 6/1/14 | D54: 2014-003 (6/14) | E54: -0.11 | F54: 0 | G54: -0.11 | H54: 1.486 | K54: Automatic | L54: 6/1/16 | M54: 2015-037 (6/16) | N54: -0.121 | O54: 0 | P54: -0.121 | Q54: 1.486
A55: WEST VIRGINIA | B55: VIRGINIA | C55: 6/1/14 | D55: 2014-003 (6/14) | E55: -0.11 | F55: 0 | G55: -0.11 | H55: 1.495 | K55: Automatic | L55: 6/1/16 | M55: 2015-037 (6/16) | N55: -0.121 | O55: 0 | P55: -0.121 | Q55: 1.495
B56: WASHINGTON +++ | C56: 6/1/14 | D56: 2014-003 (6/14) | E56: -0.11 | F56: 0 | G56: -0.11 | H56: 1.464 | K56: Automatic | L56: 6/1/16 | M56: 2015-037 (6/16) | N56: -0.121 | O56: 0 | P56: -0.121 | Q56: 1.464
B57: WEST VIRGINIA | C57: 6/1/14 | D57: 2014-003 (6/14) | E57: -0.11 | F57: 0 | G57: -0.11 | H57: 1.508 | K57: Automatic | L57: 6/1/16 | M57: 2015-037 (6/16) | N57: -0.121 | O57: 0 | P57: -0.121 | Q57: 1.508
B58: WISCONSIN | C58: 6/1/14 | D58: 2014-003 (6/14) | E58: -0.11 | F58: 0 | G58: -0.11 | H58: 1.486 | K58: Automatic | L58: 6/1/16 | M58: 2015-037 (6/16) | N58: -0.121 | O58: 0 | P58: -0.121 | Q58: 1.486
B59: WYOMING | C59: 6/1/14 | D59: 2014-003 (6/14) | E59: -0.11 | F59: 0 | G59: -0.11 | H59: 1.46 | K59: Automatic | L59: 6/1/16 | M59: 2015-037 (6/16) | N59: -0.121 | O59: 0 | P59: -0.121 | Q59: 1.46
B62: * LCM cannot be placed on file for future revisions. | E62: + NHG, AIU & LIC - Current LCM = 1.468. | J62: ++ NHG, AIU & LIC - Current LCM = 1.488. | N62: ** AHAC, BF, C&I, NUFIC & ISOP = 1.520
J63: +++ NHG, AIU & LIC - Current LCM = 1.513, eff. 9/10/02.

Sheet CR-DEVS
J1: ='AUTO-DEVS'!L1 -> as of 02/04/16
A2: * * * * * * * * * * * COMMERCIAL CRIME LOSS COST MODIFICATIONS * * * * * * * * * * *
C4: NEW HAMPSHIRE COMPANIES | H4: NEW YORK COMPANIES + | J4: Companies Eligible for Filing
A5: State | C5: Sub-Standard | D5: Standard | E5: Preferred | F5: Super-Preferred | H5: Standard | J5: to Adopt the Fidelity Portion
A7: ALABAMA | D7: GSIC | E7: NHIC -15% | H7: AIG PCC / AHAC / C&I / NUFIC / ISOP | J7: NHIC/GSIC/AHAC/NUFIC/ISOP/C&I/AIG AC
A8: ALASKA | C8: INIC +15% | D8: GSIC | E8: NHIC -15% | F8: AIG AC -25% | H8: AIG PCC / AHAC / C&I / NUFIC / ISOP | J8: NHIC/GSIC/INIC/AIG PCC/AHAC/NUFIC/ISOP/C&I/AIG AC
A9: ARIZONA | C9: INIC +15% | D9: GSIC | E9: NHIC -15% | F9: AIG AC -25% | H9: AIG PCC / AHAC / C&I / NUFIC / ISOP | J9: NHIC/GSIC/AHAC/NUFIC/ISOP/C&I/AIG PCC/LIC
A10: ARKANSAS | D10: GSIC | E10: NHIC -15% | F10: AIG AC -25% | H10: AIG PCC / AHAC / C&I / NUFIC / ISOP | J10: NHIC/GSIC/AHAC/NUFIC/ISOP/C&I
A11: CALIFORNIA | D11: NHIC / GSIC | H11: AIG PCC / AHAC / C&I / NUFIC / ISOP | J11: NHIC/GSIC/AHAC/NUFIC/ISOP/C&I/BF/LIC
A12: COLORADO | D12: GSIC / INIC | E12: NHIC -15% | F12: AIG AC -25% | H12: AIG PCC / AHAC / C&I / NUFIC / ISOP | J12: NHIC/GSIC/AIP/AIG AC/AHAC/NUFIC/ISOP/C&I/AIG PCC
A13: CONNECTICUT | C13: 8/25/14 | D13: GSIC / INIC | E13: NHIC -15% | F13: AIG AC -25% | H13: AIG PCC / AHAC / C&I / NUFIC / ISOP | J13: NHIC/GSIC/AHAC/NUFIC/ISOP/C&I/AIG AC
A14: DELAWARE | C14: INIC +15% | D14: GSIC | E14: NHIC -15% | F14: AIG AC -25% | H14: AIG PCC / AHAC / C&I / NUFIC / ISOP | J14: NHIC/AHAC/NUFIC/ISOP/C&I/AIG AC
A15: DIST. OF COLUMBIA | D15: GSIC / INIC / AIG AC | E15: NHIC -15% | H15: AIG PCC / AHAC / C&I / NUFIC / ISOP | J15: NHIC/GSIC/AIG PCC/AHAC/NUFIC/ISOP/C&I/AIG AC
A16: FLORIDA | C16: INIC +15% | D16: GSIC | E16: NHIC -15% | F16: AIG AC -25% | H16: AIG PCC / AHAC / C&I / NUFIC / ISOP | J16: NHIC/GSIC/AHAC/NUFIC/ISOP/C&I/AIG AC
A17: GEORGIA | C17: INIC +15% | D17: GSIC | E17: NHIC -15% | F17: AIG AC -25% | H17: AIG PCC / AHAC / C&I / NUFIC / ISOP | J17: NHIC/GSIC/AIG PCC/AHAC/NUFIC/ISOP/C&I/AIG AC
A18: HAWAII | D18: GSIC, INIC | E18: NHIC -15% | F18: AIG AC -25% | H18: AHAC / NUFIC / C&I / ISOP | J18: NHIC/AHAC/NUFIC/ISOP/C&I/LIC
A19: IDAHACO | D19: GSIC / INIC | E19: NHIC -15% | F19: AIG AC -25% | H19: AIG PCC / AHAC / C&I / NUFIC / ISOP | J19: NHIC/GSIC/INIC/AHAC/NUFIC/ISOP/C&I/AIG AC
A20: ILLINOIS | D20: GSIC / INIC | E20: NHIC -15% | F20: AIG AC -25% | H20: AIG PCC / AHAC / C&I / NUFIC / ISOP | J20: NHIC/GSIC/INIC/AHAC/NUFIC/ISOP/C&I/AIG AC | L20: 9/1/14 | M20: HIB Pub 130022, 130054 | N20: NHIC -15% | O20: AIG AC -25% | Q20: 1.474
A21: INDIANA | C21: INIC +15% | D21: GSIC | E21: NHIC -15% | F21: AIG AC -25% | H21: AIG PCC / AHAC / C&I / NUFIC / ISOP | J21: NHIC/GSIC/INIC/AHAC/NUFIC/ISOP/C&I/AIG AC
A22: IOWA | D22: GSIC / INIC | E22: NHIC -15% | F22: AIG AC -25% | H22: AIG PCC / AHAC / C&I / NUFIC / ISOP | J22: NHIC/GSIC/INIC/AHAC/NUFIC/ISOP/C&I/AIG AC
A23: KANSAS | D23: GSIC / INIC | E23: NHIC -15% | F23: AIG AC -25% | H23: AIG PCC / AHAC / C&I / NUFIC / ISOP | J23: NHIC/GSIC/AHAC/NUFIC/ISOP/C&I/AIG AC/LIC
A24: KENTUCKY | C24: INIC +15% | D24: GSIC | E24: NHIC -15% | F24: AIG AC -25% | H24: AIG PCC / AHAC / C&I / NUFIC / ISOP | J24: NHIC/GSIC/AIG PCC/INIC/AHAC/NUFIC/ISOP/C&I/AIG AC
A25: LOUISIANA | D25: GSIC / INIC /AIG AC | E25: NHIC -15% | H25: AIG PCC / AHAC / C&I / NUFIC / ISOP | J25: NHIC/GSIC/AHAC/NUFIC/ISOP/C&I/AIG AC | M25: 3.3% modification factor
A26: MAINE | D26: GSIC / INIC | E26: NHIC -15% | H26: AIG PCC / AHAC / C&I / NUFIC / ISOP | J26: NHIC/GSIC/INIC/AHAC/NUFIC/ISOP
A27: MARYLAND | C27: INIC +15% | D27: GSIC | E27: NHIC -15% | F27: AIG AC -25% | H27: AIG PCC / AHAC / C&I / NUFIC / ISOP | J27: NHIC/GSIC/AIG PCC/INIC/AHAC/NUFIC/ISOP/C&I/AIG AC
A28: MASSACHUSETTS | D28: GSIC / INIC | E28: NHIC -15% | H28: AIG PCC / AHAC / C&I / NUFIC / ISOP | J28: NHIC/GSIC/AHAC/NUFIC/ISOP/C&I/LIC
A29: MICHIGAN | D29: GSIC / INIC | E29: NHIC -15% | F29: AIG AC -25% | H29: AIG PCC / AHAC / C&I / NUFIC / ISOP | J29: NHIC/GSIC/INIC/AHAC/NUFIC/ISOP/C&I/AIG AC
A30: MINNESOTA | C30: INIC +15% | D30: GSIC | E30: NHIC -15% | H30: AIG PCC / AHAC / C&I / NUFIC / ISOP | J30: NHIC/GSIC/AHAC/NUFIC/ISOP/C&I/AIG AC
A31: MISSISSIPPI | D31: GSIC | E31: NHIC -15% | F31: AIG AC -25% | H31: AIG PCC / AHAC / C&I / NUFIC / ISOP | J31: NHIC/GSIC/AIG PCC/AHAC/NUFIC/ISOP/C&I/AIG AC
A32: MISSOURI | C32: INIC +15% | D32: GSIC | E32: NHIC -15% | F32: AIG AC -25% | H32: AIG PCC / AHAC / C&I / NUFIC / ISOP | J32: NHIC/GSIC/INIC/AHAC/NUFIC/ISOP/C&I/AIG AC
A33: MONTANA | D33: GSIC / INIC | E33: NHIC -15% | F33: AIG AC -25% | H33: AIG PCC / AHAC / C&I / NUFIC / ISOP | J33: NHIC/GSIC/INIC/AIG PCC/AHAC/NUFIC/ISOP/C&I/AIG AC
A34: NEBRASKA | D34: NHIC / GSIC / AIG AC / INIC | H34: AIG PCC / AHAC / C&I / NUFIC / ISOP | J34: NHIC/GSIC/INIC/AHAC/NUFIC/ISOP/C&I/AIG AC
A35: NEVADA | D35: GSIC / INIC | E35: NHIC -15% | F35: AIG AC -25% | H35: AIG PCC / AHAC / C&I / NUFIC / ISOP | J35: NHIC/GSIC/INIC/AHAC/NUFIC/ISOP/C&I/AIG AC/LIC
A36: NEW HAMPSHIRE | C36: INIC +15% | D36: GSIC | E36: NHIC -15% | F36: AIG AC -25% | H36: AIG PCC / AHAC / C&I / NUFIC / ISOP | J36: NHIC/GSIC/INIC/AIG AC/AHAC/NUFIC/ISOP/C&I/AIG AC
A37: NEW JERSEY | D37: GSIC / INIC | E37: NHIC -15% | H37: AIU / AHAC / NUFIC / C&I / ISOP | J37: NHIC/GSIC/INIC/AHAC/NUFIC/ISOP/C&I
A38: NEW MEXICO | E38: NHIC -15% | F38: AIG AC, INIC -25% | H38: AIG PCC / AHAC / C&I / NUFIC / ISOP | J38: NHIC/GSIC/INIC/AIG PCC/AHAC/NUFIC/ISOP/C&I/AIG AC
A39: NEW YORK | D39: NHIC / GSIC / INIC | H39: AIG PCC / AHAC / C&I / NUFIC / ISOP | J39: NHIC/GSIC/INIC/AHAC/NUFIC/ISOP/C&I/AIG AC/LIC
A40: NORTH CAROLINA | D40: GSIC | E40: NHIC -15% | F40: AIG AC -25% | H40: AIG PCC / AHAC / C&I / NUFIC / ISOP | J40: NHIC/GSIC/AIG PCC/AHAC/NUFIC/ISOP/C&I/AIG AC
A41: NORTH DAKOTA | C41: INIC +15% | D41: GSIC | E41: NHIC -15% | F41: AIG AC -25% | H41: AIG PCC / AHAC / C&I / NUFIC / ISOP | J41: NHIC/GSIC/INIC/AIG PCC/AHAC/NUFIC/ISOP/C&I/AIG AC
A42: OHIO | D42: GSIC / INIC | E42: NHIC -15% | F42: AIG AC -25% | H42: AIG PCC / AHAC / C&I / NUFIC / ISOP | J42: NHIC/GSIC/INIC/AHAC/NUFIC/ISOP/C&I/AIG AC
A43: OKLAHACOMA | D43: NHIC / GSIC / INIC / AIG AC | H43: AIG PCC / AHAC / C&I / NUFIC / ISOP | J43: GSIC/AIG PCC/AHAC/NUFIC/ISOP/C&I/AIG AC
A44: OREGON | C44: INIC +15% | D44: GSIC | E44: NHIC -15% | F44: AIG AC -25% | H44: AIG PCC / AHAC / C&I / NUFIC / ISOP | J44: NHIC/GSIC/AHAC/NUFIC/ISOP/C&I/AIG AC/LIC
A45: PENNSYLVANIA | C45: INIC +15% | D45: GSIC | E45: NHIC -15% | F45: AIG AC -25% | H45: AIG PCC / AHAC / C&I / NUFIC / ISOP | J45: NHIC/GSIC/AIG PCC/AHAC/NUFIC/ISOP/C&I/AIG AC
A46: RHODE ISLAND | D46: GSIC / INIC | E46: NHIC -15% | F46: AIG AC -25% | H46: AIG PCC / AHAC / C&I / NUFIC / ISOP | J46: NHIC/GSIC/INIC/AIG PCC/AHAC/NUFIC/ISOP/C&I/AIG AC
A47: SOUTH CAROLINA | D47: GSIC / INIC | E47: NHIC -15% | F47: AIG AC -25% | H47: AIG PCC / AHAC / C&I / NUFIC / ISOP | J47: NHIC/GSIC/AIG PCC/AHAC/NUFIC/ISOP/C&I/AIG AC
A48: SOUTH DAKOTA | C48: INIC +15% | D48: GSIC | E48: NHIC -15% | F48: AIG AC -25% | H48: AIG PCC / AHAC / C&I / NUFIC / ISOP | J48: NHIC/GSIC/INIC/AHAC/NUFIC/ISOP/C&I/AIG AC
A49: TENNESSEE | D49: GSIC / INIC | E49: NHIC -15% | F49: AIG AC -25% | H49: AIU / AHAC / NUFIC / C&I / ISOP | J49: NHIC/GSIC/AHAC/NUFIC/ISOP/C&I
A50: TEXAS | C50: INIC +15% | D50: GSIC | E50: NHIC -15% | F50: AIG AC -25% | H50: AIG PCC / AHAC / C&I / NUFIC / ISOP | J50: NHIC/GSIC/INIC/AHAC/NUFIC/ISOP/C&I/AIG AC
A51: UTAH | C51: INIC +15% | D51: GSIC | E51: NHIC -15% | F51: AIG AC -25% | H51: AIG PCC / AHAC / C&I / NUFIC / ISOP | J51: NHIC/GSIC/INIC/AHAC/NUFIC/ISOP/C&I/AIG AC
A52: VERMONT | D52: GSIC / INIC | E52: NHIC -15% | H52: AIG PCC / AHAC / C&I / NUFIC / ISOP | J52: NHIC/GSIC/INIC/AHAC/NUFIC/ISOP/C&I/AIG AC
A53: VIRGINIA | D53: GSIC | E53: NHIC -15% | F53: AIG AC -25% | H53: AIG PCC / AHAC / C&I / NUFIC / ISOP | J53: NHIC/GSIC/AHAC/NUFIC/ISOP/C&I/AIG AC
A54: WASHINGTON | D54: GSIC / AIG AC / INIC | E54: NHIC -15% | H54: AIG PCC / AHAC / C&I / NUFIC / ISOP | J54: NHIC/GSIC/AHAC/NUFIC/ISOP/C&I/AIG AC/LIC
A55: WEST VIRGINIA | C55: INIC +15% | D55: GSIC | E55: NHIC -15% | F55: AIG AC -25% | H55: AIG PCC / AHAC / C&I / NUFIC / ISOP | J55: NHIC/GSIC/INIC/AHAC/NUFIC/ISOP/C&I/AIG AC
A56: WISCONSIN | C56: INIC +15% | D56: GSIC | E56: NHIC -15% | F56: AIG AC -25% | H56: AIG PCC / AHAC / C&I / NUFIC / ISOP | J56: NHIC/GSIC/AHAC/NUFIC/ISOP/C&I/AIG AC
A57: WYOMING | D57: NHIC / GSIC / INIC / AIG AC | H57: AIG PCC / AHAC / C&I / NUFIC / ISOP | J57: NHIC/GSIC/INIC/AHAC/NUFIC/ISOP/C&I/AIG AC
H59: + AIU LC filings not maintained after 4/2009

Sheet INLAND
B1: COMMERCIAL INLAND MARINE LOSS COST FILING STATUS | H1: POOLED COMPANIES | Q1: =GL!R1 -> 02/04/16
B4: CURRENT: | J4: PENDING:
E6: Loss | J6: Actuarial | L6: Proposed/ | N6: Loss
C7: Effective | D7: Circular #'s | E7: Cost | F7: Expense | G7: Overall | H7: Loss Cost | J7: Support | K7: Pending/ | L7: Effective | M7: Circular #'s | N7: Cost | O7: Expense | P7: Overall | Q7: Loss Cost
B8: STATE | C8: Date | D8: (Edition Date) | E8: Change | F8: Change | G8: Change | H8: Multiplier | J8: Prepared | K8: Approved | L8: Date | M8: (Edition Date) | N8: Change | O8: Change | P8: Change | Q8: Multiplier
B9: ALABAMA | C9: 10/1/14 | D9: 2014-008 (10/14) | E9: -0.196 | F9: 0 | G9: -0.196 | H9: 1.541
B10: ALASKA | C10: 10/1/14 | D10: 2014-007 (10/14) | E10: -0.208 | F10: 0 | G10: -0.208 | H10: 1.543
B11: ARIZONA | C11: 10/1/14 | D11: 2014-007 (10/14) | E11: -0.208 | F11: 0 | G11: -0.208 | H11: 1.527
B12: ARKANSAS | C12: 10/1/14 | D12: 2014-007 (10/14) | E12: -0.208 | F12: 0 | G12: -0.208 | H12: 1.538
B13: CALIFORNIA * | C13: 11/1/14 | D13: 2012-025 (9/12) | E13: -0.4522 | F13: 0.1695 | G13: -0.359 | H13: 1.868 | K13: Not Yet Filed | M13: 2014-013 (10/14) | N13: -0.208
B14: COLORADO | C14: 10/1/14 | D14: 2014-007 (10/14) | E14: -0.208 | F14: 0 | G14: -0.208 | H14: 1.527
B15: CONNECTICUT | C15: 10/1/14 | D15: 2014-007 (10/14) | E15: -0.208 | F15: 0 | G15: -0.208 | H15: 1.522
B16: DELAWARE * | C16: 8/1/14 | D16: 2012-019 (10/12) | E16: -0.119 | F16: 0.2637362637 | G16: 0.1136919233 | H16: 1.826098901 | K16: Not Yet Filed | M16: 2014-009 (10/14) | N16: -0.208
B17: DIST.OF COL. | C17: 10/1/14 | D17: 2014-007 (10/14) | E17: -0.208 | F17: 0 | G17: -0.208 | H17: 1.52
B18: FLORIDA | C18: 10/1/10 | D18: 2010-043 (10/10) | E18: -0.21 | F18: 0 | G18: -0.21 | H18: 1.376 | K18: Not Yet Filed | M18: 2014-008 (10/14) | N18: -0.196
B19: GEORGIA | C19: 10/1/14 | D19: 2014-008 (10/14) | E19: -0.196 | F19: 0 | G19: -0.196 | H19: 1.558
B20: HAWAII * | C20: 11/1/14 | D20: 2014-007 (10/14) | E20: -0.304624 | F20: 0.11 | G20: -0.228 | H20: 1.659 | K20: Not Yet Filed | M20: 2014-007 (10/14) | N20: -0.208
B21: IDAHO | C21: 10/1/14 | D21: 2014-007 (10/14) | E21: -0.208 | F21: 0 | G21: -0.208 | H21: 1.546
B22: ILLINOIS * | C22: 10/1/12 | D22: 2012-019 (8/10) | E22: -0.119 | F22: 0.092 | G22: -0.038 | H22: 1.635 | K22: Not Yet Filed | M22: 2014-007 (10/14) | N22: -0.208
B23: INDIANA | C23: 10/1/14 | D23: 2014-007 (10/14) | E23: -0.208 | F23: 0 | G23: -0.208 | H23: 1.527 | I23: 1.527
B24: IOWA | C24: 10/1/14 | D24: 2014-007 (10/14) | E24: -0.208 | F24: 0 | G24: -0.208 | H24: 1.527 | I24: 1.527
B25: KANSAS | C25: 10/1/14 | D25: 2014-007 (10/14) | E25: -0.208 | F25: 0 | G25: -0.208 | H25: 1.527 | I25: 1.527
B26: KENTUCKY | C26: 10/1/14 | D26: 2014-007 (10/14) | E26: -0.208 | F26: 0 | G26: -0.208 | H26: 1.546
B27: LOUISIANA * | C27: 9/1/14 | D27: 2012-020 (10/12) | E27: -0.464 | F27: 0.264 | G27: -0.323 | H27: 1.872 | K27: Not Yet Filed | M27: 2014-008 (10/14) | N27: -0.196
B28: MAINE | C28: 10/1/14 | D28: 2014-007 (10/14) | E28: -0.208 | F28: 0 | G28: -0.208 | H28: 1.527
B29: MARYLAND | C29: 10/1/14 | D29: 2014-007 (10/14) | E29: -0.208 | F29: 0 | G29: -0.208 | H29: 1.527
B30: MASSACHUSETTS * | C30: 5/1/14 | D30: 2012-019 (10/12) | E30: -0.171 | F30: 0.188 | G30: -0.015 | H30: 1.837 | K30: Not Yet Filed | M30: 2014-012 (10/14) | N30: -0.208
B31: MICHIGAN | C31: 10/1/14 | D31: 2014-007 (10/14) | E31: -0.208 | F31: 0 | G31: -0.208 | H31: 1.511
B32: MINNESOTA * | C32: 10/1/14 | D32: 2014-007 (10/14) | E32: -0.208 | F32: 0 | G32: -0.208 | H32: 1.529
B33: MISSISSIPPI | C33: 10/1/14 | D33: 2014-008 (10/14) | E33: -0.196 | F33: 0 | G33: -0.196 | H33: 1.575
B34: MISSOURI | C34: 10/1/14 | D34: 2014-007 (10/14) | E34: -0.208 | F34: 0 | G34: -0.208 | H34: 1.527
B35: MONTANA | C35: 10/1/14 | D35: 2014-007 (10/14) | E35: -0.208 | F35: 0 | G35: -0.208 | H35: 1.546
B36: NEBRASKA | C36: 10/1/14 | D36: 2014-007 (10/14) | E36: -0.208 | F36: 0 | G36: -0.208 | H36: 1.506
B37: NEVADA | C37: 10/1/14 | D37: 2014-007 (10/14) | E37: -0.208 | F37: 0 | G37: -0.208 | H37: 1.563
B38: NEW HAMPSHIRE | C38: 10/1/14 | D38: 2014-007 (10/14) | E38: -0.208 | F38: 0 | G38: -0.208 | H38: 1.527
B39: NEW JERSEY | C39: 10/1/14 | D39: 2014-007 (10/14) | E39: -0.208 | F39: 0 | G39: -0.208 | H39: 1.531
B40: NEW MEXICO | C40: 10/1/14 | D40: 2014-007 (10/14) | E40: -0.208 | F40: 0 | G40: -0.208 | H40: 1.55
B41: NEW YORK * | C41: 3/1/14 | D41: 2012-019 (10/12) | E41: -0.481 | F41: 0.174 | G41: -0.391 | H41: 1.805 | K41: Not Yet Filed | M41: 2014-007 (10/14) | N41: -0.208
B42: NORTH CAROLINA | C42: 10/1/14 | D42: 2014-008 (10/14) | E42: -0.196 | F42: 0 | G42: -0.196 | H42: 1.527
B43: NORTH DAKOTA | C43: 10/1/14 | D43: 2014-007 (10/14) | E43: -0.208 | F43: 0 | G43: -0.208 | H43: 1.522
B44: OHIO | C44: 10/1/14 | D44: 2014-007 (10/14) | E44: -0.208 | F44: 0 | G44: -0.208 | H44: 1.522
B45: OKLAHOMA | C45: 10/1/14 | D45: 2014-007 (10/14) | E45: -0.208 | F45: 0 | G45: -0.208 | H45: 1.52
B46: OREGON | C46: 10/1/14 | D46: 2014-007 (10/14) | E46: -0.208 | F46: 0 | G46: -0.208 | H46: 1.534
B47: PENNSYLVANIA | C47: 10/1/14 | D47: 2014-007 (10/14) | E47: -0.208 | F47: 0 | G47: -0.208 | H47: 1.527
B48: RHODE ISLAND | C48: 10/1/14 | D48: 2014-007 (10/14) | E48: -0.208 | F48: 0 | G48: -0.208 | H48: 1.527
B49: SOUTH CAROLINA | C49: 10/1/14 | D49: 2014-008 (10/14) | E49: -0.196 | F49: 0 | G49: -0.196 | H49: 1.522
B50: SOUTH DAKOTA | C50: 10/1/14 | D50: 2014-007 (10/14) | E50: -0.208 | F50: 0 | G50: -0.208 | H50: 1.541
A51: UTAH | B51: TENNESSEE | C51: 10/1/14 | D51: 2014-007 (10/14) | E51: -0.208 | F51: 0 | G51: -0.208 | H51: 1.543
B52: TEXAS * | C52: 10/1/12 | D52: 2012-020 (10/12) | E52: -0.122 | F52: 0.128 | G52: -0.01 | H52: 1.799 | K52: Not Yet Filed | M52: 2014-011 (10/14) | N52: -0.196
A53: VIRGINIA | B53: UTAH | C53: 10/1/14 | D53: 2014-007 (10/14) | E53: -0.208 | F53: 0 | G53: -0.208 | H53: 1.534
B54: VERMONT | C54: 10/1/14 | D54: 2014-007 (10/14) | E54: -0.208 | F54: 0 | G54: -0.208 | H54: 1.527
A55: WEST VIRGINIA | B55: VIRGINIA | C55: 10/1/14 | D55: 2014-008 (10/14) | E55: -0.196 | F55: 0 | G55: -0.196 | H55: 1.558
B56: WASHINGTON | C56: 10/1/14 | D56: 2014-007 (10/14) | E56: -0.208 | F56: 0 | G56: -0.208 | H56: 1.721
B57: WEST VIRGINIA | C57: 10/1/14 | D57: 2014-007 (10/14) | E57: -0.208 | F57: 0 | G57: -0.208 | H57: 1.55
B58: WISCONSIN | C58: 10/1/14 | D58: 2014-007 (10/14) | E58: -0.208 | F58: 0 | G58: -0.208 | H58: 1.527
B59: WYOMING | C59: 10/1/14 | D59: 2014-007 (10/14) | E59: -0.208 | F59: 0 | G59: -0.208 | H59: 1.499
B62: * LCM cannot be placed on file for future revisions.

Sheet IM-DEVS
J1: ='AUTO-DEVS'!L1 -> as of 02/04/16
A2: * * * * * * * * * * * COMMERCIAL INLAND MARINE LOSS COST MODIFICATIONS * * * * * * * * * * *
C4: NEW HAMPSHIRE COMPANIES | H4: NEW YORK COMPANIES +
A5: State | C5: Sub-Standard | D5: Standard | E5: Preferred | F5: Super-Preferred | H5: Standard
A7: ALABAMA | D7: GSIC | E7: NHIC -15%
A8: ALASKA | C8: INIC +15% | D8: GSIC | E8: NHIC -15% | F8: AIG AC -25% | H8: AIG PCC / AHAC / NUFIC / C&I / ISOP
A9: ARIZONA | C9: INIC +15% | D9: GSIC | E9: NHIC -15% | F9: AIG AC -25%
A10: ARKANSAS | D10: GSIC | E10: NHIC -15% | F10: AIG AC -25%
A11: CALIFORNIA | D11: NHIC / GSIC
A12: COLORADO | D12: GSIC / INIC | E12: NHIC -15% | F12: AIG AC -25%
A13: CONNECTICUT | C13: 8/25/14 | D13: GSIC / INIC | E13: NHIC -15% | F13: AIG AC -25%
A14: DELAWARE | C14: INIC +15% | D14: GSIC | E14: NHIC -15% | F14: AIG AC -25% | H14: AIG PCC / AHAC / NUFIC / C&I / ISOP
A15: DIST. OF COLUMBIA | D15: GSIC / INIC / AIG AC | E15: NHIC -15%
A16: FLORIDA | C16: INIC +15% | D16: GSIC | E16: NHIC -15% | F16: AIG AC -25%
A17: GEORGIA | C17: INIC +15% | D17: GSIC | E17: NHIC -15% | F17: AIG AC -25%
A18: HAWAII | D18: GSIC/INIC | E18: NHIC -15% | F18: AIG AC -25% | H18: AHAC / NUFIC / C&I / ISOP
A19: IDAHACO | D19: GSIC / INIC | E19: NHIC -15% | F19: AIG AC -25%
A20: ILLINOIS | D20: GSIC / INIC | E20: NHIC -15% | F20: AIG AC -25% | H20: AIG PCC / AHAC / NUFIC / C&I / ISOP
A21: INDIANA | C21: INIC +15% | D21: GSIC | E21: NHIC -15% | F21: AIG AC -25%
A22: IOWA | D22: GSIC / INIC | E22: NHIC -15% | F22: AIG AC -25%
A23: KANSAS | D23: GSIC / INIC | E23: NHIC -15% | F23: AIG AC -25%
A24: KENTUCKY | C24: INIC +15% | D24: GSIC | E24: NHIC -15% | F24: AIG AC -25% | H24: AIG PCC / AHAC / NUFIC / C&I / ISOP
A25: LOUISIANA | D25: GSIC / INIC /AIG AC | E25: NHIC -15%
A26: MAINE | D26: GSIC | E26: NHIC -15%
A27: MARYLAND | C27: INIC +15% | D27: GSIC | E27: NHIC -15% | F27: AIG AC -25%
A28: MASSACHUSETTS | D28: GSIC | E28: NHIC -15%
A29: MICHIGAN | D29: GSIC / INIC | E29: NHIC -15% | F29: AIG AC -25% | H29: AIG PCC / AHAC / NUFIC / C&I / ISOP
A30: MINNESOTA | D30: GSIC / INIC | E30: NHIC -15%
A31: MISSISSIPPI | D31: GSIC | E31: NHIC -15% | F31: AIG AC -25%
A32: MISSOURI | C32: INIC +15% | D32: GSIC | E32: NHIC -15% | F32: AIG AC -25%
A33: MONTANA | D33: GSIC / INIC | E33: NHIC -15% | F33: AIG AC -25%
A34: NEBRASKA | D34: NHIC / GSIC / AIG AC / INIC | H34: AIG PCC / AHAC / NUFIC / C&I / ISOP
A35: NEVADA | D35: GSIC / INIC | E35: NHIC -15% | F35: AIG AC -25%
A36: NEW HAMPSHIRE | C36: INIC +15% | D36: GSIC | E36: NHIC -15% | F36: AIG AC -25%
A37: NEW JERSEY | D37: GSIC / INIC | E37: NHIC -15%
A38: NEW MEXICO | D38: GSIC | E38: NHIC -15% | F38: AIG AC -25%
A39: NEW YORK | D39: NHIC / GSIC / INIC
A40: NORTH CAROLINA | D40: GSIC | E40: NHIC -15% | F40: AIG AC -25%
A41: NORTH DAKOTA | C41: INIC +15% | D41: GSIC | E41: NHIC -15% | F41: AIG AC -25%
A42: OHIO | D42: GSIC / INIC | E42: NHIC -15% | F42: AIG AC -25%
A43: OKLAHACOMA | D43: NHIC / GSIC / AIG AC / INIC
A44: OREGON | C44: INIC +15% | D44: GSIC | E44: NHIC -15% | F44: AIG AC -25%
A45: PENNSYLVANIA | C45: INIC +15% | D45: GSIC | E45: NHIC -15% | F45: AIG AC -25%
A46: RHODE ISLAND | D46: GSIC / INIC | E46: NHIC -15% | F46: AIG AC -25%
A47: SOUTH CAROLINA | D47: GSIC / INIC | E47: NHIC -15% | F47: AIG AC -25%
A48: SOUTH DAKOTA | C48: INIC +15% | D48: GSIC | E48: NHIC -15% | F48: AIG AC -25%
A49: TENNESSEE | D49: GSIC / INIC | E49: NHIC -15% | F49: AIG AC -25%
A50: TEXAS | C50: INIC +15% | D50: GSIC | E50: NHIC -15% | F50: AIG AC -25%
A51: UTAH | C51: INIC +15% | D51: GSIC | E51: NHIC -15% | F51: AIG AC -25%
A52: VERMONT | D52: GSIC / INIC | E52: NHIC -15%
A53: VIRGINIA | D53: GSIC | E53: NHIC -15% | F53: AIG AC -25% | H53: AIG PCC / AHAC / NUFIC / C&I / ISOP
A54: WASHINGTON | D54: GSIC / AIG AC / INIC | E54: NHIC -15%
A55: WEST VIRGINIA | C55: INIC +15% | D55: GSIC | E55: NHIC -15% | F55: AIG AC -25%
A56: WISCONSIN | C56: INIC +15% | D56: GSIC | E56: NHIC -15% | F56: AIG AC -25%
A57: WYOMING | D57: NHIC / GSIC / AIG AC / INIC
H59: + AIU, LIC LC filings not maintained after 4/2009

Sheet BOILER
B1: BOILER & MACHINERY LOSS COST FILING STATUS | J1: POOLED COMPANIES | S1: ="as of "&GL!R1 -> as of 02/04/16
S2: (data not updated since 07/07/14)
B4: CURRENT: | J4: PENDING:
E6: Loss | H6: Loss | J6: Actuarial | K6: Pending/ | L6: Proposed | N6: Loss | Q6: Loss
C7: Effective | D7: Circular #'s | E7: Cost | F7: Expense | G7: Overall | H7: Cost | J7: Support | K7: Approved/ | L7: Effective | M7: Circular #'s | N7: Cost | O7: Expense | P7: Overall | Q7: Cost
B8: State | C8: Date | D8: (Edition Date) | E8: Change | F8: Change | G8: Change | H8: Multiplier | J8: Prepared | K8: Automatic | L8: Date | M8: (Edition Date) | N8: Change | O8: Change | P8: Change | Q8: Multiplier | S8: Companies Filed
B9: AL | C9: 10/1/15 | D9: 2015-002 (10/15) | E9: -0.15 | F9: 0 | G9: -0.15 | H9: 1.698 | K9: Pending | M9: 2015-001 | N9: -0.15 | Q9: 1.698
B10: AK | C10: 10/1/15 | D10: 2015-002 (10/15) | E10: -0.15 | F10: 0 | G10: -0.15 | H10: 1.616 | K10: Pending | M10: 2015-001 | N10: -0.15 | Q10: 1.616
B11: AZ | C11: 10/1/15 | D11: 2015-002 (10/15) | E11: -0.15 | F11: 0 | G11: -0.15 | H11: 1.634 | K11: Pending | M11: 2015-001 | N11: -0.15 | Q11: 1.634
B12: AR | C12: 10/1/15 | D12: 2015-002 (10/15) | E12: -0.15 | F12: 0 | G12: -0.15 | H12: 1.647 | K12: Pending | M12: 2015-001 | N12: -0.15 | Q12: 1.647
B13: CA * | K13: Not Yet Filed Not Yet Filed | M13: 2015-009 (10/15) 2013-004 (10/13) | N13: -15.0% -11.8%
B14: CO | C14: 10/1/15 | D14: 2015-002 (10/15) | E14: -0.15 | F14: 0 | G14: -0.15 | H14: 1.637 | K14: Pending | M14: 2015-001 | N14: -0.15 | Q14: 1.637
B15: CT | C15: 10/1/15 | D15: 2015-002 (10/15) | E15: -0.15 | F15: 0 | G15: -0.15 | H15: 1.629 | K15: Pending | M15: 2015-001 | N15: -0.15
B16: DE * | C16: 3/26/12 | D16: 2011-012 (10/11) | E16: -0.168 | F16: 0 | G16: -0.168 | H16: 1.603 | K16: Not Yet Filed Not Yet Filed | M16: 2015-002 (10/15) 2013-006 (10/13) | N16: -15.0% -11.8%
B17: DC | C17: 10/1/15 | D17: 2015-002 (10/15) | E17: -0.15 | F17: 0 | G17: -0.15 | H17: 1.642 | K17: Pending | M17: 2015-001 | N17: -0.15 | Q17: 1.642
B18: FL * | C18: 10/1/07 | D18: 2007-055 (9/05) | E18: -0.25 | F18: 0.013 | G18: -0.24 | H18: 1.355 | K18: Not Yet Filed Not Yet Filed | M18: 2015-002 (10/15) 2013-004 (10/13) | N18: -15.0% -11.8%
B19: GA | C19: 10/1/15 | D19: 2015-002 (10/15) | E19: -0.15 | F19: 0 | G19: -0.15 | H19: 1.623 | K19: Pending | M19: 2015-001 | N19: -0.15 | Q19: 1.623
B20: HI * | C20: 10/1/11 | D20: HIB Pub. No. 110040 | E20: -0.168 | F20: 0 | G20: -0.168 | H20: 1.773 | K20: Pending | L20: 9/1/14 | M20: HIB Pub 130022, 130054 | N20: -0.168 | O20: 0 | P20: -0.168 | Q20: 1.773
B21: ID | C21: 10/1/15 | D21: 2015-002 (10/15) | E21: -0.15 | F21: 0 | G21: -0.15 | H21: 1.656 | K21: Pending | M21: 2015-001 | N21: -0.15 | Q21: 1.656
B22: IL * | C22: 1/16/12 | D22: 2011-012 (10/11) | E22: -0.168 | F22: 0 | G22: -0.168 | H22: 1.634 | K22: Not Yet Filed Not Yet Filed | M22: 2015-002 (10/15) 2013-004 (10/13) | N22: -15.0% -11.8%
B23: IN | C23: 10/1/15 | D23: 2015-002 (10/15) | E23: -0.15 | F23: 0 | G23: -0.15 | H23: 1.634 | K23: Pending | M23: 2015-001 | N23: -0.15 | Q23: 1.634
B24: IA | C24: 10/1/15 | D24: 2015-002 (10/15) | E24: -0.15 | F24: 0 | G24: -0.15 | H24: 1.634 | K24: Pending | M24: 2015-001 | N24: -0.15 | Q24: 1.634
B25: KS | C25: 10/1/15 | D25: 2015-002 (10/15) | E25: -0.15 | F25: 0 | G25: -0.15 | H25: 1.634 | K25: Pending | M25: 2015-001 | N25: -0.15 | Q25: 1.634
B26: KY | C26: 10/1/15 | D26: 2015-002 (10/15) | E26: -0.15 | F26: 0 | G26: -0.15 | H26: 1.843 | K26: Pending | M26: 2015-001 | N26: -0.15 | Q26: 1.843
B27: LA *# | C27: 1/1/00 | D27: 97-14/43 (9/1997) | E27: 0 | F27: -0.217 | G27: -0.217 | H27: 1.681 | K27: Not Yet Filed Not Yet Filed | M27: 2015-002 (10/15) 2013-004 (10/13) | N27: -15.0% -11.8%
B28: ME | C28: 10/1/15 | D28: 2015-002 (10/15) | E28: -0.15 | F28: 0 | G28: -0.15 | H28: 1.634 | K28: Pending | M28: 2015-001 | N28: -0.15 | Q28: 1.634
B29: MD | C29: 10/1/15 | D29: 2015-002 (10/15) | E29: -0.15 | F29: 0 | G29: -0.15 | H29: 1.634 | K29: Pending | M29: 2015-001 | N29: -0.15 | Q29: 1.634
B30: MA * | C30: 6/25/12 | D30: 2010-012 (10/11) | E30: -0.168 | F30: 0 | G30: -0.168 | H30: 1.61 | K30: Not Yet Filed Not Yet Filed | M30: 2015-002 (10/15) 2013-004 (10/13) | N30: -15.0% -11.8%
B31: MI | C31: 10/1/15 | D31: 2015-002 (10/15) | E31: -0.15 | F31: 0 | G31: -0.15 | H31: 1.616 | K31: Pending | M31: 2015-001 | N31: -0.15 | Q31: 1.616
B32: MN * | C32: 10/1/15 | D32: 2015-002 (10/15) | E32: -0.15 | F32: 0 | G32: -0.15 | H32: 1.634 | K32: Pending | M32: 2015-001 | N32: -0.15 | Q32: 1.634
B33: MS | C33: 10/1/15 | D33: 2015-002 (10/15) | E33: -0.15 | F33: 0 | G33: -0.15 | H33: 1.669 | K33: Pending | M33: 2015-001 | N33: -0.15 | Q33: 1.669
B34: MO | C34: 10/1/15 | D34: 2015-002 (10/15) | E34: -0.15 | F34: 0 | G34: -0.15 | H34: 1.634 | K34: Pending | M34: 2015-001 | N34: -0.15 | Q34: 1.634
B35: MT | C35: 10/1/15 | D35: 2015-002 (10/15) | E35: -0.15 | F35: 0 | G35: -0.15 | H35: 1.656 | K35: Pending | M35: 2015-001 | N35: -0.15 | Q35: 1.656
B36: NE | C36: 10/1/15 | D36: 2015-002 (10/15) | E36: -0.15 | F36: 0 | G36: -0.15 | H36: 1.608 | K36: Pending | M36: 2015-001 | N36: -0.15 | Q36: 1.608
B37: NV | C37: 10/1/15 | D37: 2015-002 (10/15) | E37: -0.15 | F37: 0 | G37: -0.15 | H37: 1.675 | K37: Pending | M37: 2015-001 | N37: -0.15 | Q37: 1.675
B38: NH | C38: 10/1/15 | D38: 2015-002 (10/15) | E38: -0.15 | F38: 0 | G38: -0.15 | H38: 1.634 | K38: Pending | M38: 2015-001 | N38: -0.15 | Q38: 1.634
B39: NJ | C39: 10/1/15 | D39: 2015-002 (10/15) | E39: -0.15 | F39: 0 | G39: -0.15 | H39: 1.639 | K39: Pending | M39: 2015-001 | N39: -0.15 | Q39: 1.639
B40: NM | C40: 10/1/15 | D40: 2015-002 (10/15) | E40: -0.15 | F40: 0 | G40: -0.15 | H40: 1.661 | K40: Pending | M40: 2015-001 | N40: -0.15 | Q40: 1.661
B41: NY * | C41: 4/1/14 | D41: 2013-008 (11/13) | E41: -0.451 | F41: 0.082 | G41: -0.406 | H41: 1.748 | K41: Not Yet Filed Not Yet Filed | M41: 2015-002 (10/15) 2013-004 (10/13) | N41: -15.0% -11.8%
B42: NC | C42: 10/1/15 | D42: 2015-002 (10/15) | E42: -0.15 | F42: 0 | G42: -0.15 | H42: 1.637 | K42: Pending | M42: 2015-001 | N42: -0.15 | Q42: 1.637
B43: ND | C43: 10/1/15 | D43: 2015-002 (10/15) | E43: -0.15 | F43: 0 | G43: -0.15 | H43: 1.629 | K43: Pending | M43: 2015-001 | N43: -0.15 | Q43: 1.629
B44: OH | C44: 10/1/15 | D44: 2015-002 (10/15) | E44: -0.15 | F44: 0 | G44: -0.15 | H44: 1.647 | K44: Pending | M44: 2015-001 | N44: -0.15 | Q44: 1.647
B45: OK | C45: 10/1/15 | D45: 2015-002 (10/15) | E45: -0.15 | F45: 0 | G45: -0.15 | H45: 1.642 | K45: Pending | M45: 2015-001 | N45: -0.15 | Q45: 1.642
B46: OR | C46: 10/1/15 | D46: 2015-002 (10/15) | E46: -0.15 | F46: 0 | G46: -0.15 | H46: 1.642 | K46: Pending | M46: 2015-001 | N46: -0.15 | Q46: 1.642
B47: PA | C47: 10/1/15 | D47: 2015-002 (10/15) | E47: -0.15 | F47: 0 | G47: -0.15 | H47: 1.634 | K47: Pending | M47: 2015-001 | N47: -0.15 | Q47: 1.634
B48: RI | C48: 10/1/15 | D48: 2015-002 (10/15) | E48: -0.15 | F48: 0 | G48: -0.15 | H48: 1.634 | K48: Pending | M48: 2015-001 | N48: -0.15 | Q48: 1.634
B49: SC | C49: 11/1/15 | D49: 2015-006 (11/15) | E49: -0.15 | F49: 0 | G49: -0.15 | H49: 1.634 | P49: -0.15 | Q49: 1.634
B50: SD | C50: 10/1/15 | D50: 2015-002 (10/15) | E50: -0.15 | F50: 0 | G50: -0.15 | H50: 1.647 | K50: Pending | M50: 2015-001 | N50: -0.15 | Q50: 1.647
A51: UTAH | B51: TN | C51: 10/1/15 | D51: 2015-002 (10/15) | E51: -0.15 | F51: 0 | G51: -0.15 | H51: 1.647 | K51: Pending | M51: 2015-001 | N51: -0.15 | Q51: 1.647
B52: TX * | C52: 2/6/12 | D52: 2011-006/012 (10/11) | E52: -0.168 | F52: 0 | G52: -0.168 | H52: 1.406 | K52: Not Yet Filed Not Yet Filed | M52: 2015-005 (10/15) 2013-004 (10/13) | N52: -15.0% -11.8% | S52: AHAC, AIG AC, AIG PCC, C&I, GSIC, INIC, NUFIC, NHIC, ISOP
A53: VIRGINIA | B53: UT | C53: 10/1/15 | D53: 2015-002 (10/15) | E53: -0.15 | F53: 0 | G53: -0.15 | H53: 1.642 | K53: Pending | M53: 2015-001 | N53: -0.15 | Q53: 1.642
B54: VT | C54: 10/1/15 | D54: 2015-002 (10/15) | E54: -0.15 | F54: 0 | G54: -0.15 | H54: 1.634 | K54: Pending | M54: 2015-001 | N54: -0.15 | Q54: 1.634
A55: WEST VIRGINIA | B55: VA | C55: 10/1/15 | D55: 2015-002 (10/15) | E55: -0.15 | F55: 0 | G55: -0.15 | H55: 1.642 | K55: Pending | M55: 2015-001 | N55: -0.15 | Q55: 1.642
B56: WA | C56: 10/1/15 | D56: 2015-002 (10/15) | E56: -0.15 | F56: 0 | G56: -0.15 | H56: 1.905 | K56: Pending | M56: 2015-001 | N56: -0.15 | Q56: 1.905
B57: WV | C57: 10/1/15 | D57: 2015-002 (10/15) | E57: -0.15 | F57: 0 | G57: -0.15 | H57: 1.639 | K57: Pending | M57: 2015-001 | N57: -0.15 | Q57: 1.639
B58: WI | C58: 10/1/15 | D58: 2015-002 (10/15) | E58: -0.15 | F58: 0 | G58: -0.15 | H58: 1.634 | K58: Pending | M58: 2015-001 | N58: -0.15 | Q58: 1.634
B59: WY | C59: 10/1/15 | D59: 2015-002 (10/15) | E59: -0.15 | F59: 0 | G59: -0.15 | H59: 1.603 | K59: Pending | M59: 2015-001 | N59: -0.15 | Q59: 1.603
J60: 6/10/11 | K60: Approved | L60: 10/1/11 | M60: 2011-004/012 (10/11) | O60: 0
B62: * LCM cannot be placed on file for future revisions. | O62: + AIP, AIU LC filings not maintained after 4/2009
C63: # NY Cos. Were effective on 1/1/00. | E63: 0 | F63: -0.217 | G63: -0.217 | H63: 1.681
D64: 9/5/07 NY Co. & NH Co. pages were combined as the only difference between the two groupings is that NH Cos. Have an additional rating plan designed by HSB.

Sheet FIDELITY
B1: FIDELITY (SFAA Program) LOSS COST FILING STATUS | I1: POOLED COMPANIES | P1: =BOILER!S1 -> as of 02/04/16
P2: =BOILER!S2 -> (data not updated since 07/07/14)
B4: CURRENT: | I4: PENDING:
D6: Loss | I6: Actuarial | K6: Proposed/ | L6: Loss
C7: Effective | D7: Cost | E7: Expense | F7: Overall | G7: Loss Cost | I7: Support | J7: Pending/ | K7: Effective | L7: Cost | M7: Expense | N7: Overall | O7: Loss Cost
B8: State | C8: Date | D8: Change | E8: Change | F8: Change | G8: Multiplier | I8: Prepared | J8: Approved | K8: Date | L8: Change | M8: Change | N8: Change | O8: Multiplier | P8: Companies Filed
B9: ALABAMA | C9: 6/1/04 | D9: 0.073 | E9: 0 | F9: 0.073 | G9: 1.412 | P9: NHIC/GSIC/AHAC/NUFIC/ISOP/C&I/AIG AC
B10: ALASKA | C10: 6/1/04 | D10: 0.073 | E10: 0 | F10: 0.073 | G10: 1.41 | P10: NHIC/GSIC/INIC/AIG PCC/AHAC/NUFIC/ISOP/C&I/AIG AC
B11: ARIZONA | C11: 6/17/04 | D11: 0.073 | E11: 0 | F11: 0.073 | G11: 1.397 | P11: NHIC/GSIC/AHAC/NUFIC/ISOP/C&I/AIG PCC
B12: ARKANSAS | C12: 6/1/04 | D12: 0.073 | E12: 0 | F12: 0.073 | G12: 1.406 | P12: NHIC/GSIC/AHAC/NUFIC/ISOP/C&I
B13: CALIFORNIA * | C13: 8/25/14 | P13: NHIC/GSIC/AHAC/NUFIC/ISOP/C&I/BF
B14: COLORADO | C14: 9/1/04 | D14: 0.073 | E14: 0 | F14: 0.073 | G14: 1.401 | P14: NHIC/GSIC/AIP/AIG AC/AHAC/NUFIC/ISOP/C&I/AIG PCC
B15: CONNECTICUT | C15: 6/1/04 | D15: 0.073 | E15: 0 | F15: 0.073 | G15: 1.393 | P15: NHIC/GSIC/AHAC/NUFIC/ISOP/C&I/AIG AC
B16: DELAWARE | C16: 8/19/04 | D16: 0.073 | E16: 0 | F16: 0.076 | G16: 1.401 | P16: NHIC/AHAC/NUFIC/ISOP/C&I/AIG AC
B17: DIST.OF COL. | C17: 6/1/04 | D17: 0.073 | E17: 0 | F17: 0.073 | G17: 1.403 | P17: NHIC/GSIC/AIG PCC/AHAC/NUFIC/ISOP/C&I/AIG AC
B18: FLORIDA * | C18: 8/1/04 | D18: 0.073 | E18: -0.024 | F18: 0.047 | G18: 1.284 | P18: NHIC/GSIC/AHAC/NUFIC/ISOP/C&I/AIG AC
B19: GEORGIA | C19: 9/23/04 | D19: 0.073 | E19: 0 | F19: 0.073 | G19: 1.439 | P19: NHIC/GSIC/AIG PCC/AHAC/NUFIC/ISOP/C&I/AIG AC
B20: HAWAII * | C20: 4/1/05 | D20: 0.073 | E20: 0 | F20: 0.073 | G20: 1.362 | P20: NHIC/GSIC/AHAC/NUFIC/ISOP/C&I/AIG AC | Q20: 1.474
B21: IDAHO | C21: 6/1/04 | D21: 0.073 | E21: 0 | F21: 0.073 | G21: 1.412 | P21: NHIC/GSIC/INIC/AHAC/NUFIC/ISOP/C&I/AIG AC
B22: ILLINOIS * | C22: 8/1/04 | D22: 0.073 | E22: 0 | F22: 0.073 | G22: 1.397 | P22: NHIC/GSIC/INIC/AHAC/NUFIC/ISOP/C&I/AIG AC
B23: INDIANA | C23: 6/28/04 | D23: 0.073 | E23: 0 | F23: 0.073 | G23: 1.397 | P23: NHIC/GSIC/INIC/AHAC/NUFIC/ISOP/C&I/AIG AC
B24: IOWA | C24: 6/1/04 | D24: 0.073 | E24: 0 | F24: 0.073 | G24: 1.395 | P24: NHIC/GSIC/INIC/AHAC/NUFIC/ISOP/C&I/AIG AC
B25: KANSAS | C25: 2/15/99 | D25: -0.032 | E25: 0.118 | F25: 0.082 | G25: 1.397 | P25: NHIC/GSIC/AHAC/NUFIC/ISOP/C&I/AIG AC
B26: KENTUCKY * | C26: 6/1/04 | D26: 0.073 | E26: 0 | F26: 0.073 | G26: 1.635 | P26: NHIC/GSIC/AIG PCC/INIC/AHAC/NUFIC/ISOP/C&I/AIG AC
B27: LOUISIANA * + | C27: 11/1/04 | D27: 0.039 | E27: -0.083 | F27: -0.047 | G27: 1.119 | P27: NHIC/GSIC/AHAC/NUFIC/ISOP/C&I/AIG AC
B28: MAINE | C28: 6/1/04 | D28: 0.073 | E28: 0 | F28: 0.073 | G28: 1.397 | P28: NHIC/GSIC/INIC/AHAC/NUFIC/ISOP
B29: MARYLAND | C29: 6/1/04 | D29: 0.073 | E29: 0 | F29: 0.073 | G29: 1.397 | P29: NHIC/GSIC/AIG PCC/INIC/AHAC/NUFIC/ISOP/C&I/AIG AC
B30: MASSACHUSETTS * | C30: 9/1/04 | D30: 0.012 | E30: 0 | F30: 0.012 | G30: 1.403 | P30: NHIC/GSIC/AHAC/NUFIC/ISOP/C&I
B31: MICHIGAN | C31: 6/1/04 | D31: 0.073 | E31: 0 | F31: 0.073 | G31: 1.383 | P31: NHIC/GSIC/INIC/AHAC/NUFIC/ISOP/C&I/AIG AC
B32: MINNESOTA * | C32: 6/1/04 | D32: 0.073 | E32: 0 | F32: 0.073 | G32: 1.366 | P32: NHIC/GSIC/AHAC/NUFIC/ISOP/C&I/AIG AC
B33: MISSISSIPPI | C33: 6/1/04 | D33: 0.073 | E33: 0 | F33: 0.073 | G33: 1.416 | P33: NHIC/GSIC/AIG PCC/AHAC/NUFIC/ISOP/C&I/AIG AC
B34: MISSOURI | C34: 6/1/04 | D34: 0.073 | E34: 0 | F34: 0.073 | G34: 1.397 | P34: NHIC/GSIC/INIC/AHAC/NUFIC/ISOP/C&I/AIG AC
B35: MONTANA | C35: 6/1/04 | D35: 0.073 | E35: 0 | F35: 0.073 | G35: 1.412 | P35: NHIC/GSIC/INIC/AIG PCC/AHAC/NUFIC/ISOP/C&I/AIG AC
B36: NEBRASKA | C36: 6/14/04 | D36: 0.073 | E36: 0 | F36: 0.073 | G36: 1.377 | P36: NHIC/GSIC/INIC/AHAC/NUFIC/ISOP/C&I/AIG AC
B37: NEVADA | C37: 6/1/04 | D37: 0.073 | E37: 0 | F37: 0.073 | G37: 1.427 | P37: NHIC/GSIC/INIC/AHAC/NUFIC/ISOP/C&I/AIG AC
B38: NEW HAMPSHIRE | C38: 6/1/04 | D38: 0.073 | E38: 0 | F38: 0.073 | G38: 1.397 | P38: NHIC/GSIC/INIC/AIS/AHAC/NUFIC/ISOP/C&I/AIG AC
B39: NEW JERSEY | C39: 9/1/98 | D39: -0.032 | E39: 0.029 | F39: -0.004 | G39: 1.401 | P39: NHIC/GSIC/INIC/AHAC/NUFIC/ISOP/C&I
B40: NEW MEXICO * | C40: 7/7/04 | D40: 0.073 | E40: 0.025 | F40: 0.1 | G40: 1.42 | P40: NHIC/GSIC/INIC/AIG PCC/AHAC/NUFIC/ISOP/C&I/AIG AC
B41: NEW YORK * | C41: 10/1/12 | D41: 0 | E41: 0 | F41: 0 | G41: 1.372 | P41: NHIC/GSIC/INIC/AHAC/NUFIC/ISOP/C&I/AIG AC
B42: NORTH CAROLINA | C42: 6/1/04 | D42: 0.073 | E42: 0 | F42: 0.073 | G42: 1.393 | P42: NHIC/GSIC/AIG PCC/AHAC/NUFIC/ISOP/C&I/AIG AC
B43: NORTH DAKOTA | C43: 6/1/04 | D43: 0.073 | E43: 0 | F43: 0.073 | G43: 1.393 | P43: NHIC/GSIC/INIC/AIG PCC/AHAC/NUFIC/ISOP/C&I/AIG AC
B44: OHIO | C44: 6/1/04 | D44: 0.073 | E44: 0 | F44: 0.073 | G44: 1.406 | P44: NHIC/GSIC/INIC/AHAC/NUFIC/ISOP/C&I/AIG AC
B45: OKLAHOMA | C45: 6/1/04 | D45: 0.073 | E45: 0 | F45: 0.073 | G45: 1.401 | P45: GSIC/AIG PCC/AHAC/NUFIC/ISOP/C&I/AIG AC
B46: OREGON | C46: 6/1/04 | D46: 0.073 | E46: 0 | F46: 0.073 | G46: 1.403 | P46: NHIC/GSIC/AHAC/NUFIC/ISOP/C&I/AIG AC
B47: PENNSYLVANIA | C47: 6/1/04 | D47: 0.073 | E47: 0 | F47: 0.073 | G47: 1.397 | P47: NHIC/GSIC/AIG PCC/AHAC/NUFIC/ISOP/C&I/AIG AC
B48: RHODE ISLAND | C48: 9/1/98 | D48: -0.032 | E48: 0.14 | F48: 0.104 | G48: 1.397 | P48: NHIC/GSIC/INIC/AIG PCC/AHAC/NUFIC/ISOP/C&I/AIG AC
B49: SOUTH CAROLINA | C49: 6/1/04 | D49: 0.073 | E49: 0 | F49: 0.073 | G49: 1.412 | P49: NHIC/GSIC/AIG PCC/AHAC/NUFIC/ISOP/C&I/AIG AC
B50: SOUTH DAKOTA | C50: 6/1/04 | D50: 0.073 | E50: 0 | F50: 0.073 | G50: 1.406 | P50: NHIC/GSIC/INIC/AHAC/NUFIC/ISOP/C&I/AIG AC
A51: UTAH | B51: TENNESSEE | C51: 6/1/04 | D51: 0.073 | E51: 0 | F51: 0.073 | G51: 1.406 | P51: NHIC/GSIC/AHAC/NUFIC/ISOP/C&I
B52: TEXAS * | C52: 11/1/04 | D52: 0.073 | E52: -0.023 | F52: 0.048 | G52: 1.311 | P52: NHIC/GSIC/INIC/AHAC/NUFIC/ISOP/C&I/AIG AC
A53: VIRGINIA | B53: UTAH | C53: 6/1/04 | D53: 0.073 | E53: 0 | F53: 0.073 | G53: 1.403 | P53: NHIC/GSIC/INIC/AHAC/NUFIC/ISOP/C&I/AIG AC
B54: VERMONT | C54: 6/1/04 | D54: 0.073 | E54: 0 | F54: 0.073 | G54: 1.397 | P54: NHIC/GSIC/INIC/AHAC/NUFIC/ISOP/C&I/AIG AC
A55: WEST VIRGINIA | B55: VIRGINIA | C55: 6/1/04 | D55: 0.073 | E55: 0 | F55: 0.073 | G55: 1.403 | P55: NHIC/GSIC/AHAC/NUFIC/ISOP/C&I/AIG AC
B56: WASHINGTON | C56: 7/1/04 | D56: 0.073 | E56: 0 | F56: 0.073 | G56: 1.453 | P56: NHIC/GSIC/AHAC/NUFIC/ISOP/C&I/AIG AC
B57: WEST VIRGINIA | C57: 6/1/04 | D57: 0.073 | E57: 0 | F57: 0.073 | G57: 1.416 | P57: NHIC/GSIC/INIC/AHAC/NUFIC/ISOP/C&I/AIG AC
B58: WISCONSIN | C58: 6/1/04 | D58: 0.073 | E58: 0 | F58: 0.073 | G58: 1.397 | P58: NHIC/GSIC/AHAC/NUFIC/ISOP/C&I/AIG AC
B59: WYOMING | C59: 9/1/98 | D59: -0.032 | E59: 0.073 | F59: 0.039 | G59: 1.374 | P59: NHIC/GSIC/INIC/AHAC/NUFIC/ISOP/C&I/AIG AC
P61: LIC LC filings not maintained after 4/2009

Sheet SURETY
B1: SURETY (SFAA Program) LOSS COST FILING STATUS | G1: POOLED COMPANIES | O1: =FIDELITY!P1 -> as of 02/04/16
O2: =FIDELITY!P2 -> (data not updated since 07/07/14)
B4: CURRENT: | I4: PENDING:
D6: Loss | G6: Loss | I6: Actuarial | K6: Proposed/ | L6: Loss | O6: Loss
C7: Effective | D7: Cost | E7: Expense | F7: Overall | G7: Cost | I7: Support | J7: Pending/ | K7: Effective | L7: Cost | M7: Expense | N7: Overall | O7: Cost
B8: State | C8: Date | D8: Change | E8: Change | F8: Change | G8: Multiplier | I8: Prepared | J8: Approved | K8: Date | L8: Change | M8: Change | N8: Change | O8: Multiplier
B9: ALABAMA | C9: 9/1/05 | D9: 0.005 | E9: 0 | F9: 0.005 | G9: 1.453
B10: ALASKA | C10: 7/1/04 | D10: 0.147 | E10: 0 | F10: 0.147 | G10: 1.453
B11: ARIZONA | C11: 9/1/05 | D11: 0.005 | E11: 0 | F11: 0.005 | G11: 1.453
B12: ARKANSAS | C12: 9/1/05 | D12: 0.005 | E12: 0 | F12: 0.005 | G12: 1.453
B13: CALIFORNIA | C13: 8/25/14 | F13: -0.4 | G13: 1.453
B14: COLORADO | C14: 9/1/05 | D14: 0.005 | E14: 0 | F14: 0.005 | G14: 1.453
B15: CONNECTICUT | C15: 9/1/05 | D15: 0.005 | E15: 0 | F15: 0.005 | G15: 1.453
B16: DELAWARE * | C16: 10/1/05 | D16: 0.005 | E16: 0 | F16: 0.005 | G16: 1.453 | H16: 7
B17: DIST. OF COLUMBIA | C17: 9/1/05 | D17: 0.005 | E17: 0 | F17: 0.005 | G17: 1.453
B18: FLORIDA * | C18: 10/1/95 | F18: -0.381 | G18: 1.499
B19: GEORGIA | C19: 9/20/05 | D19: 0.005 | E19: 0 | F19: 0.005 | G19: 1.453
B20: HAWAII * | C20: 6/25/12 | D20: -0.043 | E20: 0 | F20: -0.043 | G20: 1.453
B21: IDAHO | C21: 9/1/05 | D21: 0.005 | E21: 0 | F21: 0.005 | G21: 1.453
B22: ILLINOIS * | C22: 1/1/06 | D22: 0.005 | E22: 0 | F22: 0.005 | G22: 1.453
B23: INDIANA | C23: 9/1/05 | D23: 0.005 | E23: 0 | F23: 0.005 | G23: 1.453
B24: IOWA | C24: 9/1/05 | D24: 0.005 | E24: 0 | F24: 0.005 | G24: 1.56
B25: KANSAS | C25: 1/1/06 | D25: 0.017 | E25: 0 | F25: 0.017 | G25: 1.453
B26: KENTUCKY * | C26: 9/1/05 | D26: 0.005 | E26: 0 | F26: 0.005 | G26: 1.836
B27: LOUISIANA * | C27: 11/1/05 | D27: 0.005 | E27: 0 | F27: 0.005 | G27: 1.453
B28: MAINE | C28: 9/1/05 | D28: 0.005 | E28: 0 | F28: 0.005 | G28: 1.453
B29: MARYLAND | C29: 9/1/05 | D29: 0.005 | E29: 0 | F29: 0.005 | G29: 1.453
B30: MASSACHUSETTS * | C30: 10/1/05 | D30: 0.005 | E30: 0 | F30: 0.005 | G30: 1.453
B31: MICHIGAN | C31: 9/1/05 | D31: 0.005 | E31: 0 | F31: 0.005 | G31: 1.453
B32: MINNESOTA * | C32: 9/1/05 | D32: 0.005 | E32: 0 | F32: 0.005 | G32: 1.453
B33: MISSISSIPPI | C33: 9/1/05 | D33: 0.005 | E33: 0 | F33: 0.005 | G33: 1.453
B34: MISSOURI | C34: 9/1/05 | D34: 0.005 | E34: 0 | F34: 0.005 | G34: 1.453
B35: MONTANA | C35: 9/1/05 | D35: 0.005 | E35: 0 | F35: 0.005 | G35: 1.453
B36: NEBRASKA | C36: 9/1/05 | D36: 0.005 | E36: 0 | F36: 0.005 | G36: 1.453
B37: NEVADA | C37: 9/1/05 | D37: 0.005 | E37: 0 | F37: 0.005 | G37: 1.453
B38: NEW HAMPSHIRE | C38: 9/1/05 | D38: 0.005 | E38: 0 | F38: 0.005 | G38: 1.453
B39: NEW JERSEY | C39: 1/1/06 | D39: 0.017 | E39: 0 | F39: 0.017 | G39: 1.453
B40: NEW MEXICO * | C40: 6/1/04 | D40: 0.012 | E40: 0 | F40: 0.012 | G40: 1.453
B41: NEW YORK * | C41: 4/20/05 | D41: 0.012 | E41: 0.016 | F41: 0.028 | G41: 1.433
B42: NORTH CAROLINA | C42: 9/1/05 | D42: 0.005 | E42: 0 | F42: 0.005 | G42: 1.52
B43: NORTH DAKOTA | C43: 9/1/05 | D43: 0.005 | E43: 0 | F43: 0.005 | G43: 1.453
B44: OHIO | C44: 9/1/05 | D44: 0.005 | E44: 0 | F44: 0.005 | G44: 1.453
B45: OKLAHOMA | C45: 9/1/05 | D45: 0.005 | E45: 0 | F45: 0.005 | G45: 1.572
B46: OREGON | C46: 9/1/05 | D46: 0.005 | E46: 0 | F46: 0.005 | G46: 1.453
B47: PENNSYLVANIA | C47: 9/1/05 | D47: 0.005 | E47: 0 | F47: 0.005 | G47: 1.453
B48: RHODE ISLAND | C48: 1/1/06 | D48: 0.017 | E48: 0 | F48: 0.017 | G48: 1.453
B49: SOUTH CAROLINA | C49: 10/13/05 | D49: 0.005 | E49: 0 | F49: 0.005 | G49: 1.453
B50: SOUTH DAKOTA | C50: 9/1/05 | D50: 0.005 | E50: 0 | F50: 0.005 | G50: 1.453
A51: UTAH | B51: TENNESSEE | C51: 9/1/05 | D51: 0.005 | E51: 0 | F51: 0.005 | G51: 1.453
B52: TEXAS *
A53: VIRGINIA | B53: UTAH | C53: 9/1/05 | D53: 0.005 | E53: 0 | F53: 0.005 | G53: 1.453
B54: VERMONT | C54: 9/1/05 | D54: 0.005 | E54: 0 | F54: 0.005 | G54: 1.453
A55: WEST VIRGINIA | B55: VIRGINIA | C55: 9/1/05 | D55: 0.012 | E55: 0 | F55: 0.012 | G55: 1.453
B56: WASHINGTON | C56: 9/1/05 | D56: 0.005 | E56: 0 | F56: 0.005 | G56: 1.41
B57: WEST VIRGINIA | C57: 9/1/05 | D57: 0.005 | E57: 0 | F57: 0.005 | G57: 1.453
B58: WISCONSIN | C58: 9/1/05 | D58: 0.005 | E58: 0 | F58: 0.005 | G58: 1.453
B59: WYOMING | C59: 1/1/06 | D59: 0.017 | E59: 0 | F59: 0.017 | G59: 1.453

Sheet SUR-DEVS
G1: ='AUTO-DEVS'!L1 -> as of 02/04/16
A2: * * * * * * * * * * * SURETY LOSS COST MODIFICATIONS * * * * * * * * * * *
A4: State | C4: Sub-Standard | E4: Standard | G4: Preferred
A6: ALABAMA | C6: ISOP / C&I +50% , NUFIC +10% | E6: AIG PCC / NHIC | G6: AHAC -10%
A7: ALASKA | C7: ISOP / C&I +50% , NUFIC +10% | E7: AIG PCC / NHIC | G7: AHAC -10%
A8: ARIZONA | C8: ISOP / C&I +50% , NUFIC +10% | E8: AIG PCC / NHIC | G8: AHAC -10%
A9: ARKANSAS | C9: ISOP / C&I +50% , NUFIC +10% | E9: AIG PCC / NHIC | G9: AHAC -10%
A10: CALIFORNIA | C10: ISOP / C&I +50% , NUFIC +10% | G10: AHAC -10%
A11: COLORADO | C11: ISOP / C&I +50% , NUFIC +10% | E11: AIG PCC / NHIC | G11: AHAC -10%
A12: CONNECTICUT | C12: ISOP / C&I +50% , NUFIC +10% | E12: AIG PCC / AIG AC / NHIC | G12: AHAC -10%
A13: DELAWARE | C13: ISOP / C&I +50% , NUFIC +10% | E13: AIG PCC / NHIC | G13: AHAC -10%
A14: DIST. OF COLUMBIA | C14: ISOP / C&I +50% , NUFIC +10% | E14: AIG PCC / NHIC | G14: AHAC -10%
A15: FLORIDA | C15: ISOP / C&I +50% , NUFIC +10% | E15: AIG PCC / NHIC | G15: AHAC -10%
A16: GEORGIA | C16: ISOP / C&I +50% , NUFIC +10% | E16: AIG PCC / NHIC | G16: AHAC -10%
A17: HAWAII | C17: ISOP / C&I +50% , NUFIC +10% | E17: NHIC | G17: AHAC -10%
A18: IDAHACO | C18: ISOP / C&I +50% , NUFIC +10% | E18: AIG PCC / GSIC / NHIC | G18: AHAC -10%
A19: ILLINOIS | C19: ISOP / C&I +50% , NUFIC +10% | E19: AIG PCC / GSIC / INIC / NHIC | G19: AHAC -10%
A20: INDIANA | C20: ISOP / C&I +50% , NUFIC +10% | E20: AIG PCC / NHIC | G20: AHAC -10%
A21: IOWA | C21: ISOP / C&I +50% , NUFIC +10% | E21: AIG PCC / NHIC | G21: AHAC -10%
A22: KANSAS | C22: ISOP / C&I +50% , NUFIC +10% | E22: AIG PCC / NHIC | G22: AHAC -10%
A23: KENTUCKY | C23: ISOP / C&I +50% , NUFIC +10% | E23: AIG PCC / AIG AC / GSIC / INIC / NHIC | G23: AHAC -10%
A24: LOUISIANA | C24: ISOP / C&I +50% , NUFIC +10% | G24: AHAC -10%
A25: MAINE | C25: ISOP / C&I +50% , NUFIC +10% | E25: AIG PCC / NHIC | G25: AHAC -10%
A26: MARYLAND | C26: ISOP / C&I +50% , NUFIC +10% | E26: AIG PCC / NHIC | G26: AHAC -10%
A27: MASSACHUSETTS | C27: ISOP / C&I +50% , NUFIC +10% | E27: NHIC | G27: AHAC -10%
A28: MICHIGAN | C28: ISOP / C&I +50% , NUFIC +10% | E28: AIG PCC | G28: AHAC -10%
A29: MINNESOTA | C29: ISOP / C&I +50% , NUFIC +10% | E29: AIG PCC / NHIC | G29: AHAC -10%
A30: MISSISSIPPI | C30: ISOP / C&I +50% , NUFIC +10% | E30: AIG PCC / NHIC | G30: AHAC -10%
A31: MISSOURI | C31: ISOP / C&I +50% , NUFIC +10% | E31: AIG PCC | G31: AHAC -10%
A32: MONTANA | C32: ISOP / C&I +50% , NUFIC +10% | E32: AIG PCC / NHIC | G32: AHAC -10%
A33: NEBRASKA | C33: ISOP / C&I +50% , NUFIC +10% | E33: AIG PCC / NHIC | G33: AHAC -10%
A34: NEVADA | C34: ISOP / C&I +50% , NUFIC +10% | E34: AIG PCC / NHIC | G34: AHAC -10%
A35: NEW HAMPSHIRE | C35: ISOP / C&I +50% , NUFIC +10% | E35: AIG PCC / AIG AC / GSIC / INIC / NHIC | G35: AHAC -10%
A36: NEW JERSEY | C36: ISOP / C&I +50% , NUFIC +10% | G36: AHAC -10%
A37: NEW MEXICO | C37: ISOP / C&I +50% , NUFIC +10% | E37: AIG PCC | G37: AHAC -10%
A38: NEW YORK | C38: ISOP / C&I +50% , NUFIC +10% | G38: AHAC -10%
A39: NORTH CAROLINA | C39: ISOP / C&I +50% , NUFIC +10% | E39: AIG PCC / AIG AC / NHIC | G39: AHAC -10%
A40: NORTH DAKOTA | C40: ISOP / C&I +50% , NUFIC +10% | E40: AIG PCC / NHIC | G40: AHAC -10%
A41: OHIO | C41: ISOP / C&I +50% , NUFIC +10% | E41: AIG PCC / AIG AC / GSIC / INIC | G41: AHAC -10%
A42: OKLAHACOMA | C42: ISOP / C&I +50% , NUFIC +10% | E42: AIG PCC | G42: AHAC -10%
A43: OREGON | C43: ISOP / C&I +50% , NUFIC +10% | E43: AIG PCC / NHIC | G43: AHAC -10%
A44: PENNSYLVANIA | C44: ISOP / C&I +50% , NUFIC +10% | E44: AIG PCC / NHIC | G44: AHAC -10%
A45: RHODE ISLAND | C45: ISOP / C&I +50% , NUFIC +10% | E45: AIG PCC / NHIC | G45: AHAC -10%
A46: SORTH CAROLINA | C46: ISOP / C&I +50% , NUFIC +10% | E46: AIG PCC / NHIC | G46: AHAC -10%
A47: SOUTH DAKOTA | C47: ISOP / C&I +50% , NUFIC +10% | E47: AIG PCC / NHIC | G47: AHAC -10%
A48: TENNESSEE | C48: ISOP / C&I +50% , NUFIC +10% | E48: AIG PCC / NHIC | G48: AHAC -10%
A49: TEXAS
A50: UTAH | C50: ISOP / C&I +50% , NUFIC +10% | E50: AIG PCC / NHIC | G50: AHAC -10%
A51: VERMONT | C51: ISOP / C&I +50% , NUFIC +10% | E51: AIG PCC / NHIC | G51: AHAC -10%
A52: VIRGINIA | C52: ISOP / C&I +50% , NUFIC +10% | E52: AIG PCC / NHIC | G52: AHAC -10%
A53: WASHINGTON | C53: ISOP / C&I +50% , NUFIC +10% | E53: AIG PCC / NHIC | G53: AHAC -10%
A54: WEST VIRGINIA | C54: ISOP / C&I +50% , NUFIC +10% | E54: AIG PCC / NHIC | G54: AHAC -10%
A55: WISCONSIN | C55: ISOP / C&I +50% , NUFIC +10% | E55: AIG PCC / NHIC | G55: AHAC -10%
A56: WYOMING | C56: ISOP / C&I +50% , NUFIC +10% | E56: AIG PCC / AIG AC / GSIC / INIC / NHIC | G56: AHAC -10%
E58: +AIP, AIU, LIC LC filings not maintained after 4/2009

Sheet FARM
A1: FARM LOSS COST FILING STATUS | G1: POOLED COMPANIES | O1: =FIDELITY!P1 -> as of 02/04/16
A3: CURRENT: | H3: PENDING:
D5: Loss | G5: Loss | H5: Actuarial | I5: Pending/ | J5: Proposed/ | L5: Loss | O5: Loss
B6: Effective | C6: Circular #'s | D6: Cost | E6: Expense | F6: Overall | G6: Cost | H6: Support | I6: Approved/ | J6: Effective | K6: Circular #'s | L6: Cost | M6: Expense | N6: Overall | O6: Cost
A7: State | B7: Date | C7: (Edition Date) | D7: Change | E7: Change | F7: Change | G7: Multiplier | H7: Prepared | I7: Automatic | J7: Date | K7: (Edition Date) | L7: Change | M7: Change | N7: Change | O7: Multiplier
A8: ALABAMA | B8: 6/1/13 | C8: 2012-087 (6/13) | D8: -0.056 | E8: 0 | F8: -0.056 | G8: 1.504 | I8: Automatic | J8: 9/1/15 | K8: 2015-014 (9/15) | L8: 0.071 | M8: 0 | N8: 0.071 | O8: 1.504
A9: ALASKA | B9: 8/1/11 | C9: FR-2011-041 (8/11) | D9: 0 | E9: 0 | F9: 0 | G9: 1.504
A10: ARIZONA | B10: 6/1/15 | C10: 2014-092 (6/15) | D10: -0.121 | E10: 0 | F10: -0.121 | G10: 1.504
A11: ARKANSAS | B11: 6/1/15 | C11: 2014-075 (6/15) | D11: -0.082 | E11: 0 | F11: -0.082 | G11: 1.504
A12: CALIFORNIA * | B12: 7/1/11 | C12: FR-2008-046 (9/09) | D12: 0 | E12: 0 | F12: 0 | G12: 1.449 | I12: Not Yet Filed Not Yet Filed Not Yet Filed | K12: 2015-095 (3/16) 2013-024 (6/13) 2011-078 (10/11) | L12: -13.7% -12.0% 6.5%
A13: COLORADO | B13: 6/1/15 | C13: 2014-098 (6/15) | D13: -0.135 | E13: 0 | F13: -0.135 | G13: 1.504
A14: CONNECTICUT | B14: 6/1/15 | C14: 2014-107 (6/15) | D14: -0.104 | E14: 0 | F14: -0.104 | G14: 1.504
A15: DELAWARE * | B15: 6/25/12 | C15: FR-2011-042 (6/11) | D15: -0.046 | E15: 0 | F15: -0.046 | G15: 1.504 | I15: Not Yet Filed | K15: 2015-001 (6/15) | L15: -0.113
A16: DIST. OF COLUMBIA | C16: ISO has not filed Farm program in DC.
A17: FLORIDA * | I17: Not Yet Filed | K17: 2015-091 (12/15) | L17: -0.078
A18: GEORGIA | B18: 9/1/15 | C18: 2015-023 (9/15) | D18: 0.044 | E18: 0 | F18: 0.044 | G18: 1.504
A19: HAWAII * | B19: 3/26/12 | C19: HIB 110062 | D19: 0 | E19: 0 | F19: 0 | G19: 1.504
A20: IDAHO | B20: 9/1/15 | C20: 2015-024 (9/15) | D20: -0.119 | E20: 0 | F20: -0.119 | G20: 1.504 | Q20: Idaho RB files Property and ISO files Liability. Each filed separately
A21: ILLINOIS * | B21: 9/1/15 | C21: 2015-013 (9/15) | D21: -0.113 | E21: 0 | F21: -0.113 | G21: 1.504
A22: INDIANA | B22: 6/1/15 | C22: 2014-076 (6/15) | D22: -0.072 | E22: 0 | F22: -0.072 | G22: 1.504
A23: IOWA | B23: 6/1/15 | C23: 2014-110 (6/15) | D23: 0.109 | E23: 0 | F23: 0.109 | G23: 1.504
A24: KANSAS | B24: 6/1/15 | C24: 2014-084 (6/15) | D24: 0.004 | E24: 0 | F24: 0.004 | G24: 1.504
A25: KENTUCKY * | B25: 6/1/15 | C25: 2012-091 (6/13) 2014-068 (6/15) | D25: -0.207563 | E25: 0 | F25: -0.208 | G25: 1.504
A26: LOUISIANA *
A27: MAINE | B27: 6/1/15 | C27: 2014-069 (6/15) | D27: -0.128 | E27: 0 | F27: -0.128 | G27: 0
A28: MARYLAND | B28: 6/1/15 | C28: 2014-100 (6/15) | D28: -0.033 | E28: 0 | F28: -0.033 | G28: 1.504
A29: MASSACHUSETTS * | B29: 6/25/12 | C29: FR-2011-073 (8/11) | D29: -0.025 | E29: 0 | F29: -0.025 | G29: 1.504 | I29: Not Yet Filed Not Yet Filed | K29: 2015-009 (6/15) 2013-033 (7/13) | L29: -13.1% -9.2%
A30: MICHIGAN | B30: 6/1/15 | C30: 2014-078 (6/15) | D30: -0.142 | E30: 0 | F30: -0.142 | G30: 1.504
A31: MINNESOTA * | B31: 6/1/13 | C31: 2012-059 (6/13) | D31: 0.042 | E31: 0 | F31: 0.042 | G31: 1.504
A32: MISSISSIPPI | B32: 8/1/11 | C32: FR-2011-062 (8/11) | D32: -0.076 | E32: 0 | F32: -0.076 | G32: 1.504
A33: MISSOURI | B33: 6/1/15 | C33: 2014-079 (6/15) | D33: 0.012 | E33: 0 | F33: 0.012 | G33: 1.504
A34: MONTANA | B34: 6/1/15 | C34: 2014-099 (6/15) | D34: -0.13 | E34: 0 | F34: -0.13 | G34: 1.504
A35: NEBRASKA | B35: 6/1/15 | C35: 2014-106 (6/15) | D35: 0.01 | E35: 0 | F35: 0.01 | G35: 1.504
A36: NEVADA | B36: 6/1/15 | C36: 2014-081 (6/15) | D36: -0.126 | E36: 0 | F36: -0.126 | G36: 1.504
A37: NEW HAMPSHIRE | B37: 6/1/15 | C37: 2014-087 (6/15) | D37: -0.142 | E37: 0 | F37: -0.142 | G37: 1.504
A38: NEW JERSEY | B38: 6/1/15 | C38: 2014-091 (6/15) | D38: -0.129 | E38: 0 | F38: -0.129 | G38: 1.504
A39: NEW MEXICO | B39: 6/1/15 | C39: 2014-071 (6/15) | D39: -0.104 | E39: 0 | F39: -0.104 | G39: 1.504
A40: NEW YORK * | B40: 10/1/11 | C40: FR-2011-043 (8/11) | D40: 0 | E40: 0 | F40: 0 | G40: 1.504 | I40: Not Yet Filed Not Yet Filed | K40: 2015-011 (7/15) 2012-083 (9/13) | L40: -11.7% -11.8%
A41: NORTH CAROLINA | B41: 8/1/15 | C41: 2015-021 (8/15) | D41: 0.095 | E41: 0 | F41: 0.095 | G41: 1.504
A42: NORTH DAKOTA | B42: 6/1/15 | C42: 2015-010 (6/15) | D42: -0.091 | E42: 0 | F42: -0.091 | G42: 1.504
A43: OHIO | B43: 6/1/15 | C43: 2014-085 (6/15) | D43: -0.068 | E43: 0 | F43: -0.068 | G43: 1.504
A44: OKLAHOMA | B44: 7/1/15 | C44: 2015-012 (7/15) | D44: -0.093 | E44: 0 | F44: -0.093 | G44: 1.504
A45: OREGON | B45: 6/1/15 | C45: 2014-093 (6/15) | D45: -0.138 | E45: 0 | F45: -0.138 | G45: 1.504
A46: PENNSYLVANIA | B46: 6/1/15 | C46: 2014-108 (6/15) | D46: -0.142 | E46: 0 | F46: -0.142 | G46: 1.504
A47: RHODE ISLAND | B47: 9/1/15 | C47: 2015-025 (9/15) | D47: -0.069 | E47: 0 | F47: -0.069 | G47: 1.504
A48: SOUTH CAROLINA | B48: 6/1/11 | C48: FR-2011-045 (6/11) | D48: -0.017 | E48: 0 | F48: -0.017 | G48: 1.504
A49: SOUTH DAKOTA | B49: 6/1/15 | C49: 2014-088 (6/15) | D49: -0.061 | E49: 0 | F49: -0.061 | G49: 1.504
A50: TENNESSEE | B50: 6/1/15 | C50: 2014-086 (6/15) | D50: -0.136 | E50: 0 | F50: -0.136 | G50: 1.504
A51: TEXAS | B51: 6/1/12 | C51: FR-2011-056 (8/11) | D51: 0.009 | E51: 0 | F51: 0.009 | G51: 1.504 | I51: Not Yet Filed Not Yet Filed | K51: 2015-022 (9/15) 2013-034 (9/13) | L51: 0.1% 3.5%
A52: UTAH | B52: 6/1/15 | C52: 2014-072 (6/15) | D52: -0.121 | E52: 0 | F52: -0.121 | G52: 1.504
A53: VERMONT | B53: 6/1/15 | C53: 2014-097 (6/15) | D53: -0.098 | E53: 0 | F53: -0.098 | G53: 1.504
A54: VIRGINIA | B54: 6/1/15 | C54: 2015-004 (6/15) | D54: -0.143 | E54: 0 | F54: -0.143 | G54: 1.504
A55: WASHINGTON
A56: WEST VIRGINIA | B56: 6/1/15 | C56: 2014-111 (6/15) | D56: -0.115 | E56: 0 | F56: -0.115 | G56: 1.504
A57: WISCONSIN | B57: 6/1/15 | C57: 2014-089 (6/15) | D57: -0.056 | E57: 0 | F57: -0.056 | G57: 1.504
A58: WYOMING | B58: 6/1/15 | C58: 2014-101 (6/15) | D58: -0.064 | E58: 0 | F58: -0.064 | G58: 1.504
A60: * LCM cannot be placed on file for future revisions.

Sheet FARM-DEVS
G1: ='AUTO-DEVS'!L1 -> as of 02/04/16
A2: * * * * * * * * * * * FARM LOSS COST MODIFICATIONS * * * * * * * * * * *
B4: NEW HAMPSHIRE COMPANIES
A5: State | B5: Sub-Standard | C5: Standard | D5: Preferred | E5: Super-Preferred
A7: ALABAMA | C7: GSIC, INIC | D7: NHIC -15%
A8: ALASKA | C8: GSIC, INIC, NHIC
A9: ARIZONA | B9: INIC +15% | C9: GSIC | D9: NHIC -15%
A10: ARKANSAS | C10: GSIC | D10: NHIC -15%
A11: CALIFORNIA | C11: GSIC, NHIC
A12: COLORADO | C12: GSIC, INIC | D12: NHIC -15%
A13: CONNECTICUT | C13: GSIC, INIC | D13: NHIC -15%
A14: DELAWARE | B14: INIC +15% | C14: GSIC | D14: NHIC -15%
A15: DIST. OF COLUMBIA | F15: Farm program unavailable in DC.
A16: FLORIDA | C16: AIG AC
A17: GEORGIA | B17: INIC +15% | C17: GSIC | D17: NHIC -15%
A18: HAWAII | B18: INIC +15% | C18: GSIC | D18: NHIC -15%
A19: IDAHACO | C19: GSIC, INIC | D19: NHIC -15%
A20: ILLINOIS | C20: GSIC, INIC | D20: NHIC -15%
A21: INDIANA | B21: INIC +15% | C21: GSIC | D21: NHIC -15%
A22: IOWA | C22: GSIC, INIC | D22: NHIC -15%
A23: KANSAS | C23: GSIC, INIC | D23: NHIC -15%
A24: KENTUCKY | B24: INIC +15% | C24: GSIC | D24: NHIC -15%
A25: LOUISIANA | F25: Waiting for PIAL to approve ISO filing.
A26: MAINE | F26: Farm program not filed for use in Maine.
A27: MARYLAND | B27: INIC +15% | C27: GSIC | D27: NHIC -15%
A28: MASSACHUSETTS | C28: GSIC | D28: NHIC -15%
A29: MICHIGAN | C29: GSIC, INIC | D29: NHIC -15%
A30: MINNESOTA | B30: INIC +15% | C30: GSIC | D30: NHIC -15%
A31: MISSISSIPPI | C31: GSIC | D31: NHIC -15%
A32: MISSOURI | B32: INIC +15% | C32: GSIC | D32: NHIC -15%
A33: MONTANA | C33: GSIC, INIC | D33: NHIC -15%
A34: NEBRASKA | C34: GSIC, INIC, NHIC
A35: NEVADA | C35: GSIC, INIC | D35: NHIC -15%
A36: NEW HAMPSHIRE | B36: INIC +15% | C36: GSIC | D36: NHIC -15%
A37: NEW JERSEY | C37: GSIC, INIC | D37: NHIC -15%
A38: NEW MEXICO | C38: GSIC, INIC | D38: NHIC -15%
A39: NEW YORK | C39: GSIC, INIC, NHIC
A40: NORTH CAROLINA | C40: GSIC | D40: NHIC -15%
A41: NORTH DAKOTA | C41: GSIC, INIC, NHIC
A42: OHIO | C42: GSIC, INIC | D42: NHIC -15%
A43: OKLAHACOMA | C43: GSIC, INIC, NHIC
A44: OREGON | B44: INIC +15% | C44: GSIC | D44: NHIC -15%
A45: PENNSYLVANIA | B45: INIC +15% | C45: GSIC | D45: NHIC -15%
A46: RHODE ISLAND | C46: GSIC, INIC | D46: NHIC -15%
A47: SOUTH CAROLINA | C47: GSIC, INIC | D47: NHIC -15%
A48: SOUTH DAKOTA | B48: INIC +15% | C48: GSIC | D48: NHIC -15%
A49: TENNESSEE | C49: GSIC, INIC | D49: NHIC -15%
A50: TEXAS | B50: INIC +15% | C50: GSIC | D50: NHIC -15%
A51: UTAH | B51: INIC +15% | C51: GSIC | D51: NHIC -15%
A52: VERMONT | C52: GSIC, INIC | D52: NHIC -15%
A53: VIRGINIA | C53: GSIC | D53: NHIC -15%
A54: WASHINGTON | C54: GSIC, INIC | D54: NHIC -15%
A55: WEST VIRGINIA | B55: INIC +15% | C55: GSIC | D55: NHIC -15%
A56: WISCONSIN | B56: INIC +15% | C56: GSIC | D56: NHIC -15%
A57: WYOMING
F59: + AIU LC filings not maintained after 4/2009

Sheet PMF
B1: PACKAGE MODIFICATION FACTOR STATUS | E1: POOLED COMPANIES | K1: =FIDELITY!P1 -> as of 02/04/16
K2: =FIDELITY!P2 -> (data not updated since 07/07/14)
B4: CURRENT: | G4: PENDING:
G6: Actuarial | I6: Proposed/
C7: Effective | D7: Circular #'s | E7: Overall | G7: Support | H7: Pending/ | I7: Effective | J7: Circular #'s | K7: Overall
B8: State | C8: Date | D8: (Edition Date) | E8: Change | G8: Prepared | H8: Approved | I8: Date | J8: (Edition Date) | K8: Change
B9: Alabama | C9: 11/1/10 | D9: 2010-009 (11/10) | E9: 0.008
B10: Alaska | C10: 11/1/12 | D10: 2012-023 (11/12) | E10: -0.039
B11: Arizona | C11: 2/1/10 | D11: 2009-017 (2/10) | E11: -0.017
B12: Arkansas | C12: 1/1/10 | D12: 2009-016 (1/10) | E12: -0.038
B13: California * | C13: 6/1/89 | D13: PMF'S VARY BY COMPANY
B14: Colorado * | C14: 1/1/10 | D14: 2009-005 (1/10) | E14: -0.009
B15: Connecticut | C15: 1/1/11 | D15: 2010-010 (1/11) | E15: =0.012 -> 0.012
B16: Delaware | C16: 1/1/10 | D16: 2009-022 (1/10) | E16: -0.006
B17: District of Columbia | C17: 2/1/10 | D17: 2009-018 (2/10) | E17: 0.028
B18: Florida | C18: 3/1/07 | D18: 2006-034 (3/07) | E18: 0.052
B19: Georgia | C19: 4/1/10 | D19: 2009-037 (4/10) | E19: 0.043
A20: 1 | B20: Hawaii | C20: 2/6/12 | D20: HIB 2011-01 (publication # 110057) | E20: 0.113
B21: Idaho | C21: 2/1/10 | D21: 2009-023 (2/10) | E21: 0.01
B22: Illinois * | C22: 1/1/11 | D22: 2010-013 (11/10) | E22: 0.02
B23: Indiana | C23: 10/1/12 | D23: 2012-008 (10/12) | E23: 0.038
B24: Iowa | C24: 11/1/10 | D24: 2010-016 (11/10) | E24: -0.028
B25: Kansas | C25: 2/1/10 | D25: 2009-028 (2/10) | E25: 0.002
B26: Kentucky * | C26: 4/1/10 | D26: 2009-034 (4/10) | E26: 0.02
B27: Louisiana | C27: 3/1/09 | D27: 2008-044 (3/09) | E27: -0.007
B28: Maine | C28: 11/1/10 | D28: 2010-021 (11/10) | E28: -0.014
B29: Maryland | C29: 2/1/10 | D29: 2009-007 (2/10) | E29: -0.009
B30: Massachusetts | C30: 3/1/10 | D30: 2009-036 (3/10) | E30: -0.014
B31: Michigan | C31: 1/1/12 | D31: 2011-014 (1/12) | E31: 0.038
B32: Minnesota | C32: 2/1/11 | D32: 2010-046 (2/11) | E32: -0.008
B33: Mississippi | C33: 6/1/10 | D33: 2010-004 (6/10) | E33: 0.058
B34: Missouri | C34: 10/1/08 | D34: 2008-010 (10/08) | E34: -0.032
B35: Montana | C35: 11/1/10 | D35: 2010-019 (11/10) | E35: -0.018
B36: Nebraska | C36: 1/1/12 | D36: 2011-036 (1/12) | E36: 0.027
B37: Nevada | C37: 2/1/10 | D37: 2009-026 (2/10) | E37: -0.007
B38: New Hampshire | C38: 3/1/10 | D38: 2009-025 (3/10) | E38: -0.018
B39: New Jersey | C39: 1/1/12 | D39: 2011-017 (1/12) | E39: 0.043
B40: New Mexico | C40: 10/1/10 | D40: 2010-020 (10/10) | E40: 0.02
B41: New York * | C41: 7/1/07 | D41: 2006-046 (7/07) | E41: -0.054
B42: No. Carolina | C42: 4/1/12 | D42: 2011-034 (4/12) | E42: 0.04
B43: No. Dakota | C43: 1/1/10 | D43: 2009-012 (1/10) | E43: -0.008
B44: Ohio | C44: 10/1/12 | D44: 2012-010 (10/12) | E44: 0.036
B45: Oklahoma | C45: 11/1/10 | D45: 2010-043 (11/10) | E45: -0.012
B46: Oregon | C46: 10/1/12 | D46: 2012-012 (10/12) | E46: 0.043
B47: Pennsylvania | C47: 11/1/10 | D47: 2010-038 (11/10) | E47: -0.026
B48: Rhode Island | C48: 3/1/12 | D48: 2011-038 (3/12) | E48: 0.028
B49: So. Carolina | C49: 2/1/10 | D49: 2009-014 (2/10) | E49: 0.009
B50: So. Dakota | C50: 2/1/10 | D50: 2009-031 (2/10) | E50: -0.006
A51: UTAH | B51: Tennessee | C51: 11/1/12 | D51: 2012-014 (11/12) | E51: 0.048
B52: Texas | C52: 4/1/11 | D52: 2010-064 (4/11) | E52: 0.125
A53: VIRGINIA | B53: Utah | C53: 11/1/10 | D53: 2010-028 (11/10) | E53: -0.005
B54: Vermont | C54: 3/1/10 | D54: 2007-019 (2/08) | E54: -0.027
A55: WEST VIRGINIA | B55: Virginia | C55: 12/1/10 | D55: 2010-049 (12/10) | E55: 0.01
B56: Washington | C56: 6/1/12 | D56: WSRB 2012-05 (6/12) | E56: 0.067
B57: West Virginia | C57: 3/1/10 | D57: 2009-033 (3/10) | E57: -0.007
B58: Wisconsin | C58: 1/1/11 | D58: 2010-029 (1/11) | E58: -0.036
B59: Wyoming | C59: 11/1/10 | D59: 2010-027 (11/10) | E59: 0.005
C61: Indicates LCM is not on file with DOI
B62: * ISO revisions are NOT automatic adoptions.

Sheet PMF-DEVS
I1: ='AUTO-DEVS'!L1 -> as of 02/04/16
A2: * * * * * * * * * * * PMF MODIFICATIONS * * * * * * * * * * *
A4: STATE | C4: Standard (ISO) | E4: Preferred | G4: Super-Preferred
A6: ALABAMA | C6: AHAC / NUFIC / ISOP / C&I / AIG AC / NHIC / GSIC
A7: ALASKA | C7: AIG PCC / AIG AC / AHAC / C&I / GSIC / INIC / NUFIC / NHIC / ISOP
A8: ARIZONA | C8: AIG PCC / AIG AC / AHAC / C&I / GSIC / INIC / NUFIC / NHIC / ISOP
A9: ARKANSAS | C9: AIG AC / AHAC / C&I / GSIC / NUFIC / NHIC / ISOP
A10: CALIFORNIA | E10: GSIC (Independent) | G10: NHIC (Independent)
A11: COLORADO | C11: AIG PCC / AIG AC / AHAC / C&I / GSIC / INIC / NUFIC / NHIC / ISOP
A12: CONNECTICUT | C12: AIG PCC / AIG AC / AHAC / C&I / GSIC / INIC / NUFIC / NHIC / ISOP
A13: DELAWARE | C13: AIG PCC / AIG AC / AHAC / C&I / GSIC / INIC / NUFIC / NHIC / ISOP
A14: DIST.OF COL. | C14: AIG PCC / AIG AC / AHAC / C&I / GSIC / INIC / NUFIC / NHIC / ISOP
A15: FLORIDA + | C15: AIG PCC / AIU / AIG AC / AHAC / C&I / GSIC / INIC / NUFIC / NHIC / ISOP
A16: GEORGIA | C16: AIG PCC / AIG AC / AHAC / C&I / GSIC / INIC / NUFIC / NHIC / ISOP
A17: HAWAII | C17: AIG PCC / AIG AC / AHAC / C&I / GSIC / INIC / NUFIC / NHIC / ISOP
A18: IDAHACO | C18: AIG PCC / AIG AC / AHAC / C&I / GSIC / INIC / NUFIC / NHIC / ISOP
A19: ILLINOIS | C19: AIG PCC / AIG AC / AHAC / C&I / GSIC / INIC / NUFIC / NHIC / ISOP
A20: INDIANA | C20: AIG PCC / AIG AC / AHAC / C&I / GSIC / INIC / NUFIC / NHIC / ISOP
A21: IOWA | C21: AIG PCC / AIG AC / AHAC / C&I / GSIC / INIC / NUFIC / NHIC / ISOP
A22: KANSAS | C22: AIG PCC / AIG AC / AHAC / C&I / GSIC / INIC / NUFIC / NHIC / ISOP
A23: KENTUCKY | C23: AIG PCC / AIG AC / AHAC / C&I / GSIC / INIC / NUFIC / NHIC / ISOP
A24: LOUISIANA | C24: AIG AC / AHAC / C&I / GSIC / NUFIC / NHIC / ISOP
A25: MAINE | C25: AIG AC / AHAC / C&I / GSIC / NUFIC / NHIC / ISOP
A26: MARYLAND | C26: AIG PCC / AIG AC / AHAC / C&I / GSIC / INIC / NUFIC / NHIC / ISOP
A27: MASSACHUSETTS | C27: AIG AC / AHAC / C&I / GSIC / NUFIC / NHIC / ISOP
A28: MICHIGAN | C28: AIG PCC / AIG AC / AHAC / C&I / GSIC / INIC / NUFIC / NHIC / ISOP
A29: MINNESOTA | C29: AIG AC / AHAC / C&I / GSIC / INIC / NUFIC / NHIC / ISOP
A30: MISSISSIPPI | C30: AIG PCC / AIG AC / AHAC / C&I / GSIC / INIC / NUFIC / NHIC / ISOP
A31: MISSOURI | C31: AIG PCC / AIG AC / AHAC / C&I / GSIC / INIC / NUFIC / NHIC / ISOP
A32: MONTANA | C32: AIG PCC / AIG AC / AHAC / C&I / GSIC / INIC / NUFIC / NHIC / ISOP
A33: NEBRASKA + | C33: AIG PCC / AIG AC / AHAC / C&I / INIC / NUFIC / NHIC / ISOP | E33: GSIC-15%
A34: NEVADA | C34: AIG PCC / AIG AC / AHAC / C&I / GSIC / INIC / NUFIC / NHIC / ISOP
A35: NEW HAMPSHIRE | C35: AIG PCC / AIG AC / AHAC / C&I / GSIC / INIC / NUFIC / NHIC / ISOP
A36: NEW JERSEY | C36: AIG AC / AHAC / C&I / GSIC / INIC / NUFIC / NHIC / ISOP
A37: NEW MEXICO | C37: AIG PCC / AIG AC / AHAC / C&I / GSIC / NUFIC / NHIC / ISOP
A38: NEW YORK | C38: AIG AC / AHAC / C&I / INIC / NUFIC / NHIC / ISOP | E38: GSIC -15%
A39: NO.CAROLINA | C39: AIG AC / AHAC / C&I / GSIC / NUFIC / NHIC / ISOP
A40: NORTH DAKOTA | C40: AIG PCC / AIG AC / AHAC / C&I / GSIC / INIC / NUFIC / NHIC / ISOP
A41: OHIO | C41: AIG PCC / AIG AC / AHAC / C&I / GSIC / INIC / NUFIC / NHIC / ISOP
A42: OKLAHACOMA | C42: AIG PCC / AIG AC / AHAC / C&I / INIC / NUFIC / NHIC / ISOP | E42: GSIC -15%
A43: OREGON | C43: AIG PCC / AIG AC / AHAC / C&I / GSIC / INIC / NUFIC / NHIC / ISOP
A44: PENNSYLVANIA | C44: AIG PCC / AIG AC / AHAC / C&I / GSIC / INIC / NUFIC / NHIC / ISOP
A45: RHODE ISLAND | C45: AIG PCC / AIG AC / AHAC / C&I / GSIC / INIC / NUFIC / NHIC / ISOP
A46: SO.CAROLINA | C46: AIG PCC / AIG AC / AHAC / C&I / GSIC / INIC / NUFIC / NHIC / ISOP
A47: SOUTH DAKOTA | C47: AIG PCC / AIG AC / AHAC / C&I / GSIC / INIC / NUFIC / NHIC / ISOP
A48: TENNESSEE | C48: AIG PCC / AIG AC / AHAC / C&I / GSIC / INIC / NUFIC / NHIC / ISOP
A49: TEXAS | C49: AIG PCC / AIG AC / AHAC / C&I / GSIC / INIC / NUFIC / NHIC / ISOP
A50: UTAHAC | C50: AIG PCC / AIG AC / AHAC / C&I / GSIC / INIC / NUFIC / NHIC / ISOP
A51: UTAH | C51: AIG PCC / AHAC / C&I / GSIC / INIC / NUFIC / NHIC / ISOP
A52: VIRGINIA | C52: AIG PCC / AHAC / C&I / GSIC / NUFIC / NHIC / ISOP
A53: VIRGINIA | C53: AIG PCC / AIG AC / AHAC / C&I / GSIC / INIC / NUFIC / NHIC / ISOP
A54: WEST VIRGINIA | C54: AIG PCC / AIG AC / AHAC / C&I / GSIC / INIC / NUFIC / NHIC / ISOP
A55: WEST VIRGINIA | C55: AIG PCC / AIG AC / AHAC / C&I / GSIC / INIC / NUFIC / NHIC / ISOP
A56: WYOMING | C56: AIG PCC / AIG AC / AHAC / C&I / INIC / NUFIC / NHIC / ISOP | E56: GSIC -20%
A58: + INIC PMF factor = 1.000 | E58: +AIP, AIU, AUD, LIC LC filings not maintained after 4/2009

Sheet NonFiled Inland
B1: COMMERCIAL NON-FILED Inland Marine Classes FILING STATUS | H1: POOLED COMPANIES | P1: =FIDELITY!P1 -> as of 02/04/16
B4: CURRENT: | J4: PENDING:
E6: Loss | J6: Actuarial | L6: Proposed/ | N6: Loss
C7: Effective | D7: Circular #'s | E7: Cost | F7: Expense | G7: Overall | H7: Loss Cost | J7: Support | K7: Pending/ | L7: Effective | M7: Circular #'s | N7: Cost | O7: Expense | P7: Overall | Q7: Loss Cost
B8: STATE | C8: Date | D8: (Edition Date) | E8: Change | F8: Change | G8: Change | H8: Multiplier | J8: Prepared | K8: Approved | L8: Date | M8: (Edition Date) | N8: Change | O8: Change | P8: Change | Q8: Multiplier
B9: ALABAMA
B10: ALASKA
B11: ARIZONA
B12: ARKANSAS
B13: CALIFORNIA | C13: 10/21/15 | D13: AAIS-2000-6R, AAIS-99-25-1R, AAIS-2004-9R-4, AAIS-2007-63R, AAIS-2009-13LC-1 | E13: 0 | F13: 0 | G13: 0 | H13: 1.479
B14: COLORADO | C14: 11/8/12 | D14: AAIS-23005-100,2006-23 IMG,2006-61&63, 2009-13LC | E14: 0 | F14: 0 | G14: 0 | H14: 1.639
B15: CONNECTICUT
B16: DELAWARE
B17: DIST.OF COL.
B18: FLORIDA
B19: GEORGIA
B20: HAWAII
B21: IDAHO
B22: ILLINOIS
B23: INDIANA
B24: IOWA
B25: KANSAS
B26: KENTUCKY | C26: 6/25/12 | D26: AAIS-23005-100,2006-23 IMG,2006-61&63, 2009-13LC | E26: 0 | F26: 0 | G26: 0 | H26: 1.748
B27: LOUISIANA
B28: MAINE
B29: MARYLAND
B30: MASSACHUSETTS
B31: MICHIGAN
B32: MINNESOTA
B33: MISSISSIPPI
B34: MISSOURI
B35: MONTANA | C35: 7/25/12 | D35: AAIS-2004-9R, 2004-29, 2007-9R, 2009-13LC | E35: 0 | F35: 0 | G35: 0 | H35: 1.724
B36: NEBRASKA | C36: 7/25/12 | D36: AAIS-98.58, 2000-6, 2002-IMG, 2004-9R, 2004-63R, 2009-13LC | E36: 0 | F36: 0 | G36: 0 | H36: 1.695
B37: NEVADA
B38: NEW HAMPSHIRE
B39: NEW JERSEY
B40: NEW MEXICO
B41: NEW YORK | C41: 11/1/13 | D41: Buidlers Risk Classes AAIS 151-640-288 | E41: 0 | F41: 0 | G41: 0 | H41: 1.724
B42: NORTH CAROLINA
B43: NORTH DAKOTA
B44: OHIO | C44: 7/1/13 | D44: AAIS | E44: 0 | F44: 0 | G44: 0 | H44: 1.718
B45: OKLAHOMA
B46: OREGON
B47: PENNSYLVANIA
B48: RHODE ISLAND
B49: SOUTH CAROLINA
B50: SOUTH DAKOTA
A51: UTAH | B51: TENNESSEE
B52: TEXAS | C52: 7/25/12 | D52: AAIS-2000-22LC, 2002-FAR-1,2002-82-EDP, 2004-65, 2009-29, | E52: 0 | F52: 0 | G52: 0 | H52: 1.712
A53: VIRGINIA | B53: UTAH
B54: VERMONT
A55: WEST VIRGINIA | B55: VIRGINIA
B56: WASHINGTON
B57: WEST VIRGINIA
B58: WISCONSIN
B59: WYOMING
C61: Indicates LCM is not on file with DOI

Sheet NonFiled Dev
J1: ='AUTO-DEVS'!L1 -> as of 02/04/16
A2: * * * * * * * * * * * COMMERCIAL NON-FILED Inland Marine Classes LOSS COST MODIFICATIONS * * * * * * * * * * *
C4: NEW HAMPSHIRE COMPANIES | H4: NEW YORK COMPANIES +
A5: State | C5: Sub-Standard | D5: Standard | E5: Preferred | F5: Super-Preferred | H5: Standard
A7: ALABAMA
A8: ALASKA
A9: ARIZONA
A10: ARKANSAS
A11: CALIFORNIA | D11: NHIC / GSIC = 1.509
A12: COLORADO | D12: GSIC / INIC =1.639 | E12: NHIC = 1.393
A13: CONNECTICUT
A14: DELAWARE
A15: DIST. OF COLUMBIA
A16: FLORIDA
A17: GEORGIA
A18: HAWAII
A19: IDAHO
A20: ILLINOIS
A21: INDIANA
A22: IOWA
A23: KANSAS
A24: KENTUCKY | C24: INIC = 1.949 | D24: GSIC = 1.748 | E24: NHIC = 1.486
A25: LOUISIANA
A26: MAINE
A27: MARYLAND
A28: MASSACHUSETTS
A29: MICHIGAN
A30: MINNESOTA
A31: MISSISSIPPI
A32: MISSOURI
A33: MONTANA | D33: GSIC / INIC = 1.724 | E33: NHIC = 1.466
A34: NEBRASKA | D34: NHIC/ GSIC / INIC = 1.695
A35: NEVADA
A36: NEW HAMPSHIRE
A37: NEW JERSEY
A38: NEW MEXICO
A39: NEW YORK
A40: NORTH CAROLINA
A41: NORTH DAKOTA
A42: OHIO | D42: GSIC / INI = 1.718 | E42: NHIC = 1.460
A43: OKLAHOMA
A44: OREGON
A45: PENNSYLVANIA
A46: RHODE ISLAND
A47: SOUTH CAROLINA
A48: SOUTH DAKOTA
A49: TENNESSEE
A50: TEXAS | C50: INIC = 1.969 | D50: GSIC = 1.712 | E50: NHIC = 1.455
A51: UTAH
A52: VERMONT
A53: VIRGINIA
A54: WASHINGTON
A55: WEST VIRGINIA
A56: WISCONSIN
A57: WYOMING
C59: States with no LCM displayed use the ISO Inland LCM because of their no file requirement.
C60: 2012 Filings were made in only 3 companies, GS, INI & NH.

Sheet BOP
B1: ISO BOP - Business Owners Program FILING STATUS | P1: As of: | Q1: =GL!R1 -> 02/04/16
B4: CURRENT: | J4: PENDING:
E6: Loss | J6: Actuarial | K6: Pending/ | L6: Proposed/ | N6: Loss
C7: Effective | D7: Circular #'s | E7: Cost | F7: Expense | G7: Overall | H7: Loss Cost | J7: Support | K7: Approved/ | L7: Effective | M7: Circular #'s | N7: Cost | O7: Expense | P7: Overall | Q7: Loss Cost
B8: STATE | C8: Date | D8: (Edition Date) | E8: Change | F8: Change | G8: Change | H8: Multiplier | J8: Prepared | K8: Automatic | L8: Date | M8: (Edition Date) | N8: Change | O8: Change | P8: Change | Q8: Multiplier
B9: ALABAMA | C9: 11/1/15 | D9: 2015-060 (11/15) | E9: -0.078 | F9: 0 | G9: -0.078 | H9: 1.706
B10: ALASKA | C10: 9/1/15 | D10: 2015-012 (9/15) | E10: 0.017 | F10: 0 | G10: 0.017 | H10: 1.701
B11: ARIZONA | C11: 5/1/15 | D11: 2014-221 (5/15) | E11: 0.008 | F11: 0 | G11: 0.008 | H11: 1.751
B12: ARKANSAS | C12: 1/1/16 | D12: 2015-091 (1/16) | E12: -0.072 | F12: 0 | G12: -0.072 | H12: 1.757
B13: CALIFORNIA * | K13: Not Yet Filed Not Yet Filed | M13: 2015-081 (11/15) 2014-137 (11/14) | N13: 1.2% 11.5%
B14: COLORADO | C14: 4/1/15 | D14: 2014-215 (4/15) | E14: -0.024 | F14: 0 | G14: -0.024 | H14: 1.727
B15: CONNECTICUT | C15: 1/1/16 | D15: 2015-065 (1/16) | E15: -0.03 | F15: 0 | G15: -0.03 | H15: 1.718
B16: DELAWARE * | C16: 8/1/13 | D16: LI-BP-2012-229 (02/12) | E16: 0 | F16: 0 | G16: 0 | H16: 1.704 | K16: Not Yet Filed Not Yet Filed Not Yet Filed | M16: 2015-132 (1/16) 2014-194 (1/15) 2013-200 (2/14) | N16: 1.2% 0.4% -6.5%
B17: DIST.OF COL. | C17: 2/1/16 | D17: 2015-128 (2/16) | E17: -0.026 | F17: 0 | G17: -0.026 | H17: 1.754
B18: FLORIDA * | K18: Not Yet Filed | M18: 2016-006 (5/16) | N18: -0.081
B19: GEORGIA | C19: 12/1/15 | D19: 2015-070 (12/15) | E19: -0.043 | F19: 0 | G19: -0.043 | H19: 1.745
B20: HAWAII * | C20: 3/1/14 | D20: HIB Publication 110064 | E20: 0 | F20: 0 | G20: 0 | H20: 1.828
B21: IDAHO | C21: 7/1/15 | D21: 2015-021 (7/15) | E21: 0.001 | F21: 0 | G21: 0.001 | H21: 1.701
B22: ILLINOIS * | C22: 4/1/13 | D22: LI-BP-2012-048 (10/12) | E22: 0 | F22: 0 | G22: 0 | H22: 1.727 | K22: Not Yet Filed Not Yet Filed | M22: '2015-055 (11/15) 2014-082 (11/14) | N22: -3.2% 6.7%
B23: INDIANA | C23: 7/1/15 | D23: 2015-025 (7/15) | E23: 0.031 | F23: 0 | G23: 0.031 | H23: 1.672
B24: IOWA | C24: 8/1/15 | D24: 2015-023 (8/15) | E24: -0.003 | F24: 0 | G24: -0.003 | H24: 1.653
B25: KANSAS | C25: 4/1/15 | D25: 2014-238 (4/15) | E25: 0.022 | F25: 0 | G25: 0.022 | H25: 1.724
B26: KENTUCKY | C26: 9/1/13 | D26: LI-BP-2012-018 (09/12) | E26: 0 | F26: 0 | G26: 0 | H26: 1.667 | K26: Not Yet Filed | M26: 2014-205 (6/15) | N26: -0.051
B27: LOUISIANA (a)* | C27: 3/31/14 | D27: LI-BP-2013-052 (9/13) | E27: 0 | F27: 0 | G27: 0 | H27: 1.07 | K27: Not Yet Filed | M27: 2014-079 (11/14) | N27: -0.151
B28: MAINE | C28: 1/1/16 | D28: 2015-090 (1/16) | E28: -0.018 | F28: 0 | G28: -0.018 | H28: 1.776
B29: MARYLAND | C29: 3/1/16 | D29: 2015-108 (3/16) | E29: -0.031 | F29: 0 | G29: -0.031 | H29: 1.712
B30: MASSACHUSETTS * | C30: 1/1/14 | D30: LI-BP-2012-032 (09/12) | E30: 0 | F30: 0 | G30: 0 | H30: 1.684 | K30: Not Yet Filed Not Yet Filed Not Yet Filed | M30: 2016-001 (5/16) 2014-235 (3/15) 2014-004 (5/14) | N30: 0.5% 2.9% -6.4%
B31: MICHIGAN | C31: 10/1/15 | D31: 2015-057 (10/15) | E31: -0.004 | F31: 0 | G31: -0.004 | H31: 1.718
B32: MINNESOTA | C32: 8/1/15 | D32: 2015-037 (8/15) | E32: 0.036 | F32: 0 | G32: 0.036 | H32: 1.718
B33: MISSISSIPPI | C33: 12/1/13 | D33: LI-BP-2013-145 (12/13) | E33: 0 | F33: 0 | G33: 0 | H33: 1.786
B34: MISSOURI | C34: 1/1/16 | D34: 2015-096 (1/16) | E34: -0.093 | F34: 0 | G34: -0.093 | H34: 1.709
B35: MONTANA | C35: 7/1/15 | D35: 2015-039 (7/15) | E35: 0.03 | F35: 0 | G35: 0.03 | H35: 1.779
B36: NEBRASKA | C36: 4/1/15 | D36: 2014-236 (4/15) | E36: -0.009 | F36: 0 | G36: -0.009 | H36: 1.73
B37: NEVADA | C37: 4/1/15 | D37: 2014-219 (4/15) | E37: -0.021 | F37: 0 | G37: -0.021 | H37: 1.802
B38: NEW HAMPSHIRE | C38: 11/1/15 | D38: 2015-052 (11/15) | E38: -0.001 | F38: 0 | G38: -0.001 | H38: 1.733
B39: NEW JERSEY | C39: 10/1/15 | D39: 2015-048 (10/15) | E39: -0.047 | F39: 0 | G39: -0.047 | H39: 1.757
B40: NEW MEXICO | C40: 7/1/15 | D40: 2015-011 (7/15) | E40: -0.055 | F40: 0 | G40: -0.055 | H40: 1.786
B41: NEW YORK * | K41: Not Yet Filed | M41: 2015-136 (6/16) | N41: -0.001
B42: NORTH CAROLINA | C42: 1/1/16 | D42: 2015-110 (1/16) | E42: -0.018 | F42: 0 | G42: -0.018 | H42: 1.709
B43: NORTH DAKOTA | C43: 4/1/15 | D43: 2014-225 (4/15) | E43: 0.064 | F43: 0 | G43: 0.064 | H43: 1.748
B44: OHIO | C44: 8/1/15 | D44: 2015-027 (8/15) | E44: -0.024 | F44: 0 | G44: -0.024 | H44: 1.678
B45: OKLAHOMA | C45: 8/1/15 | D45: 2015-035 (8/15) | E45: 0.085 | F45: 0 | G45: 0.085 | H45: 1.764
B46: OREGON | C46: 4/1/15 | D46: 2014-223 (4/15) | E46: 0.032 | F46: 0 | G46: 0.032 | H46: 1.754
B47: PENNSYLVANIA | C47: 1/1/16 | D47: 2015-113 (1/16) | E47: -0.044 | F47: 0 | G47: -0.044 | H47: 1.684
B48: RHODE ISLAND | C48: 12/1/15 | D48: 2015-098 (12/15) | E48: 0.008 | F48: 0 | G48: 0.008 | H48: 1.754
B49: SOUTH CAROLINA | C49: 12/1/15 | D49: 2015-101 (12/15) | E49: 0.025 | F49: 0 | G49: 0.025 | H49: 1.724
B50: SOUTH DAKOTA | J50: 11/5/13 | K50: Pending | L50: 2/1/14 | M50: LI-BP-2013-183 (3/14) | N50: 0 | O50: 0 | P50: 0 | Q50: 1.773
A51: UTAH | B51: TENNESSEE | C51: 5/1/15 | D51: 2014-217 (5/15) | E51: -0.085 | F51: 0 | G51: -0.085 | H51: 1.77
B52: TEXAS * | C52: 8/1/13 | D52: LI-BP-2013-028 (05/13) | E52: 0 | F52: 0 | G52: 0 | H52: 1.672 | K52: Not Yet Filed Not Yet Filed Not Yet Filed | M52: 2015-130 (4/16) 2015-045 (9/15) 2014-054 (7/14) | N52: -4.6% 6.1% 13.0%
A53: VIRGINIA | B53: UTAH | C53: 7/1/15 | D53: 2015-013 (7/15) | E53: 0.055 | F53: 0 | G53: 0.055 | H53: 1.764
B54: VERMONT | C54: 10/1/15 | D54: 2015-074 (10/15) | E54: -0.009 | F54: 0 | G54: -0.009 | H54: 1.754
A55: WEST VIRGINIA | B55: VIRGINIA | C55: 11/1/15 | D55: 2015-086 (11/15) | E55: -0.059 | F55: 0 | G55: -0.059 | H55: 1.718
B56: WASHINGTON *
B57: WEST VIRGINIA | C57: 5/1/15 | D57: 2014-252 (5/15) | E57: -0.028 | F57: 0 | G57: -0.028 | H57: 1.818
B58: WISCONSIN | C58: 7/1/15 | D58: 2015-029 (7/15) | E58: -0.001 | F58: 0 | G58: -0.001 | H58: 1.661
B59: WYOMING | C59: 7/1/15 | D59: 2015-015 (7/15) | E59: -0.003 | F59: 0 | G59: -0.003 | H59: 1.718
C62: BOP is only filed in New Hampsire Insurance Company
C63: (a) Louisiana PIAL files rates, the 1.07 factor adjusts for additional expense needs.
